"SERVICE_CODE","ORGANISATION_UNIT","EXPENDITURE_CATEGORY","EXPENDITURE_DESCRIPTION","EXPENDITURE_CODE","NARRATIVE","DATE","TRANSATION_CODE","NET_AMOUNT","SUPPLIER_CODE","SUPPLIER_NAME","FROM_DATE","TO_DATE","FINANCIAL_PERIOD_YEAR"
"P&V","FISHERIES MANAGEMENT","EMPLOYEES","APPOINTMENT EXPENSES","1301","P112246-SERVICE-ANGLING & WATERBODIES ADVERT",9/6/2021 00:00:00,"248624",625.1,"SA0133","SOWERBY ADVERTISING AND COMMUNICATIONS",31/5/2021 00:00:00,27/6/2021 00:00:00,"P03-2022"
,"LV LEISURE CENTRE GOLF COURSE","EMPLOYEES","APPOINTMENT EXPENSES","1301","P112676-SERVICE-GREENKEEPER VACANCY ADVERT",27/6/2021 00:00:00,"249458",37.5,"LO0426","LOVE YOUR DOORSTEP LTD",31/5/2021 00:00:00,27/6/2021 00:00:00,"P03-2022"
,"LEE VALLEY RIDING CENTRE","EMPLOYEES","TRAINING EXPENSES","1305","P112322-SERVICE-examiner fee",16/6/2021 00:00:00,"249092",195,"LU0175","MANDY LUESLEY BHSI",31/5/2021 00:00:00,27/6/2021 00:00:00,"P03-2022"
"R&B","NON DISTRIBUTED COSTS","EMPLOYEES","SUPERANNUATION ADDED YEARS","1310","LONDON PENSIONS FUND AUTHORITY",3/6/2021 00:00:00,"248545",5668.87,"LO0031","LONDON PENSIONS FUND AUTHORITY",31/5/2021 00:00:00,27/6/2021 00:00:00,"P03-2022"
,"LEE VALLEY CAMPSITE","EMPLOYEES","CRB CHECKS","1330","ADMIN FEE",9/6/2021 00:00:00,"248791",18,"DD0119","DUE DILIGENCE CHECKING LIMITED",31/5/2021 00:00:00,27/6/2021 00:00:00,"P03-2022"
,"LEE VALLEY CAMPSITE","EMPLOYEES","CRB CHECKS","1330","DBS CHECKS",9/6/2021 00:00:00,"248791",23,"DD0119","DUE DILIGENCE CHECKING LIMITED",31/5/2021 00:00:00,27/6/2021 00:00:00,"P03-2022"
,"LEE VALLEY CARAVAN PARK","EMPLOYEES","CRB CHECKS","1330","ADMIN FEE",9/6/2021 00:00:00,"248791",90,"DD0119","DUE DILIGENCE CHECKING LIMITED",31/5/2021 00:00:00,27/6/2021 00:00:00,"P03-2022"
,"LEE VALLEY CARAVAN PARK","EMPLOYEES","CRB CHECKS","1330","DBS CHECKS",9/6/2021 00:00:00,"248791",115,"DD0119","DUE DILIGENCE CHECKING LIMITED",31/5/2021 00:00:00,27/6/2021 00:00:00,"P03-2022"
"P&V","MYDDELTON HOUSE GARDENS","EMPLOYEES","CRB CHECKS","1330","DBS CHECKS",9/6/2021 00:00:00,"248791",23,"DD0119","DUE DILIGENCE CHECKING LIMITED",31/5/2021 00:00:00,27/6/2021 00:00:00,"P03-2022"
"P&V","MYDDELTON HOUSE GARDENS","EMPLOYEES","CRB CHECKS","1330","ADMIN FEE",9/6/2021 00:00:00,"248791",18,"DD0119","DUE DILIGENCE CHECKING LIMITED",31/5/2021 00:00:00,27/6/2021 00:00:00,"P03-2022"
"P&V","POLICY & PERFORMANCE (L&E)","EMPLOYEES","CRB CHECKS","1330","ADMIN FEE",9/6/2021 00:00:00,"248791",18,"DD0119","DUE DILIGENCE CHECKING LIMITED",31/5/2021 00:00:00,27/6/2021 00:00:00,"P03-2022"
"P&V","POLICY & PERFORMANCE (L&E)","EMPLOYEES","CRB CHECKS","1330","DBS CHECK",9/6/2021 00:00:00,"248791",23,"DD0119","DUE DILIGENCE CHECKING LIMITED",31/5/2021 00:00:00,27/6/2021 00:00:00,"P03-2022"
,"LEE VALLEY VELOPARK","EMPLOYEES","CRB CHECKS","1330","DBS CHECK",9/6/2021 00:00:00,"248791",40,"DD0119","DUE DILIGENCE CHECKING LIMITED",31/5/2021 00:00:00,27/6/2021 00:00:00,"P03-2022"
,"LEE VALLEY VELOPARK","EMPLOYEES","CRB CHECKS","1330","ADMIN FEE",9/6/2021 00:00:00,"248791",18,"DD0119","DUE DILIGENCE CHECKING LIMITED",31/5/2021 00:00:00,27/6/2021 00:00:00,"P03-2022"
"P&V","VOLUNTEERS (L&E)","EMPLOYEES","CRB CHECKS","1330","P112422-SERVICE-DBS - Josie Betts",14/6/2021 00:00:00,"248792",18,"DD0119","DUE DILIGENCE CHECKING LIMITED",31/5/2021 00:00:00,27/6/2021 00:00:00,"P03-2022"
"P&V","VOLUNTEERS (L&E)","EMPLOYEES","CRB CHECKS","1330","P112422-SERVICE-DBS - Stephen Clements",14/6/2021 00:00:00,"248792",18,"DD0119","DUE DILIGENCE CHECKING LIMITED",31/5/2021 00:00:00,27/6/2021 00:00:00,"P03-2022"
"P&V","VOLUNTEERS (L&E)","EMPLOYEES","CRB CHECKS","1330","P112422-SERVICE-Murray Scott",14/6/2021 00:00:00,"248792",18,"DD0119","DUE DILIGENCE CHECKING LIMITED",31/5/2021 00:00:00,27/6/2021 00:00:00,"P03-2022"
"P&V","VOLUNTEERS (L&E)","EMPLOYEES","CRB CHECKS","1330","P112422-SERVICE-DBS - Steven Meale",14/6/2021 00:00:00,"248792",18,"DD0119","DUE DILIGENCE CHECKING LIMITED",31/5/2021 00:00:00,27/6/2021 00:00:00,"P03-2022"
"P&V","VOLUNTEERS (L&E)","EMPLOYEES","CRB CHECKS","1330","P112422-SERVICE-Chris Dallison",14/6/2021 00:00:00,"248792",18,"DD0119","DUE DILIGENCE CHECKING LIMITED",31/5/2021 00:00:00,27/6/2021 00:00:00,"P03-2022"
,"LV LEISURE CENTRE CAMPSITE","EMPLOYEES","CRB CHECKS","1330","DBS CHECKS",9/6/2021 00:00:00,"248791",23,"DD0119","DUE DILIGENCE CHECKING LIMITED",31/5/2021 00:00:00,27/6/2021 00:00:00,"P03-2022"
,"LV LEISURE CENTRE CAMPSITE","EMPLOYEES","CRB CHECKS","1330","ADMIN FEE",9/6/2021 00:00:00,"248791",18,"DD0119","DUE DILIGENCE CHECKING LIMITED",31/5/2021 00:00:00,27/6/2021 00:00:00,"P03-2022"
,"LV LEISURE CENTRE GOLF COURSE","EMPLOYEES","CRB CHECKS","1330","DBS CHECKS",9/6/2021 00:00:00,"248791",138,"DD0119","DUE DILIGENCE CHECKING LIMITED",31/5/2021 00:00:00,27/6/2021 00:00:00,"P03-2022"
,"LV LEISURE CENTRE GOLF COURSE","EMPLOYEES","CRB CHECKS","1330","ADMIN FEE",9/6/2021 00:00:00,"248791",108,"DD0119","DUE DILIGENCE CHECKING LIMITED",31/5/2021 00:00:00,27/6/2021 00:00:00,"P03-2022"
,"LEE VALLEY ATHLETICS CENTRE","EMPLOYEES","CRB CHECKS","1330","ADMIN FEE",9/6/2021 00:00:00,"248791",18,"DD0119","DUE DILIGENCE CHECKING LIMITED",31/5/2021 00:00:00,27/6/2021 00:00:00,"P03-2022"
,"LEE VALLEY ATHLETICS CENTRE","EMPLOYEES","CRB CHECKS","1330","DBS CHECK",9/6/2021 00:00:00,"248791",23,"DD0119","DUE DILIGENCE CHECKING LIMITED",31/5/2021 00:00:00,27/6/2021 00:00:00,"P03-2022"
,"LEE VALLEY WHITE WATER CENTRE","EMPLOYEES","CRB CHECKS","1330","ADMIN FEE",9/6/2021 00:00:00,"248791",72,"DD0119","DUE DILIGENCE CHECKING LIMITED",31/5/2021 00:00:00,27/6/2021 00:00:00,"P03-2022"
,"LEE VALLEY WHITE WATER CENTRE","EMPLOYEES","CRB CHECKS","1330","DBS CHECKS",9/6/2021 00:00:00,"248791",103,"DD0119","DUE DILIGENCE CHECKING LIMITED",31/5/2021 00:00:00,27/6/2021 00:00:00,"P03-2022"
"R&B","CORPORATE TRAINING","EMPLOYEES","APPRENTICE LEVY","1390","PAYE",27/6/2021 00:00:00,"249498",2032,"HM0368","HMRC",31/5/2021 00:00:00,27/6/2021 00:00:00,"P03-2022"
"CEO","LVLC SERVICE CHARGE","PREMISES RELATED EXPENDITURE","SCHEDULED GROUND MAINTENANCE","2111","GLENDALE GROUNDS MANAGEMENT LI",27/6/2021 00:00:00,"249087",101.36,"GL0214","GLENDALE GROUNDS MANAGEMENT LIMITED",31/5/2021 00:00:00,27/6/2021 00:00:00,"P03-2022"
"CEO","LVLC SERVICE CHARGE","PREMISES RELATED EXPENDITURE","SCHEDULED GROUND MAINTENANCE","2111","GLENDALE GROUNDS MANAGEMENT LI",27/6/2021 00:00:00,"249087",2299.79,"GL0214","GLENDALE GROUNDS MANAGEMENT LIMITED",31/5/2021 00:00:00,27/6/2021 00:00:00,"P03-2022"
"P&V","SOUTH AREA RANGERS","PREMISES RELATED EXPENDITURE","UNSCHEDULED GROUND MAINTENANCE","2112","P112541-SERVICE-Ice Centre Gate Locking / Unlocking",14/6/2021 00:00:00,"248538",317,"GL0214","GLENDALE GROUNDS MANAGEMENT LIMITED",31/5/2021 00:00:00,27/6/2021 00:00:00,"P03-2022"
"P&V","MYDDELTON HOUSE","PREMISES RELATED EXPENDITURE","CONTRACT CLEANING","2120","P112094-SERVICE-Myddelton House Cleaning Contract",7/6/2021 00:00:00,"248763",1586.52,"BR0632","BRITANNIA SERVICES GROUP LTD",31/5/2021 00:00:00,27/6/2021 00:00:00,"P03-2022"
,"LEE VALLEY CAMPSITE","PREMISES RELATED EXPENDITURE","CONTRACT CLEANING","2120","P112415-SERVICE-Monthly site  Cleaning MAY 21",8/6/2021 00:00:00,"248785",1978.5,"LI0305","LIMPIAR CLEANING",31/5/2021 00:00:00,27/6/2021 00:00:00,"P03-2022"
,"LEE VALLEY CARAVAN PARK","PREMISES RELATED EXPENDITURE","CONTRACT CLEANING","2120","P111954-SERVICE-contract cleaners Limpiar",14/6/2021 00:00:00,"247550",1312,"LI0305","LIMPIAR CLEANING",31/5/2021 00:00:00,27/6/2021 00:00:00,"P03-2022"
,"LEE VALLEY CARAVAN PARK","PREMISES RELATED EXPENDITURE","CONTRACT CLEANING","2120","P112701-SERVICE-Laundry",27/6/2021 00:00:00,"248472",475.94,"JO0168","JOHNSON STALBRIDGE LINEN SERVICES",31/5/2021 00:00:00,27/6/2021 00:00:00,"P03-2022"
,"LEE VALLEY CARAVAN PARK","PREMISES RELATED EXPENDITURE","CONTRACT CLEANING","2120","P112397-SERVICE-Cleaning",14/6/2021 00:00:00,"248784",2686,"LI0305","LIMPIAR CLEANING",31/5/2021 00:00:00,27/6/2021 00:00:00,"P03-2022"
,"LEE VALLEY CARAVAN PARK","PREMISES RELATED EXPENDITURE","CONTRACT CLEANING","2120","P112750-SERVICE-Service Period July",27/6/2021 00:00:00,"249645",90.39,"IN0012","INITIAL WASHROOM HYGIENE",31/5/2021 00:00:00,27/6/2021 00:00:00,"P03-2022"
"P&V","NORTH AREA RANGERS","PREMISES RELATED EXPENDITURE","CONTRACT CLEANING","2120","P111908-SERVICE-Portacabin Cleaning - April 2021",15/6/2021 00:00:00,"249046",150,"GA0431","GARDENS MADE SIMPLE",31/5/2021 00:00:00,27/6/2021 00:00:00,"P03-2022"
"P&V","NORTH AREA RANGERS","PREMISES RELATED EXPENDITURE","CONTRACT CLEANING","2120","GLENDALE GROUNDS MANAGEMENT LI",27/6/2021 00:00:00,"249087",509.09,"GL0214","GLENDALE GROUNDS MANAGEMENT LIMITED",31/5/2021 00:00:00,27/6/2021 00:00:00,"P03-2022"
"P&V","GUNPOWDER PARK","PREMISES RELATED EXPENDITURE","CONTRACT CLEANING","2120","GLENDALE GROUNDS MANAGEMENT LI",27/6/2021 00:00:00,"249087",509.09,"GL0214","GLENDALE GROUNDS MANAGEMENT LIMITED",31/5/2021 00:00:00,27/6/2021 00:00:00,"P03-2022"
"P&V","RIVER LEE COUNTRY PARK","PREMISES RELATED EXPENDITURE","CONTRACT CLEANING","2120","GLENDALE GROUNDS MANAGEMENT LI",27/6/2021 00:00:00,"249087",1018.19,"GL0214","GLENDALE GROUNDS MANAGEMENT LIMITED",31/5/2021 00:00:00,27/6/2021 00:00:00,"P03-2022"
,"LEE VALLEY VELOPARK","PREMISES RELATED EXPENDITURE","CONTRACT CLEANING","2120","P112327-SERVICE-May cleaning 2021",7/6/2021 00:00:00,"248314",637.2,"CA0498","CASNA GROUP",31/5/2021 00:00:00,27/6/2021 00:00:00,"P03-2022"
,"LEE VALLEY VELOPARK","PREMISES RELATED EXPENDITURE","CONTRACT CLEANING","2120","P112707-SERVICE-Cleaning WE 23 & 30 May",27/6/2021 00:00:00,"248868",637.2,"CA0498","CASNA GROUP",31/5/2021 00:00:00,27/6/2021 00:00:00,"P03-2022"
,"LEE VALLEY VELOPARK","PREMISES RELATED EXPENDITURE","CONTRACT CLEANING","2120","P112707-SERVICE-Cleaning WE 23 & 30 May",27/6/2021 00:00:00,"249002",637.2,"CA0498","CASNA GROUP",31/5/2021 00:00:00,27/6/2021 00:00:00,"P03-2022"
,"LV HOCKEY AND TENNIS CENTRE","PREMISES RELATED EXPENDITURE","CONTRACT CLEANING","2120","P112708-SERVICE-Cleaning WE 23 May",27/6/2021 00:00:00,"249003",408.96,"CA0498","CASNA GROUP",31/5/2021 00:00:00,27/6/2021 00:00:00,"P03-2022"
,"LV LEISURE CENTRE CAMPSITE","PREMISES RELATED EXPENDITURE","CONTRACT CLEANING","2120","P112619-SERVICE-Site cleaning",21/6/2021 00:00:00,"248786",1027,"LI0305","LIMPIAR CLEANING",31/5/2021 00:00:00,27/6/2021 00:00:00,"P03-2022"
,"LEE VALLEY RIDING CENTRE","PREMISES RELATED EXPENDITURE","CLEANING CONTRACT","2121","P112353-SERVICE-May reduced cleaning fee",7/6/2021 00:00:00,"248552",540.24,"MA0015","MAYFAIR CLEANING COMPANY LIMITED",31/5/2021 00:00:00,27/6/2021 00:00:00,"P03-2022"
,"LEE VALLEY WHITE WATER CENTRE","PREMISES RELATED EXPENDITURE","CLEANING CONTRACT","2121","P111787-SERVICE-144 hours for 04.05.21 to 30.05.21",15/6/2021 00:00:00,"248867",476.28,"CA0498","CASNA GROUP",31/5/2021 00:00:00,27/6/2021 00:00:00,"P03-2022"
,"LEE VALLEY WHITE WATER CENTRE","PREMISES RELATED EXPENDITURE","CLEANING CONTRACT","2121","P111787-SERVICE-144 hours for 04.05.21 to 30.05.21",15/6/2021 00:00:00,"249004",608.58,"CA0498","CASNA GROUP",31/5/2021 00:00:00,27/6/2021 00:00:00,"P03-2022"
,"LEE VALLEY WHITE WATER CENTRE","PREMISES RELATED EXPENDITURE","CLEANING CONTRACT","2121","P112742-SERVICE-Blanket order from Jun 2021 to Nov 21",27/6/2021 00:00:00,"249475",601.97,"CA0498","CASNA GROUP",31/5/2021 00:00:00,27/6/2021 00:00:00,"P03-2022"
,"LEE VALLEY WHITE WATER CENTRE","PREMISES RELATED EXPENDITURE","CLEANING CONTRACT","2121","P112742-SERVICE-Blanket order from Jun 2021 to Nov 21",27/6/2021 00:00:00,"249476",691.27,"CA0498","CASNA GROUP",31/5/2021 00:00:00,27/6/2021 00:00:00,"P03-2022"
,"LEE VALLEY MARINA STANSTEAD","PREMISES RELATED EXPENDITURE","GM MAIN CONTRACT SCHEDULED","2141","GLENDALE GROUNDS MANAGEMENT LI",27/6/2021 00:00:00,"249087",353.97,"GL0214","GLENDALE GROUNDS MANAGEMENT LIMITED",31/5/2021 00:00:00,27/6/2021 00:00:00,"P03-2022"
,"LEE VALLEY WATERWORKS CENTRE","PREMISES RELATED EXPENDITURE","GM MAIN CONTRACT SCHEDULED","2141","GLENDALE GROUNDS MANAGEMENT LI",27/6/2021 00:00:00,"249087",403.44,"GL0214","GLENDALE GROUNDS MANAGEMENT LIMITED",31/5/2021 00:00:00,27/6/2021 00:00:00,"P03-2022"
,"LEE VALLEY WATERWORKS CENTRE","PREMISES RELATED EXPENDITURE","GM MAIN CONTRACT SCHEDULED","2141","GLENDALE GROUNDS MANAGEMENT LI",27/6/2021 00:00:00,"249087",174.98,"GL0214","GLENDALE GROUNDS MANAGEMENT LIMITED",31/5/2021 00:00:00,27/6/2021 00:00:00,"P03-2022"
,"LEE VALLEY FARM HAYES HILL","PREMISES RELATED EXPENDITURE","GM MAIN CONTRACT SCHEDULED","2141","GLENDALE GROUNDS MANAGEMENT LI",27/6/2021 00:00:00,"249087",188.49,"GL0214","GLENDALE GROUNDS MANAGEMENT LIMITED",31/5/2021 00:00:00,27/6/2021 00:00:00,"P03-2022"
"P&V","EAST INDIA DOCK AND BOW CREEK","PREMISES RELATED EXPENDITURE","GM MAIN CONTRACT SCHEDULED","2141","GLENDALE GROUNDS MANAGEMENT LI",27/6/2021 00:00:00,"249087",716.43,"GL0214","GLENDALE GROUNDS MANAGEMENT LIMITED",31/5/2021 00:00:00,27/6/2021 00:00:00,"P03-2022"
"P&V","EAST INDIA DOCK AND BOW CREEK","PREMISES RELATED EXPENDITURE","GM MAIN CONTRACT SCHEDULED","2141","GLENDALE GROUNDS MANAGEMENT LI",27/6/2021 00:00:00,"249087",874.91,"GL0214","GLENDALE GROUNDS MANAGEMENT LIMITED",31/5/2021 00:00:00,27/6/2021 00:00:00,"P03-2022"
"P&V","NORTH AREA RANGERS","PREMISES RELATED EXPENDITURE","GM MAIN CONTRACT SCHEDULED","2141","GLENDALE GROUNDS MANAGEMENT LI",27/6/2021 00:00:00,"249087",5126.83,"GL0214","GLENDALE GROUNDS MANAGEMENT LIMITED",31/5/2021 00:00:00,27/6/2021 00:00:00,"P03-2022"
"P&V","SOUTH AREA RANGERS","PREMISES RELATED EXPENDITURE","GM MAIN CONTRACT SCHEDULED","2141","GLENDALE GROUNDS MANAGEMENT LI",27/6/2021 00:00:00,"249087",10016.33,"GL0214","GLENDALE GROUNDS MANAGEMENT LIMITED",31/5/2021 00:00:00,27/6/2021 00:00:00,"P03-2022"
"P&V","SOUTH AREA RANGERS","PREMISES RELATED EXPENDITURE","GM MAIN CONTRACT SCHEDULED","2141","GLENDALE GROUNDS MANAGEMENT LI",27/6/2021 00:00:00,"249087",349.96,"GL0214","GLENDALE GROUNDS MANAGEMENT LIMITED",31/5/2021 00:00:00,27/6/2021 00:00:00,"P03-2022"
"P&V","ABBEY GARDENS","PREMISES RELATED EXPENDITURE","GM MAIN CONTRACT SCHEDULED","2141","GLENDALE GROUNDS MANAGEMENT LI",27/6/2021 00:00:00,"249087",2663.46,"GL0214","GLENDALE GROUNDS MANAGEMENT LIMITED",31/5/2021 00:00:00,27/6/2021 00:00:00,"P03-2022"
"P&V","GUNPOWDER PARK","PREMISES RELATED EXPENDITURE","GM MAIN CONTRACT SCHEDULED","2141","GLENDALE GROUNDS MANAGEMENT LI",27/6/2021 00:00:00,"249087",3028.86,"GL0214","GLENDALE GROUNDS MANAGEMENT LIMITED",31/5/2021 00:00:00,27/6/2021 00:00:00,"P03-2022"
"P&V","RIVER LEE COUNTRY PARK","PREMISES RELATED EXPENDITURE","GM MAIN CONTRACT SCHEDULED","2141","GLENDALE GROUNDS MANAGEMENT LI",27/6/2021 00:00:00,"249087",18151.82,"GL0214","GLENDALE GROUNDS MANAGEMENT LIMITED",31/5/2021 00:00:00,27/6/2021 00:00:00,"P03-2022"
"P&V","RIVER LEE COUNTRY PARK","PREMISES RELATED EXPENDITURE","GM MAIN CONTRACT SCHEDULED","2141","GLENDALE GROUNDS MANAGEMENT LI",27/6/2021 00:00:00,"249087",2099.79,"GL0214","GLENDALE GROUNDS MANAGEMENT LIMITED",31/5/2021 00:00:00,27/6/2021 00:00:00,"P03-2022"
,"LEE VALLEY VELOPARK","PREMISES RELATED EXPENDITURE","GM MAIN CONTRACT SCHEDULED","2141","GLENDALE GROUNDS MANAGEMENT LI",27/6/2021 00:00:00,"249087",1692.19,"GL0214","GLENDALE GROUNDS MANAGEMENT LIMITED",31/5/2021 00:00:00,27/6/2021 00:00:00,"P03-2022"
,"LV HOCKEY AND TENNIS CENTRE","PREMISES RELATED EXPENDITURE","GM MAIN CONTRACT SCHEDULED","2141","GLENDALE GROUNDS MANAGEMENT LI",27/6/2021 00:00:00,"249087",2067.88,"GL0214","GLENDALE GROUNDS MANAGEMENT LIMITED",31/5/2021 00:00:00,27/6/2021 00:00:00,"P03-2022"
"P&V","THREE MILLS","PREMISES RELATED EXPENDITURE","GM MAIN CONTRACT SCHEDULED","2141","GLENDALE GROUNDS MANAGEMENT LI",27/6/2021 00:00:00,"249087",1201.75,"GL0214","GLENDALE GROUNDS MANAGEMENT LIMITED",31/5/2021 00:00:00,27/6/2021 00:00:00,"P03-2022"
,"LEE VALLEY RIDING CENTRE","PREMISES RELATED EXPENDITURE","GM MAIN CONTRACT SCHEDULED","2141","GLENDALE GROUNDS MANAGEMENT LI",27/6/2021 00:00:00,"249087",394.45,"GL0214","GLENDALE GROUNDS MANAGEMENT LIMITED",31/5/2021 00:00:00,27/6/2021 00:00:00,"P03-2022"
,"LEE VALLEY ICE CENTRE","PREMISES RELATED EXPENDITURE","GM MAIN CONTRACT SCHEDULED","2141","GLENDALE GROUNDS MANAGEMENT LI",27/6/2021 00:00:00,"249087",288.7,"GL0214","GLENDALE GROUNDS MANAGEMENT LIMITED",31/5/2021 00:00:00,27/6/2021 00:00:00,"P03-2022"
"P&V","FORMER LV LIDO SITE","PREMISES RELATED EXPENDITURE","GM MAIN CONTRACT SCHEDULED","2141","GLENDALE GROUNDS MANAGEMENT LI",27/6/2021 00:00:00,"249087",954.78,"GL0214","GLENDALE GROUNDS MANAGEMENT LIMITED",31/5/2021 00:00:00,27/6/2021 00:00:00,"P03-2022"
,"LEE VALLEY ATHLETICS CENTRE","PREMISES RELATED EXPENDITURE","GM MAIN CONTRACT SCHEDULED","2141","GLENDALE GROUNDS MANAGEMENT LI",27/6/2021 00:00:00,"249087",467.68,"GL0214","GLENDALE GROUNDS MANAGEMENT LIMITED",31/5/2021 00:00:00,27/6/2021 00:00:00,"P03-2022"
,"LEE VALLEY WHITE WATER CENTRE","PREMISES RELATED EXPENDITURE","GM MAIN CONTRACT SCHEDULED","2141","GLENDALE GROUNDS MANAGEMENT LI",27/6/2021 00:00:00,"249087",1658.49,"GL0214","GLENDALE GROUNDS MANAGEMENT LIMITED",31/5/2021 00:00:00,27/6/2021 00:00:00,"P03-2022"
"P&V","SOUTH AREA RANGERS","PREMISES RELATED EXPENDITURE","GM MAIN CONTRACT UNSCHEDULED","2142","P111865-SERVICE-Japanese Knowtweed Treatment at Riding Centre",14/6/2021 00:00:00,"249050",285,"GO0044","S.H.GOSS & CO LTD",31/5/2021 00:00:00,27/6/2021 00:00:00,"P03-2022"
,"LEE VALLEY WATERWORKS CENTRE","PREMISES RELATED EXPENDITURE","GM HORTICULTURE SCHEDULED","2143","GLENDALE GROUNDS MANAGEMENT LI",27/6/2021 00:00:00,"249087",155.61,"GL0214","GLENDALE GROUNDS MANAGEMENT LIMITED",31/5/2021 00:00:00,27/6/2021 00:00:00,"P03-2022"
"P&V","NORTH AREA RANGERS","PREMISES RELATED EXPENDITURE","GM HORTICULTURE SCHEDULED","2143","GLENDALE GROUNDS MANAGEMENT LI",27/6/2021 00:00:00,"249087",218.66,"GL0214","GLENDALE GROUNDS MANAGEMENT LIMITED",31/5/2021 00:00:00,27/6/2021 00:00:00,"P03-2022"
"P&V","SOUTH AREA RANGERS","PREMISES RELATED EXPENDITURE","GM HORTICULTURE SCHEDULED","2143","GLENDALE GROUNDS MANAGEMENT LI",27/6/2021 00:00:00,"249087",126.5,"GL0214","GLENDALE GROUNDS MANAGEMENT LIMITED",31/5/2021 00:00:00,27/6/2021 00:00:00,"P03-2022"
"P&V","ABBEY GARDENS","PREMISES RELATED EXPENDITURE","GM HORTICULTURE SCHEDULED","2143","GLENDALE GROUNDS MANAGEMENT LI",27/6/2021 00:00:00,"249087",1819.81,"GL0214","GLENDALE GROUNDS MANAGEMENT LIMITED",31/5/2021 00:00:00,27/6/2021 00:00:00,"P03-2022"
"P&V","GUNPOWDER PARK","PREMISES RELATED EXPENDITURE","GM HORTICULTURE SCHEDULED","2143","GLENDALE GROUNDS MANAGEMENT LI",27/6/2021 00:00:00,"249087",238.2,"GL0214","GLENDALE GROUNDS MANAGEMENT LIMITED",31/5/2021 00:00:00,27/6/2021 00:00:00,"P03-2022"
"P&V","RIVER LEE COUNTRY PARK","PREMISES RELATED EXPENDITURE","GM HORTICULTURE SCHEDULED","2143","GLENDALE GROUNDS MANAGEMENT LI",27/6/2021 00:00:00,"249087",122.16,"GL0214","GLENDALE GROUNDS MANAGEMENT LIMITED",31/5/2021 00:00:00,27/6/2021 00:00:00,"P03-2022"
,"LEE VALLEY VELOPARK","PREMISES RELATED EXPENDITURE","GM HORTICULTURE SCHEDULED","2143","GLENDALE GROUNDS MANAGEMENT LI",27/6/2021 00:00:00,"249087",24.9,"GL0214","GLENDALE GROUNDS MANAGEMENT LIMITED",31/5/2021 00:00:00,27/6/2021 00:00:00,"P03-2022"
,"LV HOCKEY AND TENNIS CENTRE","PREMISES RELATED EXPENDITURE","GM HORTICULTURE SCHEDULED","2143","GLENDALE GROUNDS MANAGEMENT LI",27/6/2021 00:00:00,"249087",1056.86,"GL0214","GLENDALE GROUNDS MANAGEMENT LIMITED",31/5/2021 00:00:00,27/6/2021 00:00:00,"P03-2022"
"P&V","THREE MILLS","PREMISES RELATED EXPENDITURE","GM HORTICULTURE SCHEDULED","2143","GLENDALE GROUNDS MANAGEMENT LI",27/6/2021 00:00:00,"249087",40,"GL0214","GLENDALE GROUNDS MANAGEMENT LIMITED",31/5/2021 00:00:00,27/6/2021 00:00:00,"P03-2022"
,"LEE VALLEY RIDING CENTRE","PREMISES RELATED EXPENDITURE","GM HORTICULTURE SCHEDULED","2143","GLENDALE GROUNDS MANAGEMENT LI",27/6/2021 00:00:00,"249087",12.38,"GL0214","GLENDALE GROUNDS MANAGEMENT LIMITED",31/5/2021 00:00:00,27/6/2021 00:00:00,"P03-2022"
,"LEE VALLEY WHITE WATER CENTRE","PREMISES RELATED EXPENDITURE","GM HORTICULTURE SCHEDULED","2143","GLENDALE GROUNDS MANAGEMENT LI",27/6/2021 00:00:00,"249087",5.73,"GL0214","GLENDALE GROUNDS MANAGEMENT LIMITED",31/5/2021 00:00:00,27/6/2021 00:00:00,"P03-2022"
"P&V","RIVER LEE COUNTRY PARK","PREMISES RELATED EXPENDITURE","GM ARBORICULTURE UNSCHEDULED","2146","P112408-SERVICE-Emergency Tree Works at Fishers Green to Fall",27/6/2021 00:00:00,"249055",895,"MU0030","P J MUSK TREES",31/5/2021 00:00:00,27/6/2021 00:00:00,"P03-2022"
"P&V","SOUTH AREA RANGERS","PREMISES RELATED EXPENDITURE","GM NON MAIN CONT UNSCHEDULED","2147","P111868-SERVICE-Path Repairs at Middlesex Filter Beds",27/6/2021 00:00:00,"249509",100,"JO0019","R G JOYCE",31/5/2021 00:00:00,27/6/2021 00:00:00,"P03-2022"
"P&V","THREE MILLS","PREMISES RELATED EXPENDITURE","GM NON MAIN CONT UNSCHEDULED","2147","P112159-SERVICE-Footpath Repairs at Three Mills",7/6/2021 00:00:00,"248717",150,"JO0019","R G JOYCE",31/5/2021 00:00:00,27/6/2021 00:00:00,"P03-2022"
"P&V","SOUTH AREA RANGERS","PREMISES RELATED EXPENDITURE","HABITAT MANAGEMENT WORKS","2149","P112357-SERVICE-Japanese Knowtweed at Tottenham Marshes",27/6/2021 00:00:00,"249443",325,"GO0044","S.H.GOSS & CO LTD",31/5/2021 00:00:00,27/6/2021 00:00:00,"P03-2022"
"P&V","ABBEY GARDENS","PREMISES RELATED EXPENDITURE","HABITAT MANAGEMENT WORKS","2149","P111672-SERVICE-1 Digger plus Bucket for hire",9/6/2021 00:00:00,"248842",467.14,"ED0011","EDWARDS PLANT & TOOL HIRE LIMITED",31/5/2021 00:00:00,27/6/2021 00:00:00,"P03-2022"
"P&V","GUNPOWDER PARK","PREMISES RELATED EXPENDITURE","HABITAT MANAGEMENT WORKS","2149","P112356-SERVICE-Japanese Knotweed at Rammey Marsh",21/6/2021 00:00:00,"249207",225,"GO0044","S.H.GOSS & CO LTD",31/5/2021 00:00:00,27/6/2021 00:00:00,"P03-2022"
,"LEE VALLEY MARINA SPRINGFIELD","PREMISES RELATED EXPENDITURE","GENERAL WASTE","2211","P112460-SERVICE-May & June 2021 General waste & Recycling",9/6/2021 00:00:00,"248748",1121.66,"CL0037","VEOLIA ES (UK) LTD",31/5/2021 00:00:00,27/6/2021 00:00:00,"P03-2022"
,"LEE VALLEY MARINA STANSTEAD","PREMISES RELATED EXPENDITURE","GENERAL WASTE","2211","P107647-SERVICE-Weekly waste removal Rye House Moorings",7/6/2021 00:00:00,"248747",197.16,"CL0037","VEOLIA ES (UK) LTD",31/5/2021 00:00:00,27/6/2021 00:00:00,"P03-2022"
,"LEE VALLEY MARINA STANSTEAD","PREMISES RELATED EXPENDITURE","GENERAL WASTE","2211","P112012-SERVICE-Annual waste removal RH &SA moorings",7/6/2021 00:00:00,"248752",597.75,"CL0037","VEOLIA ES (UK) LTD",31/5/2021 00:00:00,27/6/2021 00:00:00,"P03-2022"
"P&V","LEE VALLEY FARM HOLYFIELDHALL","PREMISES RELATED EXPENDITURE","GENERAL WASTE","2211","P112425-SERVICE-Waste for Incineration",14/6/2021 00:00:00,"248850",426.48,"BY0049","BYWATERS (LEYTON) LTD",31/5/2021 00:00:00,27/6/2021 00:00:00,"P03-2022"
,"LEE VALLEY CAMPSITE","PREMISES RELATED EXPENDITURE","GENERAL WASTE","2211","P112457-SERVICE-Monthly Skip Collection MAY 21",9/6/2021 00:00:00,"248751",663.74,"CL0037","VEOLIA ES (UK) LTD",31/5/2021 00:00:00,27/6/2021 00:00:00,"P03-2022"
,"LEE VALLEY CARAVAN PARK","PREMISES RELATED EXPENDITURE","GENERAL WASTE","2211","P112496-SERVICE-Rubbish Collection",9/6/2021 00:00:00,"247677",1532.31,"CL0037","VEOLIA ES (UK) LTD",31/5/2021 00:00:00,27/6/2021 00:00:00,"P03-2022"
,"LEE VALLEY CARAVAN PARK","PREMISES RELATED EXPENDITURE","GENERAL WASTE","2211","P112501-SERVICE-Skip rental and care",14/6/2021 00:00:00,"248754",1584.45,"CL0037","VEOLIA ES (UK) LTD",31/5/2021 00:00:00,27/6/2021 00:00:00,"P03-2022"
"P&V","SOUTH AREA RANGERS","PREMISES RELATED EXPENDITURE","GENERAL WASTE","2211","P112374-SERVICE-Litter Clearance WaterWorks - 5th May Bank Ho",9/6/2021 00:00:00,"248795",150,"JO0019","R G JOYCE",31/5/2021 00:00:00,27/6/2021 00:00:00,"P03-2022"
"P&V","SOUTH AREA RANGERS","PREMISES RELATED EXPENDITURE","GENERAL WASTE","2211","P112578-SERVICE-Litter Clearance Three Mill, WaterWorks & Tot",22/6/2021 00:00:00,"249411",160,"JO0019","R G JOYCE",31/5/2021 00:00:00,27/6/2021 00:00:00,"P03-2022"
"P&V","SOUTH AREA RANGERS","PREMISES RELATED EXPENDITURE","GENERAL WASTE","2211","P112775-SERVICE-Skip at WaterWorks Centre",27/6/2021 00:00:00,"249436",305,"GB0239","GBN SERVICES LTD",31/5/2021 00:00:00,27/6/2021 00:00:00,"P03-2022"
"P&V","RIVER LEE COUNTRY PARK","PREMISES RELATED EXPENDITURE","GENERAL WASTE","2211","P112172-SERVICE-12yd General Rubbish Skip at Holyfield Hall F",14/6/2021 00:00:00,"248852",270,"GB0239","GBN SERVICES LTD",31/5/2021 00:00:00,27/6/2021 00:00:00,"P03-2022"
"P&V","RIVER LEE COUNTRY PARK","PREMISES RELATED EXPENDITURE","GENERAL WASTE","2211","P112172-SERVICE-12yd General Rubbish Skip at Holyfield Hall F",27/6/2021 00:00:00,"249515",270,"GB0239","GBN SERVICES LTD",31/5/2021 00:00:00,27/6/2021 00:00:00,"P03-2022"
,"LEE VALLEY RIDING CENTRE","PREMISES RELATED EXPENDITURE","GENERAL WASTE","2211","P112414-SERVICE-muck heap removal",8/6/2021 00:00:00,"248806",200,"AL0241","ALLMAC HAULAGE LTD",31/5/2021 00:00:00,27/6/2021 00:00:00,"P03-2022"
,"LEE VALLEY RIDING CENTRE","PREMISES RELATED EXPENDITURE","GENERAL WASTE","2211","P112414-SERVICE-muck heap removal",8/6/2021 00:00:00,"248807",200,"AL0241","ALLMAC HAULAGE LTD",31/5/2021 00:00:00,27/6/2021 00:00:00,"P03-2022"
,"LEE VALLEY RIDING CENTRE","PREMISES RELATED EXPENDITURE","GENERAL WASTE","2211","P112045-SERVICE-RECYCLING WASTE AND COMPACTOR RENTAL",9/6/2021 00:00:00,"248825",1931.99,"BY0049","BYWATERS (LEYTON) LTD",31/5/2021 00:00:00,27/6/2021 00:00:00,"P03-2022"
,"LEE VALLEY ICE CENTRE","PREMISES RELATED EXPENDITURE","GENERAL WASTE","2211","P112302-SERVICE-Portable Compactor",8/6/2021 00:00:00,"247744",232.8,"BY0049","BYWATERS (LEYTON) LTD",31/5/2021 00:00:00,27/6/2021 00:00:00,"P03-2022"
,"LEE VALLEY ICE CENTRE","PREMISES RELATED EXPENDITURE","GENERAL WASTE","2211","P112558-SERVICE-Skip Exchange June",27/6/2021 00:00:00,"249646",282.15,"OD0010","O'DONOVAN (WASTE DISPOSAL) LTD",31/5/2021 00:00:00,27/6/2021 00:00:00,"P03-2022"
,"LV LEISURE CENTRE CAMPSITE","PREMISES RELATED EXPENDITURE","GENERAL WASTE","2211","P112698-SERVICE-REFUSE COLLECTION",27/6/2021 00:00:00,"248753",91.89,"CL0037","VEOLIA ES (UK) LTD",31/5/2021 00:00:00,27/6/2021 00:00:00,"P03-2022"
,"LV LEISURE CENTRE CAMPSITE","PREMISES RELATED EXPENDITURE","GENERAL WASTE","2211","P112509-SERVICE-Recycling bins",15/6/2021 00:00:00,"248845",177.6,"BY0049","BYWATERS (LEYTON) LTD",31/5/2021 00:00:00,27/6/2021 00:00:00,"P03-2022"
,"LEE VALLEY WHITE WATER CENTRE","PREMISES RELATED EXPENDITURE","GENERAL WASTE","2211","P112021-SERVICE-Refuse Collections April 21 to March 22",14/6/2021 00:00:00,"248826",732.82,"BY0049","BYWATERS (LEYTON) LTD",31/5/2021 00:00:00,27/6/2021 00:00:00,"P03-2022"
"P&V","MYDDELTON HOUSE","PREMISES RELATED EXPENDITURE","RECYCLING","2214","P111711-SERVICE-Recycling",14/6/2021 00:00:00,"249010",220.62,"CA0341","F & R CAWLEY LTD",31/5/2021 00:00:00,27/6/2021 00:00:00,"P03-2022"
"P&V","MYDDELTON HOUSE","PREMISES RELATED EXPENDITURE","BUILDING SERVICE AGREEMENTS","2220","P112354-SERVICE-Service Maintenance of Visitor Centre & Mydde",7/6/2021 00:00:00,"248460",150,"AB0435","ABSOLUTE DOOR SERVICES ESSEX LTD",31/5/2021 00:00:00,27/6/2021 00:00:00,"P03-2022"
"P&V","MYDDELTON HOUSE","PREMISES RELATED EXPENDITURE","BUILDING SERVICE AGREEMENTS","2220","P112427-SERVICE-TV License",14/6/2021 00:00:00,"248828",159,"TV0065","TV LICENSING",31/5/2021 00:00:00,27/6/2021 00:00:00,"P03-2022"
"P&V","MYDDELTON HOUSE","PREMISES RELATED EXPENDITURE","BUILDING SERVICE AGREEMENTS","2220","P112666-SERVICE-Annual Inspection of Pushlocks and Wire Syste",22/6/2021 00:00:00,"249398",389,"OC0009","PTSG PREMIER TECHNICAL SERVICES GROUP",31/5/2021 00:00:00,27/6/2021 00:00:00,"P03-2022"
"P&V","MYDDELTON HOUSE","PREMISES RELATED EXPENDITURE","BUILDING SERVICE AGREEMENTS","2220","P111582-SERVICE-Sanitary Services",27/6/2021 00:00:00,"249429",53.44,"PE0015","PHS GROUP PLC",31/5/2021 00:00:00,27/6/2021 00:00:00,"P03-2022"
"P&V","MYDDELTON HOUSE","PREMISES RELATED EXPENDITURE","BUILDING SERVICE AGREEMENTS","2220","P112762-SERVICE-Sanitary Services",27/6/2021 00:00:00,"249663",53.44,"PE0015","PHS GROUP PLC",31/5/2021 00:00:00,27/6/2021 00:00:00,"P03-2022"
,"LEE VALLEY WATERWORKS CENTRE","PREMISES RELATED EXPENDITURE","BUILDING SERVICE AGREEMENTS","2220","P112710-SERVICE-Annual Fire Exstinguisher Service",27/6/2021 00:00:00,"249449",64.5,"CO0199","ENGIE FM LIMITED",31/5/2021 00:00:00,27/6/2021 00:00:00,"P03-2022"
,"LEE VALLEY WATERWORKS CENTRE","PREMISES RELATED EXPENDITURE","BUILDING SERVICE AGREEMENTS","2220","P112674-SERVICE-Monthly MPG Checks WaterWorks - April",27/6/2021 00:00:00,"249450",419.25,"CO0199","ENGIE FM LIMITED",31/5/2021 00:00:00,27/6/2021 00:00:00,"P03-2022"
,"LEE VALLEY CAMPSITE","PREMISES RELATED EXPENDITURE","BUILDING SERVICE AGREEMENTS","2220","P111873-SERVICE-Works on Static 20",14/6/2021 00:00:00,"248857",210,"SO0400","SOUTHERN GREEN SERVICES LIMITED",31/5/2021 00:00:00,27/6/2021 00:00:00,"P03-2022"
,"LEE VALLEY CAMPSITE","PREMISES RELATED EXPENDITURE","BUILDING SERVICE AGREEMENTS","2220","P111873-SERVICE-Works on Static 43",14/6/2021 00:00:00,"248857",485,"SO0400","SOUTHERN GREEN SERVICES LIMITED",31/5/2021 00:00:00,27/6/2021 00:00:00,"P03-2022"
,"LEE VALLEY CAMPSITE","PREMISES RELATED EXPENDITURE","BUILDING SERVICE AGREEMENTS","2220","P112411-SERVICE-Smoke Detectors",14/6/2021 00:00:00,"248875",286.76,"AC0012","ACTIVE SECURITY GROUP LTD",31/5/2021 00:00:00,27/6/2021 00:00:00,"P03-2022"
,"LEE VALLEY CAMPSITE","PREMISES RELATED EXPENDITURE","BUILDING SERVICE AGREEMENTS","2220","P112544-SERVICE-Pest Control June  21",14/6/2021 00:00:00,"249062",70,"VE0006","VERMINATE CITY & RURAL PEST CONTROL LTD",31/5/2021 00:00:00,27/6/2021 00:00:00,"P03-2022"
,"LEE VALLEY CAMPSITE","PREMISES RELATED EXPENDITURE","BUILDING SERVICE AGREEMENTS","2220","P111447-SERVICE-A Block Chlorination - 29.03.2021",21/6/2021 00:00:00,"249157",630,"SO0400","SOUTHERN GREEN SERVICES LIMITED",31/5/2021 00:00:00,27/6/2021 00:00:00,"P03-2022"
,"LEE VALLEY CAMPSITE","PREMISES RELATED EXPENDITURE","BUILDING SERVICE AGREEMENTS","2220","P111448-SERVICE-B BLOCK CHLORINATION - 29.03.2021",21/6/2021 00:00:00,"249158",630,"SO0400","SOUTHERN GREEN SERVICES LIMITED",31/5/2021 00:00:00,27/6/2021 00:00:00,"P03-2022"
,"LEE VALLEY CAMPSITE","PREMISES RELATED EXPENDITURE","BUILDING SERVICE AGREEMENTS","2220","P112326-SERVICE-Boiler repairs  Toliet Block B",15/6/2021 00:00:00,"249159",930,"SO0400","SOUTHERN GREEN SERVICES LIMITED",31/5/2021 00:00:00,27/6/2021 00:00:00,"P03-2022"
,"LEE VALLEY CAMPSITE","PREMISES RELATED EXPENDITURE","BUILDING SERVICE AGREEMENTS","2220","P112326-SERVICE-Pressure relief valve",15/6/2021 00:00:00,"249159",125,"SO0400","SOUTHERN GREEN SERVICES LIMITED",31/5/2021 00:00:00,27/6/2021 00:00:00,"P03-2022"
,"LEE VALLEY CAMPSITE","PREMISES RELATED EXPENDITURE","BUILDING SERVICE AGREEMENTS","2220","P112645-SERVICE-Testing of Panic Alarm",27/6/2021 00:00:00,"249404",105,"AC0012","ACTIVE SECURITY GROUP LTD",31/5/2021 00:00:00,27/6/2021 00:00:00,"P03-2022"
,"LEE VALLEY CAMPSITE","PREMISES RELATED EXPENDITURE","BUILDING SERVICE AGREEMENTS","2220","P112646-SERVICE-Block B Ladies - Ublock/repaiir",27/6/2021 00:00:00,"249460",220,"SO0400","SOUTHERN GREEN SERVICES LIMITED",31/5/2021 00:00:00,27/6/2021 00:00:00,"P03-2022"
"P&V","NORTH AREA RANGERS","PREMISES RELATED EXPENDITURE","BUILDING SERVICE AGREEMENTS","2220","P111201-SERVICE-Sanitary Disposal - Old Mill & Meadows Toilet",27/6/2021 00:00:00,"249428",17.58,"PE0015","PHS GROUP PLC",31/5/2021 00:00:00,27/6/2021 00:00:00,"P03-2022"
"P&V","GUNPOWDER PARK","PREMISES RELATED EXPENDITURE","BUILDING SERVICE AGREEMENTS","2220","P111200-SERVICE-Sanitary Disposal - Gunpowder Park - Public T",21/6/2021 00:00:00,"249154",14.3,"PE0015","PHS GROUP PLC",31/5/2021 00:00:00,27/6/2021 00:00:00,"P03-2022"
"P&V","GUNPOWDER PARK","PREMISES RELATED EXPENDITURE","BUILDING SERVICE AGREEMENTS","2220","P108593-SERVICE-Building Servcie Agreement - Gunpowder Park",27/6/2021 00:00:00,"249618",139.16,"CO0199","ENGIE FM LIMITED",31/5/2021 00:00:00,27/6/2021 00:00:00,"P03-2022"
"P&V","RIVER LEE COUNTRY PARK","PREMISES RELATED EXPENDITURE","BUILDING SERVICE AGREEMENTS","2220","P111202-SERVICE-Sanitary Disposal - Fishers Green Toilets",21/6/2021 00:00:00,"249155",11.59,"PE0015","PHS GROUP PLC",31/5/2021 00:00:00,27/6/2021 00:00:00,"P03-2022"
"P&V","RIVER LEE COUNTRY PARK","PREMISES RELATED EXPENDITURE","BUILDING SERVICE AGREEMENTS","2220","P107354-SERVICE-Sharps Container - Ranger Farm Office",27/6/2021 00:00:00,"249415",5.72,"PE0015","PHS GROUP PLC",31/5/2021 00:00:00,27/6/2021 00:00:00,"P03-2022"
"P&V","RIVER LEE COUNTRY PARK","PREMISES RELATED EXPENDITURE","BUILDING SERVICE AGREEMENTS","2220","P107354-SERVICE-Sharps Container - Ranger Farm Office",27/6/2021 00:00:00,"249417",6.97,"PE0015","PHS GROUP PLC",31/5/2021 00:00:00,27/6/2021 00:00:00,"P03-2022"
"P&V","RIVER LEE COUNTRY PARK","PREMISES RELATED EXPENDITURE","BUILDING SERVICE AGREEMENTS","2220","P107354-SERVICE-Sharps Container - Ranger Farm Office",27/6/2021 00:00:00,"249418",5.45,"PE0015","PHS GROUP PLC",31/5/2021 00:00:00,27/6/2021 00:00:00,"P03-2022"
"P&V","RIVER LEE COUNTRY PARK","PREMISES RELATED EXPENDITURE","BUILDING SERVICE AGREEMENTS","2220","P107354-SERVICE-Sharps Container - Ranger Farm Office",27/6/2021 00:00:00,"249419",3.02,"PE0015","PHS GROUP PLC",31/5/2021 00:00:00,27/6/2021 00:00:00,"P03-2022"
,"LEE VALLEY VELOPARK","PREMISES RELATED EXPENDITURE","BUILDING SERVICE AGREEMENTS","2220","P111428-SERVICE-Repairs - Grey water booster option 1",8/6/2021 00:00:00,"248465",2779,"GI0137","R & P GIBBS LIMITED",31/5/2021 00:00:00,27/6/2021 00:00:00,"P03-2022"
,"LEE VALLEY VELOPARK","PREMISES RELATED EXPENDITURE","BUILDING SERVICE AGREEMENTS","2220","P111612-SERVICE-Essential Maintenance Contract",8/6/2021 00:00:00,"248730",770,"PH0319","SIGNIFY COMMERCIAL UK LIMITED (PHILIPS LIGHTI",31/5/2021 00:00:00,27/6/2021 00:00:00,"P03-2022"
,"LEE VALLEY VELOPARK","PREMISES RELATED EXPENDITURE","BUILDING SERVICE AGREEMENTS","2220","P112451-SERVICE-Waste collection MAY 2021",8/6/2021 00:00:00,"248749",543.86,"CL0037","VEOLIA ES (UK) LTD",31/5/2021 00:00:00,27/6/2021 00:00:00,"P03-2022"
,"LEE VALLEY VELOPARK","PREMISES RELATED EXPENDITURE","BUILDING SERVICE AGREEMENTS","2220","P112097-SERVICE-Pest Control 2021-2022",22/6/2021 00:00:00,"249060",250,"VE0006","VERMINATE CITY & RURAL PEST CONTROL LTD",31/5/2021 00:00:00,27/6/2021 00:00:00,"P03-2022"
,"LV HOCKEY AND TENNIS CENTRE","PREMISES RELATED EXPENDITURE","BUILDING SERVICE AGREEMENTS","2220","P112442-SERVICE-Service agreement",8/6/2021 00:00:00,"248838",45,"WI0127","WISEGROVE LTD T/AS ACTIN TIME",31/5/2021 00:00:00,27/6/2021 00:00:00,"P03-2022"
,"LV HOCKEY AND TENNIS CENTRE","PREMISES RELATED EXPENDITURE","BUILDING SERVICE AGREEMENTS","2220","P110517-SERVICE-Service Contract Renewal 2021-2022",22/6/2021 00:00:00,"248878",1025,"GO0211","GOODWATER LTD",31/5/2021 00:00:00,27/6/2021 00:00:00,"P03-2022"
,"LV HOCKEY AND TENNIS CENTRE","PREMISES RELATED EXPENDITURE","BUILDING SERVICE AGREEMENTS","2220","P112098-SERVICE-Pest Control 2021-2022",22/6/2021 00:00:00,"249060",150,"VE0006","VERMINATE CITY & RURAL PEST CONTROL LTD",31/5/2021 00:00:00,27/6/2021 00:00:00,"P03-2022"
,"LEE VALLEY RIDING CENTRE","PREMISES RELATED EXPENDITURE","BUILDING SERVICE AGREEMENTS","2220","P112416-SERVICE-12 month fire hydrant service",8/6/2021 00:00:00,"248618",174,"TY0615","TYCO FIRE & INTEGRATED SOLUTIONS (UK) LTD",31/5/2021 00:00:00,27/6/2021 00:00:00,"P03-2022"
,"LV LEISURE CENTRE CAMPSITE","PREMISES RELATED EXPENDITURE","BUILDING SERVICE AGREEMENTS","2220","P112309-SERVICE-Family block gas safety check",9/6/2021 00:00:00,"248816",260,"SO0400","SOUTHERN GREEN SERVICES LIMITED",31/5/2021 00:00:00,27/6/2021 00:00:00,"P03-2022"
,"LV LEISURE CENTRE CAMPSITE","PREMISES RELATED EXPENDITURE","BUILDING SERVICE AGREEMENTS","2220","P112308-SERVICE-Family block chlorination",9/6/2021 00:00:00,"248819",1135,"SO0400","SOUTHERN GREEN SERVICES LIMITED",31/5/2021 00:00:00,27/6/2021 00:00:00,"P03-2022"
,"LV LEISURE CENTRE CAMPSITE","PREMISES RELATED EXPENDITURE","BUILDING SERVICE AGREEMENTS","2220","P112618-SERVICE-Sanitarydisposal",21/6/2021 00:00:00,"249027",142.29,"PE0015","PHS GROUP PLC",31/5/2021 00:00:00,27/6/2021 00:00:00,"P03-2022"
,"LV LEISURE CENTRE CAMPSITE","PREMISES RELATED EXPENDITURE","BUILDING SERVICE AGREEMENTS","2220","P112617-SERVICE-Pest control",21/6/2021 00:00:00,"249063",140,"VE0006","VERMINATE CITY & RURAL PEST CONTROL LTD",31/5/2021 00:00:00,27/6/2021 00:00:00,"P03-2022"
"P&V","MYDDELTON HOUSE","PREMISES RELATED EXPENDITURE","BUILDING REPAIRS & MAINTENANCE","2222","P111517-SERVICE-Bungalow to North Lodge Fibre",22/6/2021 00:00:00,"246752",585,"IQ0022","IQUAL",31/5/2021 00:00:00,27/6/2021 00:00:00,"P03-2022"
"CEO","RESIDENTIAL ACCOMMODATION","PREMISES RELATED EXPENDITURE","BUILDING REPAIRS & MAINTENANCE","2222","P112265-SERVICE-Riding Centre 3 x Treatment in Kitchen",8/6/2021 00:00:00,"247785",229.5,"VE0006","VERMINATE CITY & RURAL PEST CONTROL LTD",31/5/2021 00:00:00,27/6/2021 00:00:00,"P03-2022"
"CEO","RESIDENTIAL ACCOMMODATION","PREMISES RELATED EXPENDITURE","BUILDING REPAIRS & MAINTENANCE","2222","P112267-SERVICE-Various Works",8/6/2021 00:00:00,"247825",100,"CA0165","CASTLES",31/5/2021 00:00:00,27/6/2021 00:00:00,"P03-2022"
"CEO","RESIDENTIAL ACCOMMODATION","PREMISES RELATED EXPENDITURE","BUILDING REPAIRS & MAINTENANCE","2222","P112267-SERVICE-Various Works",8/6/2021 00:00:00,"247826",90,"CA0165","CASTLES",31/5/2021 00:00:00,27/6/2021 00:00:00,"P03-2022"
"CEO","RESIDENTIAL ACCOMMODATION","PREMISES RELATED EXPENDITURE","BUILDING REPAIRS & MAINTENANCE","2222","P112267-SERVICE-Various Works",8/6/2021 00:00:00,"247827",120,"CA0165","CASTLES",31/5/2021 00:00:00,27/6/2021 00:00:00,"P03-2022"
"CEO","RESIDENTIAL ACCOMMODATION","PREMISES RELATED EXPENDITURE","BUILDING REPAIRS & MAINTENANCE","2222","P112267-SERVICE-Various Works",8/6/2021 00:00:00,"247828",880,"CA0165","CASTLES",31/5/2021 00:00:00,27/6/2021 00:00:00,"P03-2022"
"CEO","RESIDENTIAL ACCOMMODATION","PREMISES RELATED EXPENDITURE","BUILDING REPAIRS & MAINTENANCE","2222","P112268-SERVICE-Connaught Close Quarterly Cover",8/6/2021 00:00:00,"247872",70,"VE0006","VERMINATE CITY & RURAL PEST CONTROL LTD",31/5/2021 00:00:00,27/6/2021 00:00:00,"P03-2022"
"CEO","RESIDENTIAL ACCOMMODATION","PREMISES RELATED EXPENDITURE","BUILDING REPAIRS & MAINTENANCE","2222","P112228-SERVICE-Myd Hse Gate Lodge CCTV Survey",8/6/2021 00:00:00,"248846",1035,"TA0339","TANKER & DRAIN SOLUTIONS LTD",31/5/2021 00:00:00,27/6/2021 00:00:00,"P03-2022"
"CEO","RESIDENTIAL ACCOMMODATION","PREMISES RELATED EXPENDITURE","BUILDING REPAIRS & MAINTENANCE","2222","P112594-SERVICE-1 Bungalow Monthly Pest Control",21/6/2021 00:00:00,"249067",53.34,"VE0006","VERMINATE CITY & RURAL PEST CONTROL LTD",31/5/2021 00:00:00,27/6/2021 00:00:00,"P03-2022"
"CEO","COMMERCIAL ACCOMMODATION","PREMISES RELATED EXPENDITURE","BUILDING REPAIRS & MAINTENANCE","2222","P111994-SERVICE-2 x Stop blocks concrete barriers",8/6/2021 00:00:00,"248755",62,"NA0171","NAIVETTE SERVICES LTD",31/5/2021 00:00:00,27/6/2021 00:00:00,"P03-2022"
,"LEE VALLEY MARINA SPRINGFIELD","PREMISES RELATED EXPENDITURE","BUILDING REPAIRS & MAINTENANCE","2222","P111626-SERVICE-General Maintenance",14/6/2021 00:00:00,"249058",335,"DE0013","DENNIS SECURITY CENTRE",31/5/2021 00:00:00,27/6/2021 00:00:00,"P03-2022"
,"LEE VALLEY MARINA SPRINGFIELD","PREMISES RELATED EXPENDITURE","BUILDING REPAIRS & MAINTENANCE","2222","P111626-SERVICE-General Maintenance",21/6/2021 00:00:00,"249228",110,"DE0013","DENNIS SECURITY CENTRE",31/5/2021 00:00:00,27/6/2021 00:00:00,"P03-2022"
,"LEE VALLEY MARINA SPRINGFIELD","PREMISES RELATED EXPENDITURE","BUILDING REPAIRS & MAINTENANCE","2222","P112673-SERVICE-Re Build CAME motor replace broken parts",22/6/2021 00:00:00,"249229",385.75,"DE0013","DENNIS SECURITY CENTRE",31/5/2021 00:00:00,27/6/2021 00:00:00,"P03-2022"
,"LEE VALLEY MARINA STANSTEAD","PREMISES RELATED EXPENDITURE","BUILDING REPAIRS & MAINTENANCE","2222","P112654-SERVICE-boiler repair",27/6/2021 00:00:00,"249621",245,"TA0204","TAYLOR HEATING",31/5/2021 00:00:00,27/6/2021 00:00:00,"P03-2022"
"P&V","LEE VALLEY FARM HOLYFIELDHALL","PREMISES RELATED EXPENDITURE","BUILDING REPAIRS & MAINTENANCE","2222","P112222-SERVICE-PPM Service",21/6/2021 00:00:00,"249191",335,"ES0392","ESSEX DOORS & SHUTTERS LTD",31/5/2021 00:00:00,27/6/2021 00:00:00,"P03-2022"
"P&V","LEE VALLEY FARM HOLYFIELDHALL","PREMISES RELATED EXPENDITURE","BUILDING REPAIRS & MAINTENANCE","2222","P111466-SERVICE-Building Repairs",21/6/2021 00:00:00,"249397",2.44,"JE0011","SAINT-GOBAIN BUILDING DISTRIBUTION",31/5/2021 00:00:00,27/6/2021 00:00:00,"P03-2022"
"P&V","LEE VALLEY FARM HOLYFIELDHALL","PREMISES RELATED EXPENDITURE","BUILDING REPAIRS & MAINTENANCE","2222","P112078-SERVICE-Service of Water Treatment as Per Quote: 4158",27/6/2021 00:00:00,"249463",929.59,"PU0442","PUMPING SOLUTIONS (UK) LTD",31/5/2021 00:00:00,27/6/2021 00:00:00,"P03-2022"
,"LEE VALLEY CAMPSITE","PREMISES RELATED EXPENDITURE","BUILDING REPAIRS & MAINTENANCE","2222","P112647-SERVICE-Wi Fi Poles and works",27/6/2021 00:00:00,"249602",6000,"MO0041","CAPSER",31/5/2021 00:00:00,27/6/2021 00:00:00,"P03-2022"
,"LEE VALLEY CAMPSITE","PREMISES RELATED EXPENDITURE","BUILDING REPAIRS & MAINTENANCE","2222","CAPSER",27/6/2021 00:00:00,"249602",-6000,"MO0041","CAPSER",31/5/2021 00:00:00,27/6/2021 00:00:00,"P03-2022"
,"LEE VALLEY CAMPSITE","PREMISES RELATED EXPENDITURE","BUILDING REPAIRS & MAINTENANCE","2222","CAPSER",27/6/2021 00:00:00,"249602",500,"MO0041","CAPSER",31/5/2021 00:00:00,27/6/2021 00:00:00,"P03-2022"
,"LEE VALLEY CAMPSITE","PREMISES RELATED EXPENDITURE","BUILDING REPAIRS & MAINTENANCE","2222","CAPSER",27/6/2021 00:00:00,"249602",5500,"MO0041","CAPSER",31/5/2021 00:00:00,27/6/2021 00:00:00,"P03-2022"
,"LEE VALLEY CARAVAN PARK","PREMISES RELATED EXPENDITURE","BUILDING REPAIRS & MAINTENANCE","2222","P112751-SERVICE-Problems with drains on plot 9",27/6/2021 00:00:00,"249600",340,"CO0550","CONVERT WATER LTD",31/5/2021 00:00:00,27/6/2021 00:00:00,"P03-2022"
"P&V","RIVER LEE COUNTRY PARK","PREMISES RELATED EXPENDITURE","BUILDING REPAIRS & MAINTENANCE","2222","P112319-SERVICE-Works at Wildlife Discovery Centre",22/6/2021 00:00:00,"249187",390,"CA0508","CARMELCREST LTD",31/5/2021 00:00:00,27/6/2021 00:00:00,"P03-2022"
"P&V","RIVER LEE COUNTRY PARK","PREMISES RELATED EXPENDITURE","BUILDING REPAIRS & MAINTENANCE","2222","P112319-SERVICE-Works at Wildlife Discovery Centre",22/6/2021 00:00:00,"249187",195,"CA0508","CARMELCREST LTD",31/5/2021 00:00:00,27/6/2021 00:00:00,"P03-2022"
"P&V","RIVER LEE COUNTRY PARK","PREMISES RELATED EXPENDITURE","BUILDING REPAIRS & MAINTENANCE","2222","P112319-SERVICE-Works at Wildlife Discovery Centre",22/6/2021 00:00:00,"249187",582,"CA0508","CARMELCREST LTD",31/5/2021 00:00:00,27/6/2021 00:00:00,"P03-2022"
"P&V","RIVER LEE COUNTRY PARK","PREMISES RELATED EXPENDITURE","BUILDING REPAIRS & MAINTENANCE","2222","P112533-SERVICE-Unblock Toilets at Fishers Green",21/6/2021 00:00:00,"249203",98,"KE0023","KENDALL & SONS LIMITED",31/5/2021 00:00:00,27/6/2021 00:00:00,"P03-2022"
"P&V","RIVER LEE COUNTRY PARK","PREMISES RELATED EXPENDITURE","BUILDING REPAIRS & MAINTENANCE","2222","P112534-SERVICE-Unblock Urinal Toilets at Old Mill & Meadows",21/6/2021 00:00:00,"249204",98,"KE0023","KENDALL & SONS LIMITED",31/5/2021 00:00:00,27/6/2021 00:00:00,"P03-2022"
,"LEE VALLEY VELOPARK","PREMISES RELATED EXPENDITURE","BUILDING REPAIRS & MAINTENANCE","2222","P112107-SERVICE-Additional Legionella Sampling",7/6/2021 00:00:00,"248302",440,"GO0211","GOODWATER LTD",31/5/2021 00:00:00,27/6/2021 00:00:00,"P03-2022"
,"LEE VALLEY VELOPARK","PREMISES RELATED EXPENDITURE","BUILDING REPAIRS & MAINTENANCE","2222","P111937-SERVICE-Electric Passenger Lift 3 repair",22/6/2021 00:00:00,"249015",564,"GU0210","GUIDELINE LIFT SERVICES LTD",31/5/2021 00:00:00,27/6/2021 00:00:00,"P03-2022"
,"LEE VALLEY VELOPARK","PREMISES RELATED EXPENDITURE","BUILDING REPAIRS & MAINTENANCE","2222","P111307-SERVICE-BMX Fence Repairs",22/6/2021 00:00:00,"249093",798,"KE0023","KENDALL & SONS LIMITED",31/5/2021 00:00:00,27/6/2021 00:00:00,"P03-2022"
,"LEE VALLEY VELOPARK","PREMISES RELATED EXPENDITURE","BUILDING REPAIRS & MAINTENANCE","2222","P112580-SERVICE-Call Out & Batteries",27/6/2021 00:00:00,"249507",246,"GU0210","GUIDELINE LIFT SERVICES LTD",31/5/2021 00:00:00,27/6/2021 00:00:00,"P03-2022"
,"LV HOCKEY AND TENNIS CENTRE","PREMISES RELATED EXPENDITURE","BUILDING REPAIRS & MAINTENANCE","2222","P112452-SERVICE-HydroTech Power wash pitch",8/6/2021 00:00:00,"248760",3000,"TE0273","TECHNICAL SURFACES LTD",31/5/2021 00:00:00,27/6/2021 00:00:00,"P03-2022"
,"LV HOCKEY AND TENNIS CENTRE","PREMISES RELATED EXPENDITURE","BUILDING REPAIRS & MAINTENANCE","2222","P112454-SERVICE-Pitch 1 & 2 works",22/6/2021 00:00:00,"249214",557.5,"IR0149","IRRIGATION CONTROL LIMITED",31/5/2021 00:00:00,27/6/2021 00:00:00,"P03-2022"
,"LV HOCKEY AND TENNIS CENTRE","PREMISES RELATED EXPENDITURE","BUILDING REPAIRS & MAINTENANCE","2222","P112681-SERVICE-Call Out 6 Oct 2020",27/6/2021 00:00:00,"249661",140,"GU0210","GUIDELINE LIFT SERVICES LTD",31/5/2021 00:00:00,27/6/2021 00:00:00,"P03-2022"
,"LEE VALLEY RIDING CENTRE","PREMISES RELATED EXPENDITURE","BUILDING REPAIRS & MAINTENANCE","2222","P112358-SERVICE-soap and sanitary dispensers and bins",8/6/2021 00:00:00,"247288",91.17,"PE0015","PHS GROUP PLC",31/5/2021 00:00:00,27/6/2021 00:00:00,"P03-2022"
,"LEE VALLEY RIDING CENTRE","PREMISES RELATED EXPENDITURE","BUILDING REPAIRS & MAINTENANCE","2222","P112355-SERVICE-12 month maintenance of fire alarm",8/6/2021 00:00:00,"248072",3311,"AD0015","ADT FIRE & SECURITY PLC",31/5/2021 00:00:00,27/6/2021 00:00:00,"P03-2022"
,"LEE VALLEY RIDING CENTRE","PREMISES RELATED EXPENDITURE","BUILDING REPAIRS & MAINTENANCE","2222","P112358-SERVICE-soap and sanitary dispensers and bins",8/6/2021 00:00:00,"248097",92.78,"PE0015","PHS GROUP PLC",31/5/2021 00:00:00,27/6/2021 00:00:00,"P03-2022"
,"LEE VALLEY RIDING CENTRE","PREMISES RELATED EXPENDITURE","BUILDING REPAIRS & MAINTENANCE","2222","P112358-SERVICE-soap and sanitary dispensers and bins",7/6/2021 00:00:00,"248518",91.17,"PE0015","PHS GROUP PLC",31/5/2021 00:00:00,27/6/2021 00:00:00,"P03-2022"
,"LV LEISURE CENTRE CAMPSITE","PREMISES RELATED EXPENDITURE","BUILDING REPAIRS & MAINTENANCE","2222","P112312-SERVICE-Service boiler and material repairs",7/6/2021 00:00:00,"248815",470,"SO0400","SOUTHERN GREEN SERVICES LIMITED",31/5/2021 00:00:00,27/6/2021 00:00:00,"P03-2022"
,"LV LEISURE CENTRE CAMPSITE","PREMISES RELATED EXPENDITURE","BUILDING REPAIRS & MAINTENANCE","2222","P112311-SERVICE-Bib tap on camping field",9/6/2021 00:00:00,"248817",45,"SO0400","SOUTHERN GREEN SERVICES LIMITED",31/5/2021 00:00:00,27/6/2021 00:00:00,"P03-2022"
,"LV LEISURE CENTRE CAMPSITE","PREMISES RELATED EXPENDITURE","BUILDING REPAIRS & MAINTENANCE","2222","P112310-SERVICE-Value to incoming water main block in Boiler",9/6/2021 00:00:00,"248818",395,"SO0400","SOUTHERN GREEN SERVICES LIMITED",31/5/2021 00:00:00,27/6/2021 00:00:00,"P03-2022"
,"LV LEISURE CENTRE CAMPSITE","PREMISES RELATED EXPENDITURE","BUILDING REPAIRS & MAINTENANCE","2222","P112307-SERVICE-Gents Urinals FB blocked waste pipewoke",9/6/2021 00:00:00,"248820",490,"SO0400","SOUTHERN GREEN SERVICES LIMITED",31/5/2021 00:00:00,27/6/2021 00:00:00,"P03-2022"
,"LV LEISURE CENTRE CAMPSITE","PREMISES RELATED EXPENDITURE","BUILDING REPAIRS & MAINTENANCE","2222","P112314-SERVICE-basin supply and fit and block seal and tiles",15/6/2021 00:00:00,"249095",653,"KE0023","KENDALL & SONS LIMITED",31/5/2021 00:00:00,27/6/2021 00:00:00,"P03-2022"
,"LV LEISURE CENTRE CAMPSITE","PREMISES RELATED EXPENDITURE","BUILDING REPAIRS & MAINTENANCE","2222","KENDALL & SONS LIMITED",15/6/2021 00:00:00,"249096",780,"KE0023","KENDALL & SONS LIMITED",31/5/2021 00:00:00,27/6/2021 00:00:00,"P03-2022"
,"LV LEISURE CENTRE CAMPSITE","PREMISES RELATED EXPENDITURE","BUILDING REPAIRS & MAINTENANCE","2222","KENDALL & SONS LIMITED",15/6/2021 00:00:00,"249096",2503,"KE0023","KENDALL & SONS LIMITED",31/5/2021 00:00:00,27/6/2021 00:00:00,"P03-2022"
,"LV LEISURE CENTRE CAMPSITE","PREMISES RELATED EXPENDITURE","BUILDING REPAIRS & MAINTENANCE","2222","KENDALL & SONS LIMITED",15/6/2021 00:00:00,"249096",-3283,"KE0023","KENDALL & SONS LIMITED",31/5/2021 00:00:00,27/6/2021 00:00:00,"P03-2022"
,"LV LEISURE CENTRE CAMPSITE","PREMISES RELATED EXPENDITURE","BUILDING REPAIRS & MAINTENANCE","2222","P111857-SERVICE-fix both disabled toilets and with pvc tiling",15/6/2021 00:00:00,"249096",3283,"KE0023","KENDALL & SONS LIMITED",31/5/2021 00:00:00,27/6/2021 00:00:00,"P03-2022"
,"LV LEISURE CENTRE CAMPSITE","PREMISES RELATED EXPENDITURE","BUILDING REPAIRS & MAINTENANCE","2222","P111884-SERVICE-To Adjust doors of Pods",14/6/2021 00:00:00,"249098",590,"KE0023","KENDALL & SONS LIMITED",31/5/2021 00:00:00,27/6/2021 00:00:00,"P03-2022"
,"LV LEISURE CENTRE CAMPSITE","PREMISES RELATED EXPENDITURE","BUILDING REPAIRS & MAINTENANCE","2222","P112475-SERVICE-Cistern and valve",22/6/2021 00:00:00,"249160",315,"SO0400","SOUTHERN GREEN SERVICES LIMITED",31/5/2021 00:00:00,27/6/2021 00:00:00,"P03-2022"
,"LV LEISURE CENTRE CAMPSITE","PREMISES RELATED EXPENDITURE","BUILDING REPAIRS & MAINTENANCE","2222","P112474-SERVICE-Pressure valve",22/6/2021 00:00:00,"249161",155,"SO0400","SOUTHERN GREEN SERVICES LIMITED",31/5/2021 00:00:00,27/6/2021 00:00:00,"P03-2022"
,"LV LEISURE CENTRE CAMPSITE","PREMISES RELATED EXPENDITURE","BUILDING REPAIRS & MAINTENANCE","2222","P112473-SERVICE-New taps and filling",21/6/2021 00:00:00,"249162",135,"SO0400","SOUTHERN GREEN SERVICES LIMITED",31/5/2021 00:00:00,27/6/2021 00:00:00,"P03-2022"
,"LEE VALLEY ATHLETICS CENTRE","PREMISES RELATED EXPENDITURE","BUILDING REPAIRS & MAINTENANCE","2222","P110557-SERVICE-LVAC QUO01846 REMEDIAL WORK 5no Radiators",15/6/2021 00:00:00,"249039",4794,"KE0163","KERSHAW MECHANICAL SERVICES LTD",31/5/2021 00:00:00,27/6/2021 00:00:00,"P03-2022"
,"LEE VALLEY ATHLETICS CENTRE","PREMISES RELATED EXPENDITURE","BUILDING REPAIRS & MAINTENANCE","2222","P112362-SERVICE-LVAC WATER SOFTNER SALT",27/6/2021 00:00:00,"249480",212,"AL0074","BRENNTAG UK GROUP LIMITED",31/5/2021 00:00:00,27/6/2021 00:00:00,"P03-2022"
,"LEE VALLEY WHITE WATER CENTRE","PREMISES RELATED EXPENDITURE","BUILDING REPAIRS & MAINTENANCE","2222","P112505-SERVICE-Soil Pipe Blockage",21/6/2021 00:00:00,"249380",150,"GI0137","R & P GIBBS LIMITED",31/5/2021 00:00:00,27/6/2021 00:00:00,"P03-2022"
"CEO","LVLC SERVICE CHARGE","PREMISES RELATED EXPENDITURE","BUILDING REPAIRS & MAINTENANCE","2222","P112704-SERVICE-Contract Sweep",27/6/2021 00:00:00,"249405",300,"SE0374","SELECT SWEEPER HIRE LTD",31/5/2021 00:00:00,27/6/2021 00:00:00,"P03-2022"
,"LEE VALLEY ATHLETICS CENTRE","PREMISES RELATED EXPENDITURE","ENGINEERING SERVICES CONTRACT","2223","P111590-SERVICE-LVAC CARE COMMUNICATION SYSTEM 21/22",15/6/2021 00:00:00,"248068",363,"AD0015","ADT FIRE & SECURITY PLC",31/5/2021 00:00:00,27/6/2021 00:00:00,"P03-2022"
,"LEE VALLEY ATHLETICS CENTRE","PREMISES RELATED EXPENDITURE","ENGINEERING SERVICES CONTRACT","2223","P111584-SERVICE-LVAC ANNUAL CONTRACT",7/6/2021 00:00:00,"248466",1441,"DA0075","D.A.T.A. CLEANING SERVICES",31/5/2021 00:00:00,27/6/2021 00:00:00,"P03-2022"
,"LEE VALLEY ATHLETICS CENTRE","PREMISES RELATED EXPENDITURE","ENGINEERING SERVICES CONTRACT","2223","P111604-SERVICE-LVAC ANNUAL REFUSE COLLECTION 21/22",9/6/2021 00:00:00,"248761",418.5,"SI0659","SIMPLY WASTE SOLUTIONS",31/5/2021 00:00:00,27/6/2021 00:00:00,"P03-2022"
,"LEE VALLEY ATHLETICS CENTRE","PREMISES RELATED EXPENDITURE","ENGINEERING SERVICES CONTRACT","2223","P111913-SERVICE-LVAC  WK220068574 ANNUAL PEST CONTROL 21/22",27/6/2021 00:00:00,"249186",1441.18,"EN0124","LONDON BOROUGH OF ENFIELD PEST CONTROL",31/5/2021 00:00:00,27/6/2021 00:00:00,"P03-2022"
,"LEE VALLEY WHITE WATER CENTRE","PREMISES RELATED EXPENDITURE","ENGINEERING SERVICES CONTRACT","2223","P112007-SERVICE-To provide the services of an authorised pers",7/6/2021 00:00:00,"248744",1530,"AM0309","AMP 5 LIMITED",31/5/2021 00:00:00,27/6/2021 00:00:00,"P03-2022"
,"LEE VALLEY WHITE WATER CENTRE","PREMISES RELATED EXPENDITURE","ENGINEERING SERVICES CONTRACT","2223","P111816-SERVICE-Maintenance Contract",21/6/2021 00:00:00,"249357",257.71,"GL0419","GLOBAL FIRE AND SECURITY SYSTEMS",31/5/2021 00:00:00,27/6/2021 00:00:00,"P03-2022"
,"LEE VALLEY WHITE WATER CENTRE","PREMISES RELATED EXPENDITURE","ENGINEERING SERVICES CONTRACT","2223","P111816-SERVICE-Maintenance Contract",21/6/2021 00:00:00,"249393",68.63,"GL0419","GLOBAL FIRE AND SECURITY SYSTEMS",31/5/2021 00:00:00,27/6/2021 00:00:00,"P03-2022"
"P&V","NORTH AREA RANGERS","SUPPLIES AND SERVICES","FENCES/GATES ETC.","2231","P112106-SERVICE-40x Motorway Rails",21/6/2021 00:00:00,"249134",238,"JW0004","J & W FENCING LIMITED",31/5/2021 00:00:00,27/6/2021 00:00:00,"P03-2022"
"P&V","NORTH AREA RANGERS","SUPPLIES AND SERVICES","FENCES/GATES ETC.","2231","P112106-SERVICE-20x 6ft 3in Round Posts",21/6/2021 00:00:00,"249134",69,"JW0004","J & W FENCING LIMITED",31/5/2021 00:00:00,27/6/2021 00:00:00,"P03-2022"
"P&V","SOUTH AREA RANGERS","SUPPLIES AND SERVICES","FENCES/GATES ETC.","2231","P112500-SERVICE-3x Wire Chestnut Paling Roll 1.2 x 10m (5716)",27/6/2021 00:00:00,"249617",230,"FA0099","FARM & COUNTRY SUPPLIES LTD",31/5/2021 00:00:00,27/6/2021 00:00:00,"P03-2022"
"P&V","RIVER LEE COUNTRY PARK","SUPPLIES AND SERVICES","FENCES/GATES ETC.","2231","P112611-SERVICE-10x Rails",21/6/2021 00:00:00,"249135",59.5,"JW0004","J & W FENCING LIMITED",31/5/2021 00:00:00,27/6/2021 00:00:00,"P03-2022"
"P&V","RIVER LEE COUNTRY PARK","SUPPLIES AND SERVICES","FENCES/GATES ETC.","2231","P112611-SERVICE-1x Box of Screws",21/6/2021 00:00:00,"249135",6.5,"JW0004","J & W FENCING LIMITED",31/5/2021 00:00:00,27/6/2021 00:00:00,"P03-2022"
"P&V","MYDDELTON HOUSE GARDENS","EXPENDITURE FROM REPAIRS FUND","EXPENDITURE FROM REPAIRS FUND","2240","P112536-SERVICE-Completion of construction phase - Pond relin",14/6/2021 00:00:00,"248833",29970,"AQ0410","AQUAMAINTAIN LTD",31/5/2021 00:00:00,27/6/2021 00:00:00,"P03-2022"
"P&V","EAST INDIA DOCK AND BOW CREEK","EXPENDITURE FROM REPAIRS FUND","EXPENDITURE FROM REPAIRS FUND","2240","P111439-SERVICE-East India Dock Basin Gates Study",14/6/2021 00:00:00,"248848",6000,"HA0116","HASKONING UK LTD",31/5/2021 00:00:00,27/6/2021 00:00:00,"P03-2022"
"P&V","EAST INDIA DOCK AND BOW CREEK","EXPENDITURE FROM REPAIRS FUND","EXPENDITURE FROM REPAIRS FUND","2240","P107785-SERVICE-East India Dock Basin  -  Lock & Gate Fee.",14/6/2021 00:00:00,"248849",5000,"HA0116","HASKONING UK LTD",31/5/2021 00:00:00,27/6/2021 00:00:00,"P03-2022"
"CEO","COMMERCIAL ACCOMMODATION","PREMISES RELATED EXPENDITURE","EAST HALE ALLOTMENTS","2261","P111998-SERVICE-11 Grass cuts throughout the season",8/6/2021 00:00:00,"248540",907.2,"GL0214","GLENDALE GROUNDS MANAGEMENT LIMITED",31/5/2021 00:00:00,27/6/2021 00:00:00,"P03-2022"
"CEO","COMMERCIAL ACCOMMODATION","PREMISES RELATED EXPENDITURE","EAST HALE ALLOTMENTS","2261","P112083-SERVICE-Allotment Bins",7/6/2021 00:00:00,"248750",86.12,"CL0037","VEOLIA ES (UK) LTD",31/5/2021 00:00:00,27/6/2021 00:00:00,"P03-2022"
"P&V","MYDDELTON HOUSE","PREMISES RELATED EXPENDITURE","ENERGY COSTS (ELECTRICITY)","2332","KENT COUNTY COUNCIL (KCS)",21/6/2021 00:00:00,"249370",934.86,"KE0007","KENT COUNTY COUNCIL (KCS)",31/5/2021 00:00:00,27/6/2021 00:00:00,"P03-2022"
"CEO","COMMERCIAL ACCOMMODATION","PREMISES RELATED EXPENDITURE","ENERGY COSTS (ELECTRICITY)","2332","E-ON",15/6/2021 00:00:00,"248855",15.36,"PO0025","E-ON",31/5/2021 00:00:00,27/6/2021 00:00:00,"P03-2022"
"CEO","COMMERCIAL ACCOMMODATION","PREMISES RELATED EXPENDITURE","ENERGY COSTS (ELECTRICITY)","2332","E-ON NEXT ENERGY LTD",15/6/2021 00:00:00,"248876",33.05,"EO0398","E-ON NEXT ENERGY LTD",31/5/2021 00:00:00,27/6/2021 00:00:00,"P03-2022"
"CEO","COMMERCIAL ACCOMMODATION","PREMISES RELATED EXPENDITURE","ENERGY COSTS (ELECTRICITY)","2332","E-ON",15/6/2021 00:00:00,"249053",13.44,"PO0025","E-ON",31/5/2021 00:00:00,27/6/2021 00:00:00,"P03-2022"
"CEO","COMMERCIAL ACCOMMODATION","PREMISES RELATED EXPENDITURE","ENERGY COSTS (ELECTRICITY)","2332","E-ON",15/6/2021 00:00:00,"249054",13.92,"PO0025","E-ON",31/5/2021 00:00:00,27/6/2021 00:00:00,"P03-2022"
,"LEE VALLEY MARINA SPRINGFIELD","PREMISES RELATED EXPENDITURE","ENERGY COSTS (ELECTRICITY)","2332","KENT COUNTY COUNCIL (KCS)",14/6/2021 00:00:00,"249146",3101.21,"KE0007","KENT COUNTY COUNCIL (KCS)",31/5/2021 00:00:00,27/6/2021 00:00:00,"P03-2022"
,"LEE VALLEY MARINA STANSTEAD","PREMISES RELATED EXPENDITURE","ENERGY COSTS (ELECTRICITY)","2332","KENT COUNTY COUNCIL (KCS)",21/6/2021 00:00:00,"249347",661.39,"KE0007","KENT COUNTY COUNCIL (KCS)",31/5/2021 00:00:00,27/6/2021 00:00:00,"P03-2022"
,"LEE VALLEY MARINA STANSTEAD","PREMISES RELATED EXPENDITURE","ENERGY COSTS (ELECTRICITY)","2332","KENT COUNTY COUNCIL (KCS)",21/6/2021 00:00:00,"249348",144.46,"KE0007","KENT COUNTY COUNCIL (KCS)",31/5/2021 00:00:00,27/6/2021 00:00:00,"P03-2022"
,"LEE VALLEY MARINA STANSTEAD","PREMISES RELATED EXPENDITURE","ENERGY COSTS (ELECTRICITY)","2332","KENT COUNTY COUNCIL (KCS)",21/6/2021 00:00:00,"249413",2602.34,"KE0007","KENT COUNTY COUNCIL (KCS)",31/5/2021 00:00:00,27/6/2021 00:00:00,"P03-2022"
,"LEE VALLEY WATERWORKS CENTRE","PREMISES RELATED EXPENDITURE","ENERGY COSTS (ELECTRICITY)","2332","NPOWER LIMITED",3/6/2021 00:00:00,"246978",850.04,"NP0123","NPOWER LIMITED",31/5/2021 00:00:00,27/6/2021 00:00:00,"P03-2022"
,"LEE VALLEY WATERWORKS CENTRE","PREMISES RELATED EXPENDITURE","ENERGY COSTS (ELECTRICITY)","2332","NPOWER LIMITED",3/6/2021 00:00:00,"248580",794.26,"NP0123","NPOWER LIMITED",31/5/2021 00:00:00,27/6/2021 00:00:00,"P03-2022"
,"LEE VALLEY WATERWORKS CENTRE","PREMISES RELATED EXPENDITURE","ENERGY COSTS (ELECTRICITY)","2332","NPOWER LIMITED",24/6/2021 00:00:00,"249173",773.23,"NP0123","NPOWER LIMITED",31/5/2021 00:00:00,27/6/2021 00:00:00,"P03-2022"
"P&V","LEE VALLEY FARM HOLYFIELDHALL","PREMISES RELATED EXPENDITURE","ENERGY COSTS (ELECTRICITY)","2332","KENT COUNTY COUNCIL (KCS)",22/6/2021 00:00:00,"245757",102.04,"KE0007","KENT COUNTY COUNCIL (KCS)",31/5/2021 00:00:00,27/6/2021 00:00:00,"P03-2022"
"P&V","LEE VALLEY FARM HOLYFIELDHALL","PREMISES RELATED EXPENDITURE","ENERGY COSTS (ELECTRICITY)","2332","KENT COUNTY COUNCIL (KCS)",21/6/2021 00:00:00,"249350",5399.28,"KE0007","KENT COUNTY COUNCIL (KCS)",31/5/2021 00:00:00,27/6/2021 00:00:00,"P03-2022"
"P&V","LEE VALLEY FARM HOLYFIELDHALL","PREMISES RELATED EXPENDITURE","ENERGY COSTS (ELECTRICITY)","2332","KENT COUNTY COUNCIL (KCS)",21/6/2021 00:00:00,"249368",107.86,"KE0007","KENT COUNTY COUNCIL (KCS)",31/5/2021 00:00:00,27/6/2021 00:00:00,"P03-2022"
,"LEE VALLEY CAMPSITE","PREMISES RELATED EXPENDITURE","ENERGY COSTS (ELECTRICITY)","2332","KENT COUNTY COUNCIL (KCS)",14/6/2021 00:00:00,"249147",2112.85,"KE0007","KENT COUNTY COUNCIL (KCS)",31/5/2021 00:00:00,27/6/2021 00:00:00,"P03-2022"
,"LEE VALLEY CAMPSITE","PREMISES RELATED EXPENDITURE","ENERGY COSTS (ELECTRICITY)","2332","KENT COUNTY COUNCIL (KCS)",14/6/2021 00:00:00,"249148",1990.89,"KE0007","KENT COUNTY COUNCIL (KCS)",31/5/2021 00:00:00,27/6/2021 00:00:00,"P03-2022"
,"LEE VALLEY CAMPSITE","PREMISES RELATED EXPENDITURE","ENERGY COSTS (ELECTRICITY)","2332","NPOWER LIMITED",27/6/2021 00:00:00,"249219",-1049.12,"NP0123","NPOWER LIMITED",31/5/2021 00:00:00,27/6/2021 00:00:00,"P03-2022"
,"LEE VALLEY CAMPSITE","PREMISES RELATED EXPENDITURE","ENERGY COSTS (ELECTRICITY)","2332","NPOWER LIMITED",27/6/2021 00:00:00,"249220",-999.71,"NP0123","NPOWER LIMITED",31/5/2021 00:00:00,27/6/2021 00:00:00,"P03-2022"
,"LEE VALLEY CARAVAN PARK","PREMISES RELATED EXPENDITURE","ENERGY COSTS (ELECTRICITY)","2332","KENT COUNTY COUNCIL (KCS)",9/6/2021 00:00:00,"247878",6663.94,"KE0007","KENT COUNTY COUNCIL (KCS)",31/5/2021 00:00:00,27/6/2021 00:00:00,"P03-2022"
,"LEE VALLEY CARAVAN PARK","PREMISES RELATED EXPENDITURE","ENERGY COSTS (ELECTRICITY)","2332","KENT COUNTY COUNCIL (KCS)",15/6/2021 00:00:00,"249150",6474.35,"KE0007","KENT COUNTY COUNCIL (KCS)",31/5/2021 00:00:00,27/6/2021 00:00:00,"P03-2022"
"P&V","RYE HOUSE GATEHOUSE","PREMISES RELATED EXPENDITURE","ENERGY COSTS (ELECTRICITY)","2332","KENT COUNTY COUNCIL (KCS)",21/6/2021 00:00:00,"249366",100.69,"KE0007","KENT COUNTY COUNCIL (KCS)",31/5/2021 00:00:00,27/6/2021 00:00:00,"P03-2022"
"P&V","NORTH AREA RANGERS","PREMISES RELATED EXPENDITURE","ENERGY COSTS (ELECTRICITY)","2332","KENT COUNTY COUNCIL (KCS)",21/6/2021 00:00:00,"249344",611.76,"KE0007","KENT COUNTY COUNCIL (KCS)",31/5/2021 00:00:00,27/6/2021 00:00:00,"P03-2022"
"P&V","NORTH AREA RANGERS","PREMISES RELATED EXPENDITURE","ENERGY COSTS (ELECTRICITY)","2332","KENT COUNTY COUNCIL (KCS)",21/6/2021 00:00:00,"249369",81.6,"KE0007","KENT COUNTY COUNCIL (KCS)",31/5/2021 00:00:00,27/6/2021 00:00:00,"P03-2022"
"P&V","ABBEY GARDENS","PREMISES RELATED EXPENDITURE","ENERGY COSTS (ELECTRICITY)","2332","KENT COUNTY COUNCIL (KCS)",21/6/2021 00:00:00,"249343",914.78,"KE0007","KENT COUNTY COUNCIL (KCS)",31/5/2021 00:00:00,27/6/2021 00:00:00,"P03-2022"
"P&V","GUNPOWDER PARK","PREMISES RELATED EXPENDITURE","ENERGY COSTS (ELECTRICITY)","2332","KENT COUNTY COUNCIL (KCS)",21/6/2021 00:00:00,"249345",304.5,"KE0007","KENT COUNTY COUNCIL (KCS)",31/5/2021 00:00:00,27/6/2021 00:00:00,"P03-2022"
"P&V","GUNPOWDER PARK","PREMISES RELATED EXPENDITURE","ENERGY COSTS (ELECTRICITY)","2332","KENT COUNTY COUNCIL (KCS)",22/6/2021 00:00:00,"249392",82.95,"KE0007","KENT COUNTY COUNCIL (KCS)",31/5/2021 00:00:00,27/6/2021 00:00:00,"P03-2022"
"P&V","RIVER LEE COUNTRY PARK","PREMISES RELATED EXPENDITURE","ENERGY COSTS (ELECTRICITY)","2332","KENT COUNTY COUNCIL (KCS)",21/6/2021 00:00:00,"249342",289.19,"KE0007","KENT COUNTY COUNCIL (KCS)",31/5/2021 00:00:00,27/6/2021 00:00:00,"P03-2022"
"P&V","RIVER LEE COUNTRY PARK","PREMISES RELATED EXPENDITURE","ENERGY COSTS (ELECTRICITY)","2332","KENT COUNTY COUNCIL (KCS)",22/6/2021 00:00:00,"249414",81.6,"KE0007","KENT COUNTY COUNCIL (KCS)",31/5/2021 00:00:00,27/6/2021 00:00:00,"P03-2022"
,"LEE VALLEY VELOPARK","PREMISES RELATED EXPENDITURE","ENERGY COSTS (ELECTRICITY)","2332","KENT COUNTY COUNCIL (KCS)",22/6/2021 00:00:00,"249069",37.97,"KE0007","KENT COUNTY COUNCIL (KCS)",31/5/2021 00:00:00,27/6/2021 00:00:00,"P03-2022"
,"LEE VALLEY VELOPARK","PREMISES RELATED EXPENDITURE","ENERGY COSTS (ELECTRICITY)","2332","KENT COUNTY COUNCIL (KCS)",22/6/2021 00:00:00,"249070",-37.97,"KE0007","KENT COUNTY COUNCIL (KCS)",31/5/2021 00:00:00,27/6/2021 00:00:00,"P03-2022"
,"LEE VALLEY VELOPARK","PREMISES RELATED EXPENDITURE","ENERGY COSTS (ELECTRICITY)","2332","KENT COUNTY COUNCIL (KCS)",22/6/2021 00:00:00,"249071",42.04,"KE0007","KENT COUNTY COUNCIL (KCS)",31/5/2021 00:00:00,27/6/2021 00:00:00,"P03-2022"
,"LEE VALLEY VELOPARK","PREMISES RELATED EXPENDITURE","ENERGY COSTS (ELECTRICITY)","2332","KENT COUNTY COUNCIL (KCS)",22/6/2021 00:00:00,"249072",-42.04,"KE0007","KENT COUNTY COUNCIL (KCS)",31/5/2021 00:00:00,27/6/2021 00:00:00,"P03-2022"
,"LEE VALLEY VELOPARK","PREMISES RELATED EXPENDITURE","ENERGY COSTS (ELECTRICITY)","2332","KENT COUNTY COUNCIL (KCS)",22/6/2021 00:00:00,"249073",40.68,"KE0007","KENT COUNTY COUNCIL (KCS)",31/5/2021 00:00:00,27/6/2021 00:00:00,"P03-2022"
,"LEE VALLEY VELOPARK","PREMISES RELATED EXPENDITURE","ENERGY COSTS (ELECTRICITY)","2332","KENT COUNTY COUNCIL (KCS)",22/6/2021 00:00:00,"249149",73.63,"KE0007","KENT COUNTY COUNCIL (KCS)",31/5/2021 00:00:00,27/6/2021 00:00:00,"P03-2022"
,"LEE VALLEY VELOPARK","PREMISES RELATED EXPENDITURE","ENERGY COSTS (ELECTRICITY)","2332","NPOWER LIMITED",27/6/2021 00:00:00,"249172",11827.51,"NP0123","NPOWER LIMITED",31/5/2021 00:00:00,27/6/2021 00:00:00,"P03-2022"
,"LEE VALLEY VELOPARK","PREMISES RELATED EXPENDITURE","ENERGY COSTS (ELECTRICITY)","2332","KENT COUNTY COUNCIL (KCS)",22/6/2021 00:00:00,"249349",42.04,"KE0007","KENT COUNTY COUNCIL (KCS)",31/5/2021 00:00:00,27/6/2021 00:00:00,"P03-2022"
,"LEE VALLEY VELOPARK","PREMISES RELATED EXPENDITURE","ENERGY COSTS (ELECTRICITY)","2332","EDF ENERGY CUSTOMERS PLC",16/6/2021 00:00:00,"249353",-2.11,"ED0321","EDF ENERGY CUSTOMERS PLC",31/5/2021 00:00:00,27/6/2021 00:00:00,"P03-2022"
,"LEE VALLEY VELOPARK","PREMISES RELATED EXPENDITURE","ENERGY COSTS (ELECTRICITY)","2332","EDF ENERGY CUSTOMERS PLC",16/6/2021 00:00:00,"249354",30,"ED0321","EDF ENERGY CUSTOMERS PLC",31/5/2021 00:00:00,27/6/2021 00:00:00,"P03-2022"
,"LEE VALLEY VELOPARK","PREMISES RELATED EXPENDITURE","ENERGY COSTS (ELECTRICITY)","2332","EDF ENERGY CUSTOMERS PLC",16/6/2021 00:00:00,"249354",639.64,"ED0321","EDF ENERGY CUSTOMERS PLC",31/5/2021 00:00:00,27/6/2021 00:00:00,"P03-2022"
,"LEE VALLEY VELOPARK","PREMISES RELATED EXPENDITURE","ENERGY COSTS (ELECTRICITY)","2332","EDF ENERGY CUSTOMERS PLC",22/6/2021 00:00:00,"249355",4.4,"ED0321","EDF ENERGY CUSTOMERS PLC",31/5/2021 00:00:00,27/6/2021 00:00:00,"P03-2022"
,"LEE VALLEY VELOPARK","PREMISES RELATED EXPENDITURE","ENERGY COSTS (ELECTRICITY)","2332","EDF ENERGY CUSTOMERS PLC",22/6/2021 00:00:00,"249355",55.14,"ED0321","EDF ENERGY CUSTOMERS PLC",31/5/2021 00:00:00,27/6/2021 00:00:00,"P03-2022"
,"LV HOCKEY AND TENNIS CENTRE","PREMISES RELATED EXPENDITURE","ENERGY COSTS (ELECTRICITY)","2332","P112453-SERVICE-Suremix 60",8/6/2021 00:00:00,"248813",16.8,"BO0015","BOC LTD",31/5/2021 00:00:00,27/6/2021 00:00:00,"P03-2022"
,"LV HOCKEY AND TENNIS CENTRE","PREMISES RELATED EXPENDITURE","ENERGY COSTS (ELECTRICITY)","2332","NPOWER LIMITED",22/6/2021 00:00:00,"249171",9315.58,"NP0123","NPOWER LIMITED",31/5/2021 00:00:00,27/6/2021 00:00:00,"P03-2022"
,"LEE VALLEY VELOPARK CATERING","PREMISES RELATED EXPENDITURE","ENERGY COSTS (ELECTRICITY)","2332","P112445-SERVICE-Suremix 60",8/6/2021 00:00:00,"248814",51.3,"BO0015","BOC LTD",31/5/2021 00:00:00,27/6/2021 00:00:00,"P03-2022"
"P&V","FORMER LV LIDO SITE","PREMISES RELATED EXPENDITURE","ENERGY COSTS (ELECTRICITY)","2332","KENT COUNTY COUNCIL (KCS)",22/6/2021 00:00:00,"249412",34.94,"KE0007","KENT COUNTY COUNCIL (KCS)",31/5/2021 00:00:00,27/6/2021 00:00:00,"P03-2022"
,"LV LEISURE CENTRE CAMPSITE","PREMISES RELATED EXPENDITURE","ENERGY COSTS (ELECTRICITY)","2332","NPOWER LIMITED",3/6/2021 00:00:00,"248581",4193.99,"NP0123","NPOWER LIMITED",31/5/2021 00:00:00,27/6/2021 00:00:00,"P03-2022"
,"LV LEISURE CENTRE CAMPSITE","PREMISES RELATED EXPENDITURE","ENERGY COSTS (ELECTRICITY)","2332","NPOWER LIMITED",15/6/2021 00:00:00,"249175",4306.79,"NP0123","NPOWER LIMITED",31/5/2021 00:00:00,27/6/2021 00:00:00,"P03-2022"
,"LEE VALLEY WHITE WATER CENTRE","PREMISES RELATED EXPENDITURE","ENERGY COSTS (ELECTRICITY)","2332","NPOWER LIMITED",14/6/2021 00:00:00,"249165",13690.74,"NP0123","NPOWER LIMITED",31/5/2021 00:00:00,27/6/2021 00:00:00,"P03-2022"
,"LEE VALLEY WHITE WATER CENTRE","PREMISES RELATED EXPENDITURE","ENERGY COSTS (ELECTRICITY)","2332","NPOWER LIMITED",14/6/2021 00:00:00,"249166",15391.43,"NP0123","NPOWER LIMITED",31/5/2021 00:00:00,27/6/2021 00:00:00,"P03-2022"
,"LEE VALLEY WHITE WATER CENTRE","PREMISES RELATED EXPENDITURE","ENERGY COSTS (ELECTRICITY)","2332","NPOWER LIMITED",14/6/2021 00:00:00,"249167",13708.91,"NP0123","NPOWER LIMITED",31/5/2021 00:00:00,27/6/2021 00:00:00,"P03-2022"
,"LEE VALLEY WHITE WATER CENTRE","PREMISES RELATED EXPENDITURE","ENERGY COSTS (ELECTRICITY)","2332","NPOWER LIMITED",14/6/2021 00:00:00,"249168",8714.73,"NP0123","NPOWER LIMITED",31/5/2021 00:00:00,27/6/2021 00:00:00,"P03-2022"
,"LEE VALLEY WHITE WATER CENTRE","PREMISES RELATED EXPENDITURE","ENERGY COSTS (ELECTRICITY)","2332","NPOWER LIMITED",14/6/2021 00:00:00,"249169",148.37,"NP0123","NPOWER LIMITED",31/5/2021 00:00:00,27/6/2021 00:00:00,"P03-2022"
,"LEE VALLEY WHITE WATER CENTRE","PREMISES RELATED EXPENDITURE","ENERGY COSTS (ELECTRICITY)","2332","NPOWER LIMITED",14/6/2021 00:00:00,"249170",347.65,"NP0123","NPOWER LIMITED",31/5/2021 00:00:00,27/6/2021 00:00:00,"P03-2022"
,"LEE VALLEY MARINA SPRINGFIELD","PREMISES RELATED EXPENDITURE","ENERGY COSTS (GAS)","2333","KENT COUNTY COUNCIL (KCS)",24/6/2021 00:00:00,"249121",298.61,"KE0007","KENT COUNTY COUNCIL (KCS)",31/5/2021 00:00:00,27/6/2021 00:00:00,"P03-2022"
,"LEE VALLEY MARINA STANSTEAD","PREMISES RELATED EXPENDITURE","ENERGY COSTS (GAS)","2333","KENT COUNTY COUNCIL (KCS)",21/6/2021 00:00:00,"249115",109.44,"KE0007","KENT COUNTY COUNCIL (KCS)",31/5/2021 00:00:00,27/6/2021 00:00:00,"P03-2022"
,"LEE VALLEY MARINA STANSTEAD","PREMISES RELATED EXPENDITURE","ENERGY COSTS (GAS)","2333","KENT COUNTY COUNCIL (KCS)",21/6/2021 00:00:00,"249224",148.18,"KE0007","KENT COUNTY COUNCIL (KCS)",31/5/2021 00:00:00,27/6/2021 00:00:00,"P03-2022"
,"LEE VALLEY CAMPSITE","PREMISES RELATED EXPENDITURE","ENERGY COSTS (GAS)","2333","KENT COUNTY COUNCIL (KCS)",14/6/2021 00:00:00,"249117",388.9,"KE0007","KENT COUNTY COUNCIL (KCS)",31/5/2021 00:00:00,27/6/2021 00:00:00,"P03-2022"
,"LEE VALLEY CARAVAN PARK","PREMISES RELATED EXPENDITURE","ENERGY COSTS (GAS)","2333","P112418-SERVICE-Propane Delivery",8/6/2021 00:00:00,"248505",6344.1,"AV0327","AVANTI GAS LIMITED",31/5/2021 00:00:00,27/6/2021 00:00:00,"P03-2022"
,"LEE VALLEY CARAVAN PARK","PREMISES RELATED EXPENDITURE","ENERGY COSTS (GAS)","2333","P112419-SERVICE-Propane Delivery",7/6/2021 00:00:00,"248506",186.3,"AV0327","AVANTI GAS LIMITED",31/5/2021 00:00:00,27/6/2021 00:00:00,"P03-2022"
"P&V","MYDDELTON HOUSE GARDENS","PREMISES RELATED EXPENDITURE","ENERGY COSTS (GAS)","2333","KENT COUNTY COUNCIL (KCS)",24/6/2021 00:00:00,"249120",701.03,"KE0007","KENT COUNTY COUNCIL (KCS)",31/5/2021 00:00:00,27/6/2021 00:00:00,"P03-2022"
"P&V","MYDDELTON HOUSE GARDENS","PREMISES RELATED EXPENDITURE","ENERGY COSTS (GAS)","2333","KENT COUNTY COUNCIL (KCS)",21/6/2021 00:00:00,"249192",-953.31,"KE0007","KENT COUNTY COUNCIL (KCS)",31/5/2021 00:00:00,27/6/2021 00:00:00,"P03-2022"
"P&V","MYDDELTON HOUSE GARDENS","PREMISES RELATED EXPENDITURE","ENERGY COSTS (GAS)","2333","KENT COUNTY COUNCIL (KCS)",21/6/2021 00:00:00,"249193",413.09,"KE0007","KENT COUNTY COUNCIL (KCS)",31/5/2021 00:00:00,27/6/2021 00:00:00,"P03-2022"
,"LV LEISURE CENTRE CAMPSITE","PREMISES RELATED EXPENDITURE","ENERGY COSTS (GAS)","2333","KENT COUNTY COUNCIL (KCS)",21/6/2021 00:00:00,"249118",1281.36,"KE0007","KENT COUNTY COUNCIL (KCS)",31/5/2021 00:00:00,27/6/2021 00:00:00,"P03-2022"
"P&V","NORTH AREA RANGERS","PREMISES RELATED EXPENDITURE","RENT (EXTERNAL)","2442","THAMES WATER UTILITIES LIMITED",27/6/2021 00:00:00,"249647",68.75,"TH0020","THAMES WATER UTILITIES LIMITED-  SAVILLS",31/5/2021 00:00:00,27/6/2021 00:00:00,"P03-2022"
"CEO","RESIDENTIAL ACCOMMODATION","PREMISES RELATED EXPENDITURE","COUNCIL TAX","2445","EPPING FOREST DISTRICT COUNCIL",15/6/2021 00:00:00,"248588",1210.5,"EP0025","EPPING FOREST DISTRICT COUNCIL",31/5/2021 00:00:00,27/6/2021 00:00:00,"P03-2022"
"P&V","MYDDELTON HOUSE GARDENS","PREMISES RELATED EXPENDITURE","COUNCIL TAX","2445","2021/22 COUNCIL TAX",14/6/2021 00:00:00,"249180",2194.46,"EN0035","LONDON BOROUGH OF ENFIELD",31/5/2021 00:00:00,27/6/2021 00:00:00,"P03-2022"
,"LEE VALLEY MARINA STANSTEAD","PREMISES RELATED EXPENDITURE","WATER","2555","CASTLE WATER LIMITED",3/6/2021 00:00:00,"248765",125.37,"CA0625","CASTLE WATER LIMITED",31/5/2021 00:00:00,27/6/2021 00:00:00,"P03-2022"
,"LEE VALLEY MARINA STANSTEAD","PREMISES RELATED EXPENDITURE","WATER","2555","CASTLE WATER LIMITED",3/6/2021 00:00:00,"248765",131.16,"CA0625","CASTLE WATER LIMITED",31/5/2021 00:00:00,27/6/2021 00:00:00,"P03-2022"
,"LEE VALLEY MARINA STANSTEAD","PREMISES RELATED EXPENDITURE","WATER","2555","CASTLE WATER LIMITED",21/6/2021 00:00:00,"249079",1036.36,"CA0625","CASTLE WATER LIMITED",31/5/2021 00:00:00,27/6/2021 00:00:00,"P03-2022"
,"LEE VALLEY CAMPSITE","PREMISES RELATED EXPENDITURE","WATER","2555","CASTLE WATER LIMITED",8/6/2021 00:00:00,"248603",1448.28,"CA0625","CASTLE WATER LIMITED",31/5/2021 00:00:00,27/6/2021 00:00:00,"P03-2022"
"P&V","RIVER LEE COUNTRY PARK","PREMISES RELATED EXPENDITURE","WATER","2555","CASTLE WATER LIMITED",21/6/2021 00:00:00,"246969",122.51,"CA0625","CASTLE WATER LIMITED",31/5/2021 00:00:00,27/6/2021 00:00:00,"P03-2022"
"P&V","RIVER LEE COUNTRY PARK","PREMISES RELATED EXPENDITURE","WATER","2555","CASTLE WATER LIMITED",21/6/2021 00:00:00,"249351",-122.51,"CA0625","CASTLE WATER LIMITED",31/5/2021 00:00:00,27/6/2021 00:00:00,"P03-2022"
,"LV LEISURE CENTRE CAMPSITE","PREMISES RELATED EXPENDITURE","WATER","2555","CASTLE WATER LIMITED",3/6/2021 00:00:00,"248333",107.73,"CA0625","CASTLE WATER LIMITED",31/5/2021 00:00:00,27/6/2021 00:00:00,"P03-2022"
,"LV LEISURE CENTRE CAMPSITE","PREMISES RELATED EXPENDITURE","WATER","2555","CASTLE WATER LIMITED",3/6/2021 00:00:00,"248333",398.32,"CA0625","CASTLE WATER LIMITED",31/5/2021 00:00:00,27/6/2021 00:00:00,"P03-2022"
,"LV LEISURE CENTRE CAMPSITE","PREMISES RELATED EXPENDITURE","WATER","2555","CASTLE WATER LIMITED",9/6/2021 00:00:00,"248887",412.37,"CA0625","CASTLE WATER LIMITED",31/5/2021 00:00:00,27/6/2021 00:00:00,"P03-2022"
,"LV LEISURE CENTRE CAMPSITE","PREMISES RELATED EXPENDITURE","WATER","2555","CASTLE WATER LIMITED",9/6/2021 00:00:00,"248887",112.55,"CA0625","CASTLE WATER LIMITED",31/5/2021 00:00:00,27/6/2021 00:00:00,"P03-2022"
,"LEE VALLEY WHITE WATER CENTRE","PREMISES RELATED EXPENDITURE","WATER","2555","CASTLE WATER LIMITED",21/6/2021 00:00:00,"249341",1019.2,"CA0625","CASTLE WATER LIMITED",31/5/2021 00:00:00,27/6/2021 00:00:00,"P03-2022"
,"LEE VALLEY WHITE WATER CENTRE","PREMISES RELATED EXPENDITURE","WATER","2555","CASTLE WATER LIMITED",21/6/2021 00:00:00,"249341",1496.86,"CA0625","CASTLE WATER LIMITED",31/5/2021 00:00:00,27/6/2021 00:00:00,"P03-2022"
,"LEE VALLEY CAMPSITE","PREMISES RELATED EXPENDITURE","CLEANING & DOMESTIC SUPPLIES","2666","P112146-SERVICE-Cleaning supplies",8/6/2021 00:00:00,"248802",143.89,"HY0043","HYGIENE SYSTEMS LTD",31/5/2021 00:00:00,27/6/2021 00:00:00,"P03-2022"
,"LEE VALLEY CAMPSITE","PREMISES RELATED EXPENDITURE","CLEANING & DOMESTIC SUPPLIES","2666","P111751-SERVICE-Cleaning supplies",8/6/2021 00:00:00,"248803",9.94,"HY0043","HYGIENE SYSTEMS LTD",31/5/2021 00:00:00,27/6/2021 00:00:00,"P03-2022"
,"LEE VALLEY CAMPSITE","PREMISES RELATED EXPENDITURE","CLEANING & DOMESTIC SUPPLIES","2666","P112461-SERVICE-UREKA DE SCALER",14/6/2021 00:00:00,"249081",7.31,"HY0043","HYGIENE SYSTEMS LTD",31/5/2021 00:00:00,27/6/2021 00:00:00,"P03-2022"
,"LEE VALLEY CAMPSITE","PREMISES RELATED EXPENDITURE","CLEANING & DOMESTIC SUPPLIES","2666","P112567-SERVICE-Cleaning Supplies",27/6/2021 00:00:00,"249457",138.37,"HY0043","HYGIENE SYSTEMS LTD",31/5/2021 00:00:00,27/6/2021 00:00:00,"P03-2022"
,"LEE VALLEY CARAVAN PARK","PREMISES RELATED EXPENDITURE","CLEANING & DOMESTIC SUPPLIES","2666","P112503-SERVICE-Washroom hygiene",14/6/2021 00:00:00,"248573",90.39,"IN0012","INITIAL WASHROOM HYGIENE",31/5/2021 00:00:00,27/6/2021 00:00:00,"P03-2022"
,"LEE VALLEY CARAVAN PARK","PREMISES RELATED EXPENDITURE","CLEANING & DOMESTIC SUPPLIES","2666","P112464-SERVICE-Cleaning producks",21/6/2021 00:00:00,"249178",711.8,"HY0043","HYGIENE SYSTEMS LTD",31/5/2021 00:00:00,27/6/2021 00:00:00,"P03-2022"
"P&V","ALMOST WILD CAMPSITE","PREMISES RELATED EXPENDITURE","CLEANING & DOMESTIC SUPPLIES","2666","P112488-SERVICE-Cleaning materials",22/6/2021 00:00:00,"249179",122.58,"HY0043","HYGIENE SYSTEMS LTD",31/5/2021 00:00:00,27/6/2021 00:00:00,"P03-2022"
,"LV HOCKEY AND TENNIS CENTRE","PREMISES RELATED EXPENDITURE","CLEANING & DOMESTIC SUPPLIES","2666","P112333-SERVICE-Cleaning supplies",7/6/2021 00:00:00,"248568",70.3,"BR0025","BREEZE SOUTHERN LTD",31/5/2021 00:00:00,27/6/2021 00:00:00,"P03-2022"
,"LV LEISURE CENTRE CAMPSITE","PREMISES RELATED EXPENDITURE","CLEANING & DOMESTIC SUPPLIES","2666","P112429-SERVICE-cleaning supplies",27/6/2021 00:00:00,"249082",268.98,"HY0043","HYGIENE SYSTEMS LTD",31/5/2021 00:00:00,27/6/2021 00:00:00,"P03-2022"
,"LEE VALLEY ATHLETICS CENTRE","PREMISES RELATED EXPENDITURE","CLEANING & DOMESTIC SUPPLIES","2666","P112260-SERVICE-LVAC CLEANING SUPPLIES",9/6/2021 00:00:00,"248809",316.58,"HY0043","HYGIENE SYSTEMS LTD",31/5/2021 00:00:00,27/6/2021 00:00:00,"P03-2022"
,"LEE VALLEY ATHLETICS CENTRE","PREMISES RELATED EXPENDITURE","CLEANING & DOMESTIC SUPPLIES","2666","P112626-SERVICE-LVAC CLEANING ORDER EMAILED 17.6.21",27/6/2021 00:00:00,"249514",205.78,"HY0043","HYGIENE SYSTEMS LTD",31/5/2021 00:00:00,27/6/2021 00:00:00,"P03-2022"
,"LEE VALLEY WHITE WATER CENTRE","PREMISES RELATED EXPENDITURE","CLEANING & DOMESTIC SUPPLIES","2666","P112371-SERVICE-Cleaning supplies",14/6/2021 00:00:00,"248835",191.18,"SU0595","SUMMIT HYGIENE LTD",31/5/2021 00:00:00,27/6/2021 00:00:00,"P03-2022"
,"LEE VALLEY WHITE WATER CENTRE","PREMISES RELATED EXPENDITURE","CLEANING & DOMESTIC SUPPLIES","2666","P112655-SERVICE-Cleaning supplies",27/6/2021 00:00:00,"249614",224.86,"SU0595","SUMMIT HYGIENE LTD",31/5/2021 00:00:00,27/6/2021 00:00:00,"P03-2022"
"P&V","LEE VALLEY FARM HOLYFIELDHALL","TRANSPORT RELATED EXPENDITURE","TRANSPORT RUNNING EXPENSES","3333","P111469-SERVICE-Tractor Spares",7/6/2021 00:00:00,"248310",178.99,"RW0257","R. W. CRAWFORD AGRICULTURAL MACHINERY LTD",31/5/2021 00:00:00,27/6/2021 00:00:00,"P03-2022"
"P&V","LEE VALLEY FARM HOLYFIELDHALL","TRANSPORT RELATED EXPENDITURE","TRANSPORT RUNNING EXPENSES","3333","P111465-SERVICE-Workshop Sundries",7/6/2021 00:00:00,"248719",60,"GR0022","GROUP COMPONENTS LIMITED",31/5/2021 00:00:00,27/6/2021 00:00:00,"P03-2022"
"P&V","LEE VALLEY FARM HOLYFIELDHALL","TRANSPORT RELATED EXPENDITURE","TRANSPORT RUNNING EXPENSES","3333","P111468-SERVICE-Hose Repair/Sundries",7/6/2021 00:00:00,"248739",8.93,"HU0003","ALLIANCE AUTOMOTIVE UK CV LIMITED T/A",31/5/2021 00:00:00,27/6/2021 00:00:00,"P03-2022"
"P&V","LEE VALLEY FARM HOLYFIELDHALL","TRANSPORT RELATED EXPENDITURE","TRANSPORT RUNNING EXPENSES","3333","P111461-SERVICE-Machinery Spares",7/6/2021 00:00:00,"248794",120.95,"SP0034","SPALDINGS (UK) LIMITED",31/5/2021 00:00:00,27/6/2021 00:00:00,"P03-2022"
"P&V","LEE VALLEY FARM HOLYFIELDHALL","TRANSPORT RELATED EXPENDITURE","TRANSPORT RUNNING EXPENSES","3333","P111469-SERVICE-Tractor Spares",7/6/2021 00:00:00,"248836",-178.99,"RW0257","R. W. CRAWFORD AGRICULTURAL MACHINERY LTD",31/5/2021 00:00:00,27/6/2021 00:00:00,"P03-2022"
"P&V","LEE VALLEY FARM HOLYFIELDHALL","TRANSPORT RELATED EXPENDITURE","TRANSPORT RUNNING EXPENSES","3333","P111473-SERVICE-Tractor Spares",14/6/2021 00:00:00,"249019",589.5,"OL0001","OLIVER AGRICULTURE LTD",31/5/2021 00:00:00,27/6/2021 00:00:00,"P03-2022"
"P&V","LEE VALLEY FARM HOLYFIELDHALL","TRANSPORT RELATED EXPENDITURE","TRANSPORT RUNNING EXPENSES","3333","P112426-SERVICE-5000ltrs Red Disel",22/6/2021 00:00:00,"249156",2867.2,"TE0052","TEAM FLITWICK",31/5/2021 00:00:00,27/6/2021 00:00:00,"P03-2022"
,"LEE VALLEY MARINA STANSTEAD","TRANSPORT RELATED EXPENDITURE","VEHICLE FUEL","3335","ALLSTAR BUSINESS SOLUTIONS LTD",27/6/2021 00:00:00,"248727",67.49,"AR0035","ALLSTAR BUSINESS SOLUTIONS LTD",31/5/2021 00:00:00,27/6/2021 00:00:00,"P03-2022"
"P&V","LEE VALLEY FARM HOLYFIELDHALL","TRANSPORT RELATED EXPENDITURE","VEHICLE FUEL","3335","ALLSTAR BUSINESS SOLUTIONS LTD",27/6/2021 00:00:00,"248727",305.49,"AR0035","ALLSTAR BUSINESS SOLUTIONS LTD",31/5/2021 00:00:00,27/6/2021 00:00:00,"P03-2022"
,"LEE VALLEY CAMPSITE","TRANSPORT RELATED EXPENDITURE","VEHICLE FUEL","3335","ALLSTAR BUSINESS SOLUTIONS LTD",27/6/2021 00:00:00,"248727",40.21,"AR0035","ALLSTAR BUSINESS SOLUTIONS LTD",31/5/2021 00:00:00,27/6/2021 00:00:00,"P03-2022"
,"LEE VALLEY CARAVAN PARK","TRANSPORT RELATED EXPENDITURE","VEHICLE FUEL","3335","ALLSTAR BUSINESS SOLUTIONS LTD",27/6/2021 00:00:00,"248727",324.14,"AR0035","ALLSTAR BUSINESS SOLUTIONS LTD",31/5/2021 00:00:00,27/6/2021 00:00:00,"P03-2022"
"P&V","NORTH AREA RANGERS","TRANSPORT RELATED EXPENDITURE","VEHICLE FUEL","3335","ALLSTAR BUSINESS SOLUTIONS LTD",27/6/2021 00:00:00,"248727",102.32,"AR0035","ALLSTAR BUSINESS SOLUTIONS LTD",31/5/2021 00:00:00,27/6/2021 00:00:00,"P03-2022"
"P&V","SOUTH AREA RANGERS","TRANSPORT RELATED EXPENDITURE","VEHICLE FUEL","3335","ALLSTAR BUSINESS SOLUTIONS LTD",27/6/2021 00:00:00,"248727",161.45,"AR0035","ALLSTAR BUSINESS SOLUTIONS LTD",31/5/2021 00:00:00,27/6/2021 00:00:00,"P03-2022"
"P&V","GUNPOWDER PARK","TRANSPORT RELATED EXPENDITURE","VEHICLE FUEL","3335","ALLSTAR BUSINESS SOLUTIONS LTD",27/6/2021 00:00:00,"248727",52.17,"AR0035","ALLSTAR BUSINESS SOLUTIONS LTD",31/5/2021 00:00:00,27/6/2021 00:00:00,"P03-2022"
"P&V","RIVER LEE COUNTRY PARK","TRANSPORT RELATED EXPENDITURE","VEHICLE FUEL","3335","ALLSTAR BUSINESS SOLUTIONS LTD",27/6/2021 00:00:00,"248727",331.23,"AR0035","ALLSTAR BUSINESS SOLUTIONS LTD",31/5/2021 00:00:00,27/6/2021 00:00:00,"P03-2022"
,"LEE VALLEY RIDING CENTRE","TRANSPORT RELATED EXPENDITURE","VEHICLE FUEL","3335","ALLSTAR BUSINESS SOLUTIONS LTD",27/6/2021 00:00:00,"248728",112.73,"AR0035","ALLSTAR BUSINESS SOLUTIONS LTD",31/5/2021 00:00:00,27/6/2021 00:00:00,"P03-2022"
,"LV LEISURE CENTRE CAMPSITE","TRANSPORT RELATED EXPENDITURE","VEHICLE FUEL","3335","ALLSTAR BUSINESS SOLUTIONS LTD",27/6/2021 00:00:00,"248727",92.51,"AR0035","ALLSTAR BUSINESS SOLUTIONS LTD",31/5/2021 00:00:00,27/6/2021 00:00:00,"P03-2022"
,"LV LEISURE CENTRE CAMPSITE","TRANSPORT RELATED EXPENDITURE","VEHICLE FUEL","3335","ALLSTAR BUSINESS SOLUTIONS LTD",27/6/2021 00:00:00,"248727",138.13,"AR0035","ALLSTAR BUSINESS SOLUTIONS LTD",31/5/2021 00:00:00,27/6/2021 00:00:00,"P03-2022"
"P&V","FISHERIES MANAGEMENT","SUPPLIES AND SERVICES","EQUIPMENT & MATERIALS","4111","P111982-SERVICE-18 x 40 x 9""x2"" 4.2 metre lengths",7/6/2021 00:00:00,"248077",397.9,"LE0012","LEASIDE TIMBER & BUILDERS MERCHANTS LTD",31/5/2021 00:00:00,27/6/2021 00:00:00,"P03-2022"
"P&V","FISHERIES MANAGEMENT","SUPPLIES AND SERVICES","EQUIPMENT & MATERIALS","4111","P112587-SERVICE-PPE Equipment",15/6/2021 00:00:00,"248832",66.9,"EN0283","ENGELBERT STRAUSS LIMITED",31/5/2021 00:00:00,27/6/2021 00:00:00,"P03-2022"
"P&V","FISHERIES MANAGEMENT","SUPPLIES AND SERVICES","EQUIPMENT & MATERIALS","4111","P111933-SERVICE-Blanket Order",14/6/2021 00:00:00,"249138",71,"JW0004","J & W FENCING LIMITED",31/5/2021 00:00:00,27/6/2021 00:00:00,"P03-2022"
"P&V","FISHERIES MANAGEMENT","SUPPLIES AND SERVICES","EQUIPMENT & MATERIALS","4111","P112065-SERVICE-12 x 47mmx50mmx3600mm Treated Timber",21/6/2021 00:00:00,"249379",49.68,"LE0012","LEASIDE TIMBER & BUILDERS MERCHANTS LTD",31/5/2021 00:00:00,27/6/2021 00:00:00,"P03-2022"
,"LEE VALLEY MARINA SPRINGFIELD","SUPPLIES AND SERVICES","EQUIPMENT & MATERIALS","4111","P112649-SERVICE-Rental pureshield size W",21/6/2021 00:00:00,"248811",138.05,"BO0015","BOC LTD",31/5/2021 00:00:00,27/6/2021 00:00:00,"P03-2022"
,"LEE VALLEY MARINA SPRINGFIELD","SUPPLIES AND SERVICES","EQUIPMENT & MATERIALS","4111","P111829-SERVICE-To supply items as requested",21/6/2021 00:00:00,"249245",89.11,"SA0008","SAFETEC DIRECT LTD",31/5/2021 00:00:00,27/6/2021 00:00:00,"P03-2022"
,"STANSTEAD RECHARGEABLE WORKS","SUPPLIES AND SERVICES","EQUIPMENT & MATERIALS","4111","P112290-SERVICE-anodes",7/6/2021 00:00:00,"248740",415.75,"MI0200","MIDLAND CHANDLERS LIMITED",31/5/2021 00:00:00,27/6/2021 00:00:00,"P03-2022"
,"STANSTEAD RECHARGEABLE WORKS","SUPPLIES AND SERVICES","EQUIPMENT & MATERIALS","4111","P112423-SERVICE-Argo shield",7/6/2021 00:00:00,"248810",138.05,"BO0015","BOC LTD",31/5/2021 00:00:00,27/6/2021 00:00:00,"P03-2022"
,"STANSTEAD RECHARGEABLE WORKS","SUPPLIES AND SERVICES","EQUIPMENT & MATERIALS","4111","P112421-SERVICE-supply parts",14/6/2021 00:00:00,"249075",57,"EN0309","PRH ENGINEERING LIMITED",31/5/2021 00:00:00,27/6/2021 00:00:00,"P03-2022"
,"STANSTEAD RECHARGEABLE WORKS","SUPPLIES AND SERVICES","EQUIPMENT & MATERIALS","4111","P112584-SERVICE-control cable #56831",27/6/2021 00:00:00,"249246",25.91,"AQ0033","AQUAFAX LIMITED",31/5/2021 00:00:00,27/6/2021 00:00:00,"P03-2022"
,"STANSTEAD RECHARGEABLE WORKS","SUPPLIES AND SERVICES","EQUIPMENT & MATERIALS","4111","P112627-SERVICE-order ref A800582833",27/6/2021 00:00:00,"249438",72.28,"SC0057","SCREWFIX DIRECT LTD",31/5/2021 00:00:00,27/6/2021 00:00:00,"P03-2022"
,"STANSTEAD RECHARGEABLE WORKS","SUPPLIES AND SERVICES","EQUIPMENT & MATERIALS","4111","P112566-SERVICE-blacking",27/6/2021 00:00:00,"249603",927,"SM0658","SML PAINTS AND COATINGS",31/5/2021 00:00:00,27/6/2021 00:00:00,"P03-2022"
,"STANSTEAD RECHARGEABLE WORKS","SUPPLIES AND SERVICES","EQUIPMENT & MATERIALS","4111","P112689-SERVICE-welding rods, helmet, torch",27/6/2021 00:00:00,"249615",126.25,"EN0309","PRH ENGINEERING LIMITED",31/5/2021 00:00:00,27/6/2021 00:00:00,"P03-2022"
,"LEE VALLEY WATERWORKS CENTRE","SUPPLIES AND SERVICES","EQUIPMENT & MATERIALS","4111","P112420-SERVICE-2x Health & Safety Law Poster - Code 250232",21/6/2021 00:00:00,"249190",48,"GR0020","GREENHAM TRADING LIMITED",31/5/2021 00:00:00,27/6/2021 00:00:00,"P03-2022"
,"LEE VALLEY WATERWORKS CENTRE","SUPPLIES AND SERVICES","EQUIPMENT & MATERIALS","4111","P112420-SERVICE-Delivery Charge",21/6/2021 00:00:00,"249190",4.95,"GR0020","GREENHAM TRADING LIMITED",31/5/2021 00:00:00,27/6/2021 00:00:00,"P03-2022"
,"LEE VALLEY CAMPSITE","SUPPLIES AND SERVICES","EQUIPMENT & MATERIALS","4111","P112004-SERVICE-Large wall sign",14/6/2021 00:00:00,"248877",125,"SL0528","SLAM SIGNS LTD",31/5/2021 00:00:00,27/6/2021 00:00:00,"P03-2022"
,"LEE VALLEY CAMPSITE","SUPPLIES AND SERVICES","EQUIPMENT & MATERIALS","4111","KENDALL & SONS LIMITED",27/6/2021 00:00:00,"249445",670,"KE0023","KENDALL & SONS LIMITED",31/5/2021 00:00:00,27/6/2021 00:00:00,"P03-2022"
,"LEE VALLEY CAMPSITE","SUPPLIES AND SERVICES","EQUIPMENT & MATERIALS","4111","KENDALL & SONS LIMITED",27/6/2021 00:00:00,"249445",120,"KE0023","KENDALL & SONS LIMITED",31/5/2021 00:00:00,27/6/2021 00:00:00,"P03-2022"
,"LEE VALLEY CAMPSITE","SUPPLIES AND SERVICES","EQUIPMENT & MATERIALS","4111","KENDALL & SONS LIMITED",27/6/2021 00:00:00,"249445",-790,"KE0023","KENDALL & SONS LIMITED",31/5/2021 00:00:00,27/6/2021 00:00:00,"P03-2022"
,"LEE VALLEY CAMPSITE","SUPPLIES AND SERVICES","EQUIPMENT & MATERIALS","4111","P112018-SERVICE-Office Window",27/6/2021 00:00:00,"249445",790,"KE0023","KENDALL & SONS LIMITED",31/5/2021 00:00:00,27/6/2021 00:00:00,"P03-2022"
,"LEE VALLEY CARAVAN PARK","SUPPLIES AND SERVICES","EQUIPMENT & MATERIALS","4111","P111253-SERVICE-Paint draincover carpet protect",14/6/2021 00:00:00,"248144",6.66,"SC0057","SCREWFIX DIRECT LTD",31/5/2021 00:00:00,27/6/2021 00:00:00,"P03-2022"
,"LEE VALLEY CARAVAN PARK","SUPPLIES AND SERVICES","EQUIPMENT & MATERIALS","4111","P112658-SERVICE-Trailer board & hammer",22/6/2021 00:00:00,"248319",28.31,"SC0057","SCREWFIX DIRECT LTD",31/5/2021 00:00:00,27/6/2021 00:00:00,"P03-2022"
,"LEE VALLEY CARAVAN PARK","SUPPLIES AND SERVICES","EQUIPMENT & MATERIALS","4111","P112057-SERVICE-Repair to Play Area",7/6/2021 00:00:00,"248544",197.52,"LE0012","LEASIDE TIMBER & BUILDERS MERCHANTS LTD",31/5/2021 00:00:00,27/6/2021 00:00:00,"P03-2022"
,"LEE VALLEY CARAVAN PARK","SUPPLIES AND SERVICES","EQUIPMENT & MATERIALS","4111","P112659-SERVICE-Foot pump & WD40",22/6/2021 00:00:00,"248621",24.94,"SC0057","SCREWFIX DIRECT LTD",31/5/2021 00:00:00,27/6/2021 00:00:00,"P03-2022"
"P&V","MYDDELTON HOUSE GARDENS","SUPPLIES AND SERVICES","EQUIPMENT & MATERIALS","4111","ALITEX LTD",14/6/2021 00:00:00,"248782",0,"AL0324","ALITEX LTD",31/5/2021 00:00:00,27/6/2021 00:00:00,"P03-2022"
"P&V","MYDDELTON HOUSE GARDENS","SUPPLIES AND SERVICES","EQUIPMENT & MATERIALS","4111","P112195-SERVICE-                            736114 4trade dry",9/6/2021 00:00:00,"248834",7.88,"TR0031","TRAVIS PERKINS TRADING CO LTD",31/5/2021 00:00:00,27/6/2021 00:00:00,"P03-2022"
"P&V","MYDDELTON HOUSE GARDENS","SUPPLIES AND SERVICES","EQUIPMENT & MATERIALS","4111","P112195-SERVICE-                                          819",9/6/2021 00:00:00,"248834",66.72,"TR0031","TRAVIS PERKINS TRADING CO LTD",31/5/2021 00:00:00,27/6/2021 00:00:00,"P03-2022"
"P&V","MYDDELTON HOUSE GARDENS","SUPPLIES AND SERVICES","EQUIPMENT & MATERIALS","4111","P112195-SERVICE-                                           81",9/6/2021 00:00:00,"248834",65.36,"TR0031","TRAVIS PERKINS TRADING CO LTD",31/5/2021 00:00:00,27/6/2021 00:00:00,"P03-2022"
"P&V","MYDDELTON HOUSE GARDENS","SUPPLIES AND SERVICES","EQUIPMENT & MATERIALS","4111","P112195-SERVICE-                          127206 WD-40 specia",9/6/2021 00:00:00,"248834",16.5,"TR0031","TRAVIS PERKINS TRADING CO LTD",31/5/2021 00:00:00,27/6/2021 00:00:00,"P03-2022"
"P&V","MYDDELTON HOUSE GARDENS","SUPPLIES AND SERVICES","EQUIPMENT & MATERIALS","4111","P112195-SERVICE-                                       206938",9/6/2021 00:00:00,"248834",143,"TR0031","TRAVIS PERKINS TRADING CO LTD",31/5/2021 00:00:00,27/6/2021 00:00:00,"P03-2022"
"P&V","MYDDELTON HOUSE GARDENS","SUPPLIES AND SERVICES","EQUIPMENT & MATERIALS","4111","P112195-SERVICE-                             978631 4trade te",9/6/2021 00:00:00,"248834",7.09,"TR0031","TRAVIS PERKINS TRADING CO LTD",31/5/2021 00:00:00,27/6/2021 00:00:00,"P03-2022"
"P&V","MYDDELTON HOUSE GARDENS","SUPPLIES AND SERVICES","EQUIPMENT & MATERIALS","4111","P112248-SERVICE-Cooper Pegler Spray Lance Shield 15"" SPRLSJ",27/6/2021 00:00:00,"249145",32.96,"FA0149","FARGRO LIMITED",31/5/2021 00:00:00,27/6/2021 00:00:00,"P03-2022"
"P&V","MYDDELTON HOUSE GARDENS","SUPPLIES AND SERVICES","EQUIPMENT & MATERIALS","4111","P112248-SERVICE-Mulch Material 1m x 100 60gsm - black",27/6/2021 00:00:00,"249145",36,"FA0149","FARGRO LIMITED",31/5/2021 00:00:00,27/6/2021 00:00:00,"P03-2022"
"P&V","MYDDELTON HOUSE GARDENS","SUPPLIES AND SERVICES","EQUIPMENT & MATERIALS","4111","P112248-SERVICE-Sinclair Growing Medium Nursery Stock COSN75",27/6/2021 00:00:00,"249145",329.85,"FA0149","FARGRO LIMITED",31/5/2021 00:00:00,27/6/2021 00:00:00,"P03-2022"
"P&V","MYDDELTON HOUSE GARDENS","SUPPLIES AND SERVICES","EQUIPMENT & MATERIALS","4111","P112248-SERVICE-Labels Pot 4"" Blue L4B",27/6/2021 00:00:00,"249145",16.32,"FA0149","FARGRO LIMITED",31/5/2021 00:00:00,27/6/2021 00:00:00,"P03-2022"
"P&V","MYDDELTON HOUSE GARDENS","SUPPLIES AND SERVICES","EQUIPMENT & MATERIALS","4111","P112248-SERVICE-Labels Pot 4"" White LB4WT",27/6/2021 00:00:00,"249145",15.6,"FA0149","FARGRO LIMITED",31/5/2021 00:00:00,27/6/2021 00:00:00,"P03-2022"
"P&V","MYDDELTON HOUSE GARDENS","SUPPLIES AND SERVICES","EQUIPMENT & MATERIALS","4111","P112248-SERVICE-Sinclair Sulphate of Iron 25kg SUIR",27/6/2021 00:00:00,"249145",25.5,"FA0149","FARGRO LIMITED",31/5/2021 00:00:00,27/6/2021 00:00:00,"P03-2022"
"P&V","MYDDELTON HOUSE GARDENS","SUPPLIES AND SERVICES","EQUIPMENT & MATERIALS","4111","P112248-SERVICE-Cooper Pegler Kanpsack Sprayer SPRC03",27/6/2021 00:00:00,"249145",160.67,"FA0149","FARGRO LIMITED",31/5/2021 00:00:00,27/6/2021 00:00:00,"P03-2022"
"P&V","MYDDELTON HOUSE GARDENS","SUPPLIES AND SERVICES","EQUIPMENT & MATERIALS","4111","P112248-SERVICE-Sincclair Bonemeal 25kg BOM25",27/6/2021 00:00:00,"249145",38.88,"FA0149","FARGRO LIMITED",31/5/2021 00:00:00,27/6/2021 00:00:00,"P03-2022"
"P&V","MYDDELTON HOUSE GARDENS","SUPPLIES AND SERVICES","EQUIPMENT & MATERIALS","4111","P112248-SERVICE-Cooper Pegler 2000 service pack SPRSP20",27/6/2021 00:00:00,"249145",30.81,"FA0149","FARGRO LIMITED",31/5/2021 00:00:00,27/6/2021 00:00:00,"P03-2022"
"P&V","MYDDELTON HOUSE GARDENS","SUPPLIES AND SERVICES","EQUIPMENT & MATERIALS","4111","P112248-SERVICE-Gallup Biograde Amenity Herbicide GALLB",27/6/2021 00:00:00,"249145",39.65,"FA0149","FARGRO LIMITED",31/5/2021 00:00:00,27/6/2021 00:00:00,"P03-2022"
"P&V","MYDDELTON HOUSE GARDENS","SUPPLIES AND SERVICES","EQUIPMENT & MATERIALS","4111","P112248-SERVICE-Chikara Herbicide 50g CHIKA",27/6/2021 00:00:00,"249145",71.92,"FA0149","FARGRO LIMITED",31/5/2021 00:00:00,27/6/2021 00:00:00,"P03-2022"
"P&V","MYDDELTON HOUSE GARDENS","SUPPLIES AND SERVICES","EQUIPMENT & MATERIALS","4111","P112248-SERVICE-Labels Pot 4"" - Red L4R",27/6/2021 00:00:00,"249145",16.32,"FA0149","FARGRO LIMITED",31/5/2021 00:00:00,27/6/2021 00:00:00,"P03-2022"
"P&V","MYDDELTON HOUSE GARDENS","SUPPLIES AND SERVICES","EQUIPMENT & MATERIALS","4111","P112254-SERVICE-Bulldog Premier Hand Fork BUL104168",27/6/2021 00:00:00,"249151",61.5,"FA0149","FARGRO LIMITED",31/5/2021 00:00:00,27/6/2021 00:00:00,"P03-2022"
"P&V","MYDDELTON HOUSE GARDENS","SUPPLIES AND SERVICES","EQUIPMENT & MATERIALS","4111","P112254-SERVICE-Rhizopon AA Rooting Powder 0.5% 500g RHI05",27/6/2021 00:00:00,"249151",58.8,"FA0149","FARGRO LIMITED",31/5/2021 00:00:00,27/6/2021 00:00:00,"P03-2022"
"P&V","MYDDELTON HOUSE GARDENS","SUPPLIES AND SERVICES","EQUIPMENT & MATERIALS","4111","P112254-SERVICE-Bulldog Premier Leaf Rake Plastic 48""",27/6/2021 00:00:00,"249151",11.06,"FA0149","FARGRO LIMITED",31/5/2021 00:00:00,27/6/2021 00:00:00,"P03-2022"
"P&V","MYDDELTON HOUSE GARDENS","SUPPLIES AND SERVICES","EQUIPMENT & MATERIALS","4111","P112254-SERVICE-Twine Fillis Natural Jute 4-ply 500g",27/6/2021 00:00:00,"249151",70.6,"FA0149","FARGRO LIMITED",31/5/2021 00:00:00,27/6/2021 00:00:00,"P03-2022"
"P&V","MYDDELTON HOUSE GARDENS","SUPPLIES AND SERVICES","EQUIPMENT & MATERIALS","4111","P112254-SERVICE-Artline Marker Pen 250- Permenant Black",27/6/2021 00:00:00,"249151",23.15,"FA0149","FARGRO LIMITED",31/5/2021 00:00:00,27/6/2021 00:00:00,"P03-2022"
"P&V","MYDDELTON HOUSE GARDENS","SUPPLIES AND SERVICES","EQUIPMENT & MATERIALS","4111","P112248-SERVICE-Labels T 15cm - White",27/6/2021 00:00:00,"249373",20.72,"FA0149","FARGRO LIMITED",31/5/2021 00:00:00,27/6/2021 00:00:00,"P03-2022"
"P&V","MYDDLETON HSE HERITAGE CENTRE","SUPPLIES AND SERVICES","EQUIPMENT & MATERIALS","4111","P112156-SERVICE-Food Hygiene First Aid Kit  x 1",15/6/2021 00:00:00,"249016",42.44,"TH0008","JKL SOLUTIONS LTD",31/5/2021 00:00:00,27/6/2021 00:00:00,"P03-2022"
"P&V","MYDDLETON HSE HERITAGE CENTRE","SUPPLIES AND SERVICES","EQUIPMENT & MATERIALS","4111","P112156-SERVICE-Green Large First Aid Kit x 1",15/6/2021 00:00:00,"249016",38.2,"TH0008","JKL SOLUTIONS LTD",31/5/2021 00:00:00,27/6/2021 00:00:00,"P03-2022"
"P&V","NORTH AREA RANGERS","SUPPLIES AND SERVICES","EQUIPMENT & MATERIALS","4111","P111485-SERVICE-Equipment & Materials as and when required",14/6/2021 00:00:00,"248829",15.9,"JE0011","SAINT-GOBAIN BUILDING DISTRIBUTION",31/5/2021 00:00:00,27/6/2021 00:00:00,"P03-2022"
"P&V","NORTH AREA RANGERS","SUPPLIES AND SERVICES","EQUIPMENT & MATERIALS","4111","P111484-SERVICE-Equipment & Materials as and when required",21/6/2021 00:00:00,"249133",13.1,"JW0004","J & W FENCING LIMITED",31/5/2021 00:00:00,27/6/2021 00:00:00,"P03-2022"
"P&V","SOUTH AREA RANGERS","SUPPLIES AND SERVICES","EQUIPMENT & MATERIALS","4111","P111329-SERVICE-22x Wooden Bollards 1.2m x 125mm",7/6/2021 00:00:00,"248759",235.18,"FA0099","FARM & COUNTRY SUPPLIES LTD",31/5/2021 00:00:00,27/6/2021 00:00:00,"P03-2022"
"P&V","SOUTH AREA RANGERS","SUPPLIES AND SERVICES","EQUIPMENT & MATERIALS","4111","P111329-SERVICE-Delivery Bollards",7/6/2021 00:00:00,"248759",20,"FA0099","FARM & COUNTRY SUPPLIES LTD",31/5/2021 00:00:00,27/6/2021 00:00:00,"P03-2022"
"P&V","SOUTH AREA RANGERS","SUPPLIES AND SERVICES","EQUIPMENT & MATERIALS","4111","P112392-SERVICE-10x PU Palm Dip Gloves Black X Large - 755FR",27/6/2021 00:00:00,"248858",11,"SC0057","SCREWFIX DIRECT LTD",31/5/2021 00:00:00,27/6/2021 00:00:00,"P03-2022"
"P&V","SOUTH AREA RANGERS","SUPPLIES AND SERVICES","EQUIPMENT & MATERIALS","4111","P112392-SERVICE-20x Nitrile Foam Coated Gloves Red/Black",27/6/2021 00:00:00,"248858",46.5,"SC0057","SCREWFIX DIRECT LTD",31/5/2021 00:00:00,27/6/2021 00:00:00,"P03-2022"
"P&V","SOUTH AREA RANGERS","SUPPLIES AND SERVICES","EQUIPMENT & MATERIALS","4111","P112392-SERVICE-10x PU Palm Dip Gloves Black Medium - 391FR",27/6/2021 00:00:00,"248858",11,"SC0057","SCREWFIX DIRECT LTD",31/5/2021 00:00:00,27/6/2021 00:00:00,"P03-2022"
"P&V","SOUTH AREA RANGERS","SUPPLIES AND SERVICES","EQUIPMENT & MATERIALS","4111","P112392-SERVICE-10x PU Palm Dip Gloves Black Large - 458FR",27/6/2021 00:00:00,"248858",11,"SC0057","SCREWFIX DIRECT LTD",31/5/2021 00:00:00,27/6/2021 00:00:00,"P03-2022"
"P&V","SOUTH AREA RANGERS","SUPPLIES AND SERVICES","EQUIPMENT & MATERIALS","4111","P112392-SERVICE-1x Dewalt Straight Shank Combination Drill -",27/6/2021 00:00:00,"248858",19.16,"SC0057","SCREWFIX DIRECT LTD",31/5/2021 00:00:00,27/6/2021 00:00:00,"P03-2022"
"P&V","SOUTH AREA RANGERS","SUPPLIES AND SERVICES","EQUIPMENT & MATERIALS","4111","P112392-SERVICE-10x PU Palm Dip Gloves Black Medium - 391FR",27/6/2021 00:00:00,"249196",11,"SC0057","SCREWFIX DIRECT LTD",31/5/2021 00:00:00,27/6/2021 00:00:00,"P03-2022"
"P&V","SOUTH AREA RANGERS","SUPPLIES AND SERVICES","EQUIPMENT & MATERIALS","4111","P112392-SERVICE-10x PU Palm Dip Gloves Black Large - 458FR",27/6/2021 00:00:00,"249196",11,"SC0057","SCREWFIX DIRECT LTD",31/5/2021 00:00:00,27/6/2021 00:00:00,"P03-2022"
"P&V","SOUTH AREA RANGERS","SUPPLIES AND SERVICES","EQUIPMENT & MATERIALS","4111","P112392-SERVICE-10x PU Palm Dip Gloves Black X Large - 755FR",27/6/2021 00:00:00,"249196",11,"SC0057","SCREWFIX DIRECT LTD",31/5/2021 00:00:00,27/6/2021 00:00:00,"P03-2022"
"P&V","SOUTH AREA RANGERS","SUPPLIES AND SERVICES","EQUIPMENT & MATERIALS","4111","P112392-SERVICE-1x Dewalt Straight Shank Combination Drill -",27/6/2021 00:00:00,"249196",19.16,"SC0057","SCREWFIX DIRECT LTD",31/5/2021 00:00:00,27/6/2021 00:00:00,"P03-2022"
"P&V","SOUTH AREA RANGERS","SUPPLIES AND SERVICES","EQUIPMENT & MATERIALS","4111","P112392-SERVICE-20x Nitrile Foam Coated Gloves Red/Black",27/6/2021 00:00:00,"249196",46.5,"SC0057","SCREWFIX DIRECT LTD",31/5/2021 00:00:00,27/6/2021 00:00:00,"P03-2022"
"P&V","SOUTH AREA RANGERS","SUPPLIES AND SERVICES","EQUIPMENT & MATERIALS","4111","P112514-SERVICE-2x Squire Combi Locks 18mm - 8076J",21/6/2021 00:00:00,"249197",29.13,"SC0057","SCREWFIX DIRECT LTD",31/5/2021 00:00:00,27/6/2021 00:00:00,"P03-2022"
"P&V","SOUTH AREA RANGERS","SUPPLIES AND SERVICES","EQUIPMENT & MATERIALS","4111","P112514-SERVICE-10x Wood Saw 22"" - 4114F",21/6/2021 00:00:00,"249197",54.08,"SC0057","SCREWFIX DIRECT LTD",31/5/2021 00:00:00,27/6/2021 00:00:00,"P03-2022"
"P&V","SOUTH AREA RANGERS","SUPPLIES AND SERVICES","EQUIPMENT & MATERIALS","4111","P112514-SERVICE-1x Nite Glow Safety Tape 10x40mm - 9783T",21/6/2021 00:00:00,"249197",33.33,"SC0057","SCREWFIX DIRECT LTD",31/5/2021 00:00:00,27/6/2021 00:00:00,"P03-2022"
"P&V","SOUTH AREA RANGERS","SUPPLIES AND SERVICES","EQUIPMENT & MATERIALS","4111","P112392-SERVICE-10x PU Palm Dip Gloves Black Medium - 391FR",27/6/2021 00:00:00,"249434",-11,"SC0057","SCREWFIX DIRECT LTD",31/5/2021 00:00:00,27/6/2021 00:00:00,"P03-2022"
"P&V","SOUTH AREA RANGERS","SUPPLIES AND SERVICES","EQUIPMENT & MATERIALS","4111","P112392-SERVICE-20x Nitrile Foam Coated Gloves Red/Black",27/6/2021 00:00:00,"249434",-46.5,"SC0057","SCREWFIX DIRECT LTD",31/5/2021 00:00:00,27/6/2021 00:00:00,"P03-2022"
"P&V","SOUTH AREA RANGERS","SUPPLIES AND SERVICES","EQUIPMENT & MATERIALS","4111","P112392-SERVICE-1x Dewalt Straight Shank Combination Drill -",27/6/2021 00:00:00,"249434",-19.16,"SC0057","SCREWFIX DIRECT LTD",31/5/2021 00:00:00,27/6/2021 00:00:00,"P03-2022"
"P&V","SOUTH AREA RANGERS","SUPPLIES AND SERVICES","EQUIPMENT & MATERIALS","4111","P112392-SERVICE-10x PU Palm Dip Gloves Black X Large - 755FR",27/6/2021 00:00:00,"249434",-11,"SC0057","SCREWFIX DIRECT LTD",31/5/2021 00:00:00,27/6/2021 00:00:00,"P03-2022"
"P&V","SOUTH AREA RANGERS","SUPPLIES AND SERVICES","EQUIPMENT & MATERIALS","4111","P112392-SERVICE-10x PU Palm Dip Gloves Black Large - 458FR",27/6/2021 00:00:00,"249434",-11,"SC0057","SCREWFIX DIRECT LTD",31/5/2021 00:00:00,27/6/2021 00:00:00,"P03-2022"
"P&V","SOUTH AREA RANGERS","SUPPLIES AND SERVICES","EQUIPMENT & MATERIALS","4111","P112485-SERVICE-1x Stihl Chain Oil Filling System",27/6/2021 00:00:00,"249491",12.5,"AP0245","APS LIMITED",31/5/2021 00:00:00,27/6/2021 00:00:00,"P03-2022"
"P&V","SOUTH AREA RANGERS","SUPPLIES AND SERVICES","EQUIPMENT & MATERIALS","4111","P112485-SERVICE-1x Stihl Fuel Filling System",27/6/2021 00:00:00,"249491",12.5,"AP0245","APS LIMITED",31/5/2021 00:00:00,27/6/2021 00:00:00,"P03-2022"
"P&V","SOUTH AREA RANGERS","SUPPLIES AND SERVICES","EQUIPMENT & MATERIALS","4111","P112485-SERVICE-1x Stihl Combi Transparet Container",27/6/2021 00:00:00,"249491",30,"AP0245","APS LIMITED",31/5/2021 00:00:00,27/6/2021 00:00:00,"P03-2022"
"P&V","RIVER LEE COUNTRY PARK","SUPPLIES AND SERVICES","EQUIPMENT & MATERIALS","4111","P112161-SERVICE-1x 5L Two Stroke Oil",9/6/2021 00:00:00,"248843",27.15,"DO0027","ERNEST DOE & SONS LTD",31/5/2021 00:00:00,27/6/2021 00:00:00,"P03-2022"
"P&V","RIVER LEE COUNTRY PARK","SUPPLIES AND SERVICES","EQUIPMENT & MATERIALS","4111","P112161-SERVICE-2x Sthil Chainsaw Gloves",9/6/2021 00:00:00,"248843",55.06,"DO0027","ERNEST DOE & SONS LTD",31/5/2021 00:00:00,27/6/2021 00:00:00,"P03-2022"
"P&V","RIVER LEE COUNTRY PARK","SUPPLIES AND SERVICES","EQUIPMENT & MATERIALS","4111","P112161-SERVICE-2x 16"" Chain",9/6/2021 00:00:00,"248843",48.14,"DO0027","ERNEST DOE & SONS LTD",31/5/2021 00:00:00,27/6/2021 00:00:00,"P03-2022"
"P&V","RIVER LEE COUNTRY PARK","SUPPLIES AND SERVICES","EQUIPMENT & MATERIALS","4111","P112161-SERVICE-2x Sthil 16"" Bar",9/6/2021 00:00:00,"248843",72.1,"DO0027","ERNEST DOE & SONS LTD",31/5/2021 00:00:00,27/6/2021 00:00:00,"P03-2022"
"P&V","RIVER LEE COUNTRY PARK","SUPPLIES AND SERVICES","EQUIPMENT & MATERIALS","4111","P112161-SERVICE-2x 5L Chainsaw Oil",9/6/2021 00:00:00,"248843",31.56,"DO0027","ERNEST DOE & SONS LTD",31/5/2021 00:00:00,27/6/2021 00:00:00,"P03-2022"
"P&V","RIVER LEE COUNTRY PARK","SUPPLIES AND SERVICES","EQUIPMENT & MATERIALS","4111","P112161-SERVICE-2x Chainsaw Helmets",9/6/2021 00:00:00,"248843",80.36,"DO0027","ERNEST DOE & SONS LTD",31/5/2021 00:00:00,27/6/2021 00:00:00,"P03-2022"
"P&V","RIVER LEE COUNTRY PARK","SUPPLIES AND SERVICES","EQUIPMENT & MATERIALS","4111","P112611-SERVICE-1x Repair Hinge",21/6/2021 00:00:00,"249135",10.95,"JW0004","J & W FENCING LIMITED",31/5/2021 00:00:00,27/6/2021 00:00:00,"P03-2022"
"P&V","RIVER LEE COUNTRY PARK","SUPPLIES AND SERVICES","EQUIPMENT & MATERIALS","4111","P112611-SERVICE-1x Set Screw Driver",21/6/2021 00:00:00,"249135",15.99,"JW0004","J & W FENCING LIMITED",31/5/2021 00:00:00,27/6/2021 00:00:00,"P03-2022"
"P&V","RIVER LEE COUNTRY PARK","SUPPLIES AND SERVICES","EQUIPMENT & MATERIALS","4111","P112611-SERVICE-1x 1m Chain",21/6/2021 00:00:00,"249135",4.95,"JW0004","J & W FENCING LIMITED",31/5/2021 00:00:00,27/6/2021 00:00:00,"P03-2022"
"P&V","RIVER LEE COUNTRY PARK","SUPPLIES AND SERVICES","EQUIPMENT & MATERIALS","4111","P112611-SERVICE-4x Coach Screws",21/6/2021 00:00:00,"249135",1.6,"JW0004","J & W FENCING LIMITED",31/5/2021 00:00:00,27/6/2021 00:00:00,"P03-2022"
"P&V","RIVER LEE COUNTRY PARK","SUPPLIES AND SERVICES","EQUIPMENT & MATERIALS","4111","P112611-SERVICE-1x Jerry Can",21/6/2021 00:00:00,"249135",19.95,"JW0004","J & W FENCING LIMITED",31/5/2021 00:00:00,27/6/2021 00:00:00,"P03-2022"
"P&V","RIVER LEE COUNTRY PARK","SUPPLIES AND SERVICES","EQUIPMENT & MATERIALS","4111","P112611-SERVICE-4x Coach Bolts",21/6/2021 00:00:00,"249135",2.4,"JW0004","J & W FENCING LIMITED",31/5/2021 00:00:00,27/6/2021 00:00:00,"P03-2022"
,"LEE VALLEY VELOPARK","SUPPLIES AND SERVICES","EQUIPMENT & MATERIALS","4111","P112332-SERVICE-Equipment",7/6/2021 00:00:00,"248502",119.17,"SC0057","SCREWFIX DIRECT LTD",31/5/2021 00:00:00,27/6/2021 00:00:00,"P03-2022"
,"LEE VALLEY VELOPARK","SUPPLIES AND SERVICES","EQUIPMENT & MATERIALS","4111","P112332-SERVICE-Equipment",7/6/2021 00:00:00,"248548",1.48,"SC0057","SCREWFIX DIRECT LTD",31/5/2021 00:00:00,27/6/2021 00:00:00,"P03-2022"
,"LEE VALLEY VELOPARK","SUPPLIES AND SERVICES","EQUIPMENT & MATERIALS","4111","P110793-SERVICE-Equipment & Materials",22/6/2021 00:00:00,"249163",5.83,"SC0057","SCREWFIX DIRECT LTD",31/5/2021 00:00:00,27/6/2021 00:00:00,"P03-2022"
,"LEE VALLEY VELOPARK","SUPPLIES AND SERVICES","EQUIPMENT & MATERIALS","4111","P112582-SERVICE-JG Speedfit Supply Hose x3",22/6/2021 00:00:00,"249382",177.72,"GI0137","R & P GIBBS LIMITED",31/5/2021 00:00:00,27/6/2021 00:00:00,"P03-2022"
,"LEE VALLEY VELOPARK","SUPPLIES AND SERVICES","EQUIPMENT & MATERIALS","4111","P110793-SERVICE-Equipment & Materials",27/6/2021 00:00:00,"249653",49.95,"SC0057","SCREWFIX DIRECT LTD",31/5/2021 00:00:00,27/6/2021 00:00:00,"P03-2022"
,"LV HOCKEY AND TENNIS CENTRE","SUPPLIES AND SERVICES","EQUIPMENT & MATERIALS","4111","P112712-SERVICE-Tennis Equipment",27/6/2021 00:00:00,"249123",1265.9,"HE0386","HEAD UK LTD",31/5/2021 00:00:00,27/6/2021 00:00:00,"P03-2022"
,"LV HOCKEY AND TENNIS CENTRE","SUPPLIES AND SERVICES","EQUIPMENT & MATERIALS","4111","P112712-SERVICE-Tennis Equipment",27/6/2021 00:00:00,"249223",37.5,"HE0386","HEAD UK LTD",31/5/2021 00:00:00,27/6/2021 00:00:00,"P03-2022"
,"LEE VALLEY RIDING CENTRE","SUPPLIES AND SERVICES","EQUIPMENT & MATERIALS","4111","P112389-SERVICE-new pony for riding school",7/6/2021 00:00:00,"248797",3700,"LA0462","HAYLEY LAWSON",31/5/2021 00:00:00,27/6/2021 00:00:00,"P03-2022"
,"LEE VALLEY RIDING CENTRE","SUPPLIES AND SERVICES","EQUIPMENT & MATERIALS","4111","P112581-SERVICE-roller and harrow",16/6/2021 00:00:00,"249217",782.73,"RA0345","RAYMOND SUPPLIES LTD",31/5/2021 00:00:00,27/6/2021 00:00:00,"P03-2022"
,"LEE VALLEY RIDING CENTRE","SUPPLIES AND SERVICES","EQUIPMENT & MATERIALS","4111","RAYMOND SUPPLIES LTD",21/6/2021 00:00:00,"249396",0,"RA0345","RAYMOND SUPPLIES LTD",31/5/2021 00:00:00,27/6/2021 00:00:00,"P03-2022"
,"LV LEISURE CENTRE CAMPSITE","SUPPLIES AND SERVICES","EQUIPMENT & MATERIALS","4111","P112393-SERVICE-maintenance supplies",9/6/2021 00:00:00,"247523",295.84,"BQ0164","TRADE UK ACCOUNT",31/5/2021 00:00:00,27/6/2021 00:00:00,"P03-2022"
,"LV LEISURE CENTRE CAMPSITE","SUPPLIES AND SERVICES","EQUIPMENT & MATERIALS","4111","P112393-SERVICE-maintenance supplies",9/6/2021 00:00:00,"247762",-295.84,"BQ0164","TRADE UK ACCOUNT",31/5/2021 00:00:00,27/6/2021 00:00:00,"P03-2022"
,"LV LEISURE CENTRE CAMPSITE","SUPPLIES AND SERVICES","EQUIPMENT & MATERIALS","4111","P112507-SERVICE-maintenance materials",15/6/2021 00:00:00,"247763",93.53,"BQ0164","TRADE UK ACCOUNT",31/5/2021 00:00:00,27/6/2021 00:00:00,"P03-2022"
,"LV LEISURE CENTRE CAMPSITE","SUPPLIES AND SERVICES","EQUIPMENT & MATERIALS","4111","P112398-SERVICE-Ground maintenance materials",9/6/2021 00:00:00,"247764",196.67,"BQ0164","TRADE UK ACCOUNT",31/5/2021 00:00:00,27/6/2021 00:00:00,"P03-2022"
,"LV LEISURE CENTRE CAMPSITE","SUPPLIES AND SERVICES","EQUIPMENT & MATERIALS","4111","P112399-SERVICE-Silk paint.",9/6/2021 00:00:00,"247765",42.5,"BQ0164","TRADE UK ACCOUNT",31/5/2021 00:00:00,27/6/2021 00:00:00,"P03-2022"
,"LV LEISURE CENTRE CAMPSITE","SUPPLIES AND SERVICES","EQUIPMENT & MATERIALS","4111","P112400-SERVICE-Silk paint",9/6/2021 00:00:00,"248091",56.67,"BQ0164","TRADE UK ACCOUNT",31/5/2021 00:00:00,27/6/2021 00:00:00,"P03-2022"
,"LV LEISURE CENTRE CAMPSITE","SUPPLIES AND SERVICES","EQUIPMENT & MATERIALS","4111","P112404-SERVICE-maintenance",9/6/2021 00:00:00,"248271",54.15,"SC0057","SCREWFIX DIRECT LTD",31/5/2021 00:00:00,27/6/2021 00:00:00,"P03-2022"
,"LV LEISURE CENTRE CAMPSITE","SUPPLIES AND SERVICES","EQUIPMENT & MATERIALS","4111","P112401-SERVICE-Maintenance supplies",9/6/2021 00:00:00,"248500",65.77,"SC0057","SCREWFIX DIRECT LTD",31/5/2021 00:00:00,27/6/2021 00:00:00,"P03-2022"
,"LV LEISURE CENTRE CAMPSITE","SUPPLIES AND SERVICES","EQUIPMENT & MATERIALS","4111","P112403-SERVICE-Maintenance",9/6/2021 00:00:00,"248501",29.15,"SC0057","SCREWFIX DIRECT LTD",31/5/2021 00:00:00,27/6/2021 00:00:00,"P03-2022"
,"LV LEISURE CENTRE CAMPSITE","SUPPLIES AND SERVICES","EQUIPMENT & MATERIALS","4111","P112019-SERVICE-Delivery",14/6/2021 00:00:00,"249136",20,"JW0004","J & W FENCING LIMITED",31/5/2021 00:00:00,27/6/2021 00:00:00,"P03-2022"
,"LV LEISURE CENTRE CAMPSITE","SUPPLIES AND SERVICES","EQUIPMENT & MATERIALS","4111","P112019-SERVICE-Rails",14/6/2021 00:00:00,"249136",59.5,"JW0004","J & W FENCING LIMITED",31/5/2021 00:00:00,27/6/2021 00:00:00,"P03-2022"
,"LV LEISURE CENTRE CAMPSITE","SUPPLIES AND SERVICES","EQUIPMENT & MATERIALS","4111","P112019-SERVICE-Posts",14/6/2021 00:00:00,"249136",242,"JW0004","J & W FENCING LIMITED",31/5/2021 00:00:00,27/6/2021 00:00:00,"P03-2022"
,"LV LEISURE CENTRE CAMPSITE","SUPPLIES AND SERVICES","EQUIPMENT & MATERIALS","4111","P112019-SERVICE-PostMix",14/6/2021 00:00:00,"249136",104.5,"JW0004","J & W FENCING LIMITED",31/5/2021 00:00:00,27/6/2021 00:00:00,"P03-2022"
,"LV LEISURE CENTRE CAMPSITE","SUPPLIES AND SERVICES","EQUIPMENT & MATERIALS","4111","P112019-SERVICE-F E Panels",14/6/2021 00:00:00,"249136",397.2,"JW0004","J & W FENCING LIMITED",31/5/2021 00:00:00,27/6/2021 00:00:00,"P03-2022"
,"LEE VALLEY WHITE WATER CENTRE","SUPPLIES AND SERVICES","EQUIPMENT & MATERIALS","4111","P112380-SERVICE-usb cables",14/6/2021 00:00:00,"248787",18.84,"AM0406","AMAZON PAYMENTS UK LIMITED",31/5/2021 00:00:00,27/6/2021 00:00:00,"P03-2022"
,"LEE VALLEY WHITE WATER CENTRE","SUPPLIES AND SERVICES","EQUIPMENT & MATERIALS","4111","P111804-SERVICE-Mats and Equip",15/6/2021 00:00:00,"249076",147.4,"PE0246","PEAK UK KAYAKING COMPANY LTD",31/5/2021 00:00:00,27/6/2021 00:00:00,"P03-2022"
,"LEE VALLEY WHITE WATER CENTRE","SUPPLIES AND SERVICES","EQUIPMENT & MATERIALS","4111","P112547-SERVICE-2 x Aquaglide - Tango",16/6/2021 00:00:00,"249182",1384.08,"WA0310","WATERSPORTS WORLD UK",31/5/2021 00:00:00,27/6/2021 00:00:00,"P03-2022"
,"LEE VALLEY WHITE WATER CENTRE","SUPPLIES AND SERVICES","EQUIPMENT & MATERIALS","4111","P112547-SERVICE-20 x Aquaglide - spares - park connection str",16/6/2021 00:00:00,"249182",70,"WA0310","WATERSPORTS WORLD UK",31/5/2021 00:00:00,27/6/2021 00:00:00,"P03-2022"
,"LEE VALLEY WHITE WATER CENTRE","SUPPLIES AND SERVICES","EQUIPMENT & MATERIALS","4111","P112547-SERVICE-Delivery",16/6/2021 00:00:00,"249182",140,"WA0310","WATERSPORTS WORLD UK",31/5/2021 00:00:00,27/6/2021 00:00:00,"P03-2022"
,"LEE VALLEY WHITE WATER CENTRE","SUPPLIES AND SERVICES","EQUIPMENT & MATERIALS","4111","P112547-SERVICE-1 x Aquaglide - Neptune",16/6/2021 00:00:00,"249182",3043.78,"WA0310","WATERSPORTS WORLD UK",31/5/2021 00:00:00,27/6/2021 00:00:00,"P03-2022"
,"LEE VALLEY WHITE WATER CENTRE","SUPPLIES AND SERVICES","EQUIPMENT & MATERIALS","4111","P112547-SERVICE-5 x Aquaglide - swimstep",16/6/2021 00:00:00,"249182",3393.2,"WA0310","WATERSPORTS WORLD UK",31/5/2021 00:00:00,27/6/2021 00:00:00,"P03-2022"
,"LEE VALLEY WHITE WATER CENTRE","SUPPLIES AND SERVICES","EQUIPMENT & MATERIALS","4111","P112547-SERVICE-2 x Aquaglide - Sierra 10",16/6/2021 00:00:00,"249182",3101.92,"WA0310","WATERSPORTS WORLD UK",31/5/2021 00:00:00,27/6/2021 00:00:00,"P03-2022"
,"LEE VALLEY WHITE WATER CENTRE","SUPPLIES AND SERVICES","EQUIPMENT & MATERIALS","4111","P112547-SERVICE-1 x Aquaglide - Zulu",16/6/2021 00:00:00,"249182",1463.11,"WA0310","WATERSPORTS WORLD UK",31/5/2021 00:00:00,27/6/2021 00:00:00,"P03-2022"
,"LEE VALLEY WHITE WATER CENTRE","SUPPLIES AND SERVICES","EQUIPMENT & MATERIALS","4111","P112547-SERVICE-1 x Aquaglide - I-Hop",16/6/2021 00:00:00,"249182",2739.4,"WA0310","WATERSPORTS WORLD UK",31/5/2021 00:00:00,27/6/2021 00:00:00,"P03-2022"
,"LEE VALLEY WHITE WATER CENTRE","SUPPLIES AND SERVICES","EQUIPMENT & MATERIALS","4111","P112547-SERVICE-1 x Aquaglide - splashmat 18",16/6/2021 00:00:00,"249182",1283.56,"WA0310","WATERSPORTS WORLD UK",31/5/2021 00:00:00,27/6/2021 00:00:00,"P03-2022"
,"LEE VALLEY WHITE WATER CENTRE","SUPPLIES AND SERVICES","EQUIPMENT & MATERIALS","4111","P112504-SERVICE-Headphones and phone case",22/6/2021 00:00:00,"249198",6.64,"AM0406","AMAZON PAYMENTS UK LIMITED",31/5/2021 00:00:00,27/6/2021 00:00:00,"P03-2022"
,"LEE VALLEY WHITE WATER CENTRE","SUPPLIES AND SERVICES","EQUIPMENT & MATERIALS","4111","P112504-SERVICE-Headphones and phone case",22/6/2021 00:00:00,"249199",39.98,"AM0406","AMAZON PAYMENTS UK LIMITED",31/5/2021 00:00:00,27/6/2021 00:00:00,"P03-2022"
,"LEE VALLEY WHITE WATER CENTRE","SUPPLIES AND SERVICES","EQUIPMENT & MATERIALS","4111","P111245-SERVICE-18 x SUP paddle",15/6/2021 00:00:00,"249205",-438.12,"JO0119","JOBE SPORTS INTERNATIONAL",31/5/2021 00:00:00,27/6/2021 00:00:00,"P03-2022"
,"LEE VALLEY WHITE WATER CENTRE","SUPPLIES AND SERVICES","EQUIPMENT & MATERIALS","4111","P111245-SERVICE-Transportation costs",15/6/2021 00:00:00,"249205",-30.67,"JO0119","JOBE SPORTS INTERNATIONAL",31/5/2021 00:00:00,27/6/2021 00:00:00,"P03-2022"
,"LEE VALLEY WHITE WATER CENTRE","SUPPLIES AND SERVICES","EQUIPMENT & MATERIALS","4111","P111245-SERVICE-Export Documentation",15/6/2021 00:00:00,"249205",-15,"JO0119","JOBE SPORTS INTERNATIONAL",31/5/2021 00:00:00,27/6/2021 00:00:00,"P03-2022"
,"LEE VALLEY WHITE WATER CENTRE","SUPPLIES AND SERVICES","EQUIPMENT & MATERIALS","4111","P111244-SERVICE-Transportation fees",15/6/2021 00:00:00,"249206",-18.51,"JO0119","JOBE SPORTS INTERNATIONAL",31/5/2021 00:00:00,27/6/2021 00:00:00,"P03-2022"
,"LEE VALLEY WHITE WATER CENTRE","SUPPLIES AND SERVICES","EQUIPMENT & MATERIALS","4111","P111244-SERVICE-15 x Bolts for SUP fins",15/6/2021 00:00:00,"249206",-100.2,"JO0119","JOBE SPORTS INTERNATIONAL",31/5/2021 00:00:00,27/6/2021 00:00:00,"P03-2022"
,"LEE VALLEY WHITE WATER CENTRE","SUPPLIES AND SERVICES","EQUIPMENT & MATERIALS","4111","P111244-SERVICE-2 x Triple Action SUP Pump",15/6/2021 00:00:00,"249206",-109.52,"JO0119","JOBE SPORTS INTERNATIONAL",31/5/2021 00:00:00,27/6/2021 00:00:00,"P03-2022"
,"LEE VALLEY WHITE WATER CENTRE","SUPPLIES AND SERVICES","EQUIPMENT & MATERIALS","4111","P111244-SERVICE-Export document costs",15/6/2021 00:00:00,"249206",-15,"JO0119","JOBE SPORTS INTERNATIONAL",31/5/2021 00:00:00,27/6/2021 00:00:00,"P03-2022"
,"LEE VALLEY WHITE WATER CENTRE","SUPPLIES AND SERVICES","EQUIPMENT & MATERIALS","4111","P111244-SERVICE-6 x Hand Pump Double Action",15/6/2021 00:00:00,"249206",-82.08,"JO0119","JOBE SPORTS INTERNATIONAL",31/5/2021 00:00:00,27/6/2021 00:00:00,"P03-2022"
,"LEE VALLEY WHITE WATER CENTRE","SUPPLIES AND SERVICES","EQUIPMENT & MATERIALS","4111","P111825-SERVICE-Mats and Equipment blanket order for MR and J",21/6/2021 00:00:00,"249242",14.87,"AM0406","AMAZON PAYMENTS UK LIMITED",31/5/2021 00:00:00,27/6/2021 00:00:00,"P03-2022"
,"LEE VALLEY WHITE WATER CENTRE","SUPPLIES AND SERVICES","EQUIPMENT & MATERIALS","4111","P111825-SERVICE-Mats and Equipment blanket order for MR and J",21/6/2021 00:00:00,"249243",8.32,"AM0406","AMAZON PAYMENTS UK LIMITED",31/5/2021 00:00:00,27/6/2021 00:00:00,"P03-2022"
,"LEE VALLEY WHITE WATER CENTRE","SUPPLIES AND SERVICES","EQUIPMENT & MATERIALS","4111","P111825-SERVICE-Mats and Equipment blanket order for MR and J",21/6/2021 00:00:00,"249244",2.92,"AM0406","AMAZON PAYMENTS UK LIMITED",31/5/2021 00:00:00,27/6/2021 00:00:00,"P03-2022"
,"LEE VALLEY WHITE WATER CENTRE","SUPPLIES AND SERVICES","EQUIPMENT & MATERIALS","4111","P112600-SERVICE-Swiss turbo hairdryers",21/6/2021 00:00:00,"249381",251.25,"GI0137","R & P GIBBS LIMITED",31/5/2021 00:00:00,27/6/2021 00:00:00,"P03-2022"
,"LEE VALLEY WHITE WATER CENTRE","SUPPLIES AND SERVICES","EQUIPMENT & MATERIALS","4111","WATERSPORTS WORLD UK",22/6/2021 00:00:00,"249416",0,"WA0310","WATERSPORTS WORLD UK",31/5/2021 00:00:00,27/6/2021 00:00:00,"P03-2022"
,"LEE VALLEY WHITE WATER CENTRE","SUPPLIES AND SERVICES","EQUIPMENT & MATERIALS","4111","P112640-SERVICE-Brown Tape",27/6/2021 00:00:00,"249442",5.82,"AM0406","AMAZON PAYMENTS UK LIMITED",31/5/2021 00:00:00,27/6/2021 00:00:00,"P03-2022"
,"LEE VALLEY WHITE WATER CENTRE","SUPPLIES AND SERVICES","EQUIPMENT & MATERIALS","4111","P112690-SERVICE-Tablet, screen protector and cases",27/6/2021 00:00:00,"249481",4.78,"AM0406","AMAZON PAYMENTS UK LIMITED",31/5/2021 00:00:00,27/6/2021 00:00:00,"P03-2022"
,"LEE VALLEY WHITE WATER CENTRE","SUPPLIES AND SERVICES","EQUIPMENT & MATERIALS","4111","P112690-SERVICE-Tablet, screen protector and cases",27/6/2021 00:00:00,"249510",177.62,"AM0406","AMAZON PAYMENTS UK LIMITED",31/5/2021 00:00:00,27/6/2021 00:00:00,"P03-2022"
,"LEE VALLEY WHITE WATER CENTRE","SUPPLIES AND SERVICES","EQUIPMENT & MATERIALS","4111","P112690-SERVICE-Tablet, screen protector and cases",27/6/2021 00:00:00,"249511",18.91,"AM0406","AMAZON PAYMENTS UK LIMITED",31/5/2021 00:00:00,27/6/2021 00:00:00,"P03-2022"
,"LEE VALLEY WHITE WATER CENTRE","SUPPLIES AND SERVICES","EQUIPMENT & MATERIALS","4111","P112690-SERVICE-Tablet, screen protector and cases",27/6/2021 00:00:00,"249512",10.66,"AM0406","AMAZON PAYMENTS UK LIMITED",31/5/2021 00:00:00,27/6/2021 00:00:00,"P03-2022"
,"LEE VALLEY WHITE WATER CENTRE","SUPPLIES AND SERVICES","EQUIPMENT & MATERIALS","4111","P112690-SERVICE-Tablet, screen protector and cases",27/6/2021 00:00:00,"249513",6.66,"AM0406","AMAZON PAYMENTS UK LIMITED",31/5/2021 00:00:00,27/6/2021 00:00:00,"P03-2022"
"P&V","FISHERIES MANAGEMENT","SUPPLIES AND SERVICES","EQUIPMENT MAINTENANCE","4112","P112586-SERVICE-Machinery Servicing",21/6/2021 00:00:00,"249216",399.95,"NA0168","NAZEING GARDEN MACHINERY",31/5/2021 00:00:00,27/6/2021 00:00:00,"P03-2022"
,"LEE VALLEY CARAVAN PARK","SUPPLIES AND SERVICES","EQUIPMENT MAINTENANCE","4112","P112526-SERVICE-Tanker for a pit clean",14/6/2021 00:00:00,"247662",340,"CO0550","CONVERT WATER LTD",31/5/2021 00:00:00,27/6/2021 00:00:00,"P03-2022"
,"LEE VALLEY CARAVAN PARK","SUPPLIES AND SERVICES","EQUIPMENT MAINTENANCE","4112","P112528-SERVICE-Feb/March pest control",14/6/2021 00:00:00,"247866",140,"VE0006","VERMINATE CITY & RURAL PEST CONTROL LTD",31/5/2021 00:00:00,27/6/2021 00:00:00,"P03-2022"
,"LEE VALLEY CARAVAN PARK","SUPPLIES AND SERVICES","EQUIPMENT MAINTENANCE","4112","P112529-SERVICE-April pest control",14/6/2021 00:00:00,"247867",70,"VE0006","VERMINATE CITY & RURAL PEST CONTROL LTD",31/5/2021 00:00:00,27/6/2021 00:00:00,"P03-2022"
,"LEE VALLEY CARAVAN PARK","SUPPLIES AND SERVICES","EQUIPMENT MAINTENANCE","4112","P112530-SERVICE-May pest control",14/6/2021 00:00:00,"247868",70,"VE0006","VERMINATE CITY & RURAL PEST CONTROL LTD",31/5/2021 00:00:00,27/6/2021 00:00:00,"P03-2022"
,"LEE VALLEY CARAVAN PARK","SUPPLIES AND SERVICES","EQUIPMENT MAINTENANCE","4112","P112553-SERVICE-Floor paint",14/6/2021 00:00:00,"248093",66.65,"SC0057","SCREWFIX DIRECT LTD",31/5/2021 00:00:00,27/6/2021 00:00:00,"P03-2022"
,"LEE VALLEY CARAVAN PARK","SUPPLIES AND SERVICES","EQUIPMENT MAINTENANCE","4112","P111944-SERVICE-OIL LEAK Kubota",21/6/2021 00:00:00,"248589",394,"GE0440","GTEC'S",31/5/2021 00:00:00,27/6/2021 00:00:00,"P03-2022"
,"LEE VALLEY CARAVAN PARK","SUPPLIES AND SERVICES","EQUIPMENT MAINTENANCE","4112","P111943-SERVICE-Service Kubota and Buggy",21/6/2021 00:00:00,"248590",638,"GE0440","GTEC'S",31/5/2021 00:00:00,27/6/2021 00:00:00,"P03-2022"
,"LEE VALLEY CARAVAN PARK","SUPPLIES AND SERVICES","EQUIPMENT MAINTENANCE","4112","P112550-SERVICE-June pest control",14/6/2021 00:00:00,"249061",70,"VE0006","VERMINATE CITY & RURAL PEST CONTROL LTD",31/5/2021 00:00:00,27/6/2021 00:00:00,"P03-2022"
,"LEE VALLEY CARAVAN PARK","SUPPLIES AND SERVICES","EQUIPMENT MAINTENANCE","4112","P112661-SERVICE-Barrier problem",21/6/2021 00:00:00,"249211",325,"AU0245","AUTO-MATE SYSTEMS LIMITED",31/5/2021 00:00:00,27/6/2021 00:00:00,"P03-2022"
,"LEE VALLEY CARAVAN PARK","SUPPLIES AND SERVICES","EQUIPMENT MAINTENANCE","4112","P112572-SERVICE-Gas meter support",21/6/2021 00:00:00,"249234",100,"SO0400","SOUTHERN GREEN SERVICES LIMITED",31/5/2021 00:00:00,27/6/2021 00:00:00,"P03-2022"
,"LEE VALLEY CARAVAN PARK","SUPPLIES AND SERVICES","EQUIPMENT MAINTENANCE","4112","P112571-SERVICE-Repaired leaking taps",21/6/2021 00:00:00,"249236",105,"SO0400","SOUTHERN GREEN SERVICES LIMITED",31/5/2021 00:00:00,27/6/2021 00:00:00,"P03-2022"
,"LEE VALLEY CARAVAN PARK","SUPPLIES AND SERVICES","EQUIPMENT MAINTENANCE","4112","P112570-SERVICE-boiler service, gas safety cert",21/6/2021 00:00:00,"249237",370,"SO0400","SOUTHERN GREEN SERVICES LIMITED",31/5/2021 00:00:00,27/6/2021 00:00:00,"P03-2022"
,"LEE VALLEY CARAVAN PARK","SUPPLIES AND SERVICES","EQUIPMENT MAINTENANCE","4112","P112569-SERVICE-Repair leaking toilet",27/6/2021 00:00:00,"249238",80,"SO0400","SOUTHERN GREEN SERVICES LIMITED",31/5/2021 00:00:00,27/6/2021 00:00:00,"P03-2022"
,"LEE VALLEY CARAVAN PARK","SUPPLIES AND SERVICES","EQUIPMENT MAINTENANCE","4112","P112532-SERVICE-Machinery maintenence",21/6/2021 00:00:00,"249400",416,"GE0440","GTEC'S",31/5/2021 00:00:00,27/6/2021 00:00:00,"P03-2022"
"P&V","MYDDELTON HOUSE GARDENS","SUPPLIES AND SERVICES","EQUIPMENT MAINTENANCE","4112","P111647-SERVICE-Jump Plate - deck model RCK48-G23    2009 mod",9/6/2021 00:00:00,"247502",48,"BR0143","GEORGE BROWNS LTD",31/5/2021 00:00:00,27/6/2021 00:00:00,"P03-2022"
"P&V","MYDDELTON HOUSE GARDENS","SUPPLIES AND SERVICES","EQUIPMENT MAINTENANCE","4112","P111647-SERVICE-Jump Plate - deck model RCK48-G23    2009 mod",9/6/2021 00:00:00,"248793",138.66,"BR0143","GEORGE BROWNS LTD",31/5/2021 00:00:00,27/6/2021 00:00:00,"P03-2022"
,"LV WHITE WATER CATERING","SUPPLIES AND SERVICES","EQUIPMENT MAINTENANCE","4112","P112459-SERVICE-Extractor fan",21/6/2021 00:00:00,"249230",120,"GI0137","R & P GIBBS LIMITED",31/5/2021 00:00:00,27/6/2021 00:00:00,"P03-2022"
"R&B","INFORMATION TECHNOLOGY","SUPPLIES AND SERVICES","IT CORE SYSTEMS","4113","P112231-SERVICE-P11D service 66 employees",15/6/2021 00:00:00,"248140",660,"PA0453","PAYROLL BUSINESS SOLUTIONS LTD",31/5/2021 00:00:00,27/6/2021 00:00:00,"P03-2022"
"R&B","INFORMATION TECHNOLOGY","SUPPLIES AND SERVICES","IT CORE SYSTEMS","4113","P112688-SERVICE-Managed Fee 14 Aug - 13 Sept 21",22/6/2021 00:00:00,"249232",1246.24,"CE0021","ADVANCED BUSINESS SOLUTIONS",31/5/2021 00:00:00,27/6/2021 00:00:00,"P03-2022"
"R&B","INFORMATION TECHNOLOGY","SUPPLIES AND SERVICES","IT CORE SYSTEMS","4113","P112692-SERVICE-Monthly Service fee's 15 Jun - 14 Jul 21",27/6/2021 00:00:00,"249339",351,"CO0440","VERIFONE SERVICES UK & IRELAND LTD",31/5/2021 00:00:00,27/6/2021 00:00:00,"P03-2022"
"R&B","INFORMATION TECHNOLOGY","SUPPLIES AND SERVICES","IT CORE SYSTEMS","4113","P112395-SERVICE-Trustwave licences renewal - 01 Jun 2021 - 31",22/6/2021 00:00:00,"249394",12204.53,"TR0253","TRUSTWAVE LIMITED",31/5/2021 00:00:00,27/6/2021 00:00:00,"P03-2022"
"R&B","INFORMATION TECHNOLOGY","SUPPLIES AND SERVICES","IT CORE SYSTEMS","4113","P111362-SERVICE-Hosted Payroll May 21- March 22",27/6/2021 00:00:00,"249485",542.51,"PA0453","PAYROLL BUSINESS SOLUTIONS LTD",31/5/2021 00:00:00,27/6/2021 00:00:00,"P03-2022"
,"LSC INFORMATION TECHNOLOGY","SUPPLIES AND SERVICES","IT CORE SYSTEMS","4113","P111282-SERVICE-Access People HOS Software Jul Sept 21",15/6/2021 00:00:00,"249045",1343.7,"SE0251","ACCESS UK LTD (FRMLY SELIMA)",31/5/2021 00:00:00,27/6/2021 00:00:00,"P03-2022"
"R&B","INFORMATION TECHNOLOGY","SUPPLIES AND SERVICES","IT NETWORK & TELECOMS COSTS","4114","P111480-SERVICE-Monthly SIP Apr 21-Mar 22",9/6/2021 00:00:00,"248723",147.03,"FR0131","VOICEFLEX LTD",31/5/2021 00:00:00,27/6/2021 00:00:00,"P03-2022"
"R&B","INFORMATION TECHNOLOGY","SUPPLIES AND SERVICES","IT NETWORK & TELECOMS COSTS","4114","P112551-SERVICE-MPLS for all sites Jun 21",15/6/2021 00:00:00,"249038",11996.86,"PP0200","PPSNET LIMITED",31/5/2021 00:00:00,27/6/2021 00:00:00,"P03-2022"
"P&V","FISHERIES MANAGEMENT","SUPPLIES AND SERVICES","EQUIPMENT HIRE","4115","P111980-SERVICE-52 weeks hire at Stansted Innings, Marsh Lane",7/6/2021 00:00:00,"248549",92,"TO0092","TOILETS+ LTD",31/5/2021 00:00:00,27/6/2021 00:00:00,"P03-2022"
,"LEE VALLEY VELOPARK","SUPPLIES AND SERVICES","EQUIPMENT HIRE","4115","P112447-SERVICE-Equipment hire June 2021",8/6/2021 00:00:00,"248616",364.82,"PE0015","PHS GROUP PLC",31/5/2021 00:00:00,27/6/2021 00:00:00,"P03-2022"
,"LV HOCKEY AND TENNIS CENTRE","SUPPLIES AND SERVICES","EQUIPMENT HIRE","4115","P112450-SERVICE-Equipment hire June 2021",8/6/2021 00:00:00,"248617",285.27,"PE0015","PHS GROUP PLC",31/5/2021 00:00:00,27/6/2021 00:00:00,"P03-2022"
"P&V","MYDDELTON HOUSE","SUPPLIES AND SERVICES","IT HARDWARE & SOFTWARE COSTS","4116","ZEN INTERNET LTD",15/6/2021 00:00:00,"249164",42,"ZE0007","ZEN INTERNET LTD",31/5/2021 00:00:00,27/6/2021 00:00:00,"P03-2022"
"R&B","INFORMATION TECHNOLOGY","SUPPLIES AND SERVICES","IT HARDWARE & SOFTWARE COSTS","4116","P112693-SERVICE-Pulseway On premises - 50 server",22/6/2021 00:00:00,"246925",878,"IQ0022","IQUAL",31/5/2021 00:00:00,27/6/2021 00:00:00,"P03-2022"
"R&B","INFORMATION TECHNOLOGY","SUPPLIES AND SERVICES","IT HARDWARE & SOFTWARE COSTS","4116","P112693-SERVICE-Re-installation and Config from Vibrant to Au",22/6/2021 00:00:00,"246925",295,"IQ0022","IQUAL",31/5/2021 00:00:00,27/6/2021 00:00:00,"P03-2022"
"R&B","INFORMATION TECHNOLOGY","SUPPLIES AND SERVICES","IT HARDWARE & SOFTWARE COSTS","4116","P112239-SERVICE-Dell KB216 Keyboard",27/6/2021 00:00:00,"249487",83.7,"BY0531","BYTES SOFTWARE SERVICES LIMITED",31/5/2021 00:00:00,27/6/2021 00:00:00,"P03-2022"
"R&B","INFORMATION TECHNOLOGY","SUPPLIES AND SERVICES","IT HARDWARE & SOFTWARE COSTS","4116","P112239-SERVICE-Delivery chg",27/6/2021 00:00:00,"249487",3,"BY0531","BYTES SOFTWARE SERVICES LIMITED",31/5/2021 00:00:00,27/6/2021 00:00:00,"P03-2022"
"R&B","INFORMATION TECHNOLOGY","SUPPLIES AND SERVICES","IT HARDWARE & SOFTWARE COSTS","4116","P111692-SERVICE-Email filtering & large Files",27/6/2021 00:00:00,"249652",738,"IQ0022","IQUAL",31/5/2021 00:00:00,27/6/2021 00:00:00,"P03-2022"
,"LEE VALLEY MARINA SPRINGFIELD","SUPPLIES AND SERVICES","IT HARDWARE & SOFTWARE COSTS","4116","ZEN INTERNET LTD",21/6/2021 00:00:00,"249194",38,"ZE0007","ZEN INTERNET LTD",31/5/2021 00:00:00,27/6/2021 00:00:00,"P03-2022"
,"LEE VALLEY MARINA STANSTEAD","SUPPLIES AND SERVICES","IT HARDWARE & SOFTWARE COSTS","4116","ZEN INTERNET LTD",22/6/2021 00:00:00,"249195",31.32,"ZE0007","ZEN INTERNET LTD",31/5/2021 00:00:00,27/6/2021 00:00:00,"P03-2022"
,"LEE VALLEY CARAVAN PARK","SUPPLIES AND SERVICES","IT HARDWARE & SOFTWARE COSTS","4116","P112552-SERVICE-Fibre Connection",15/6/2021 00:00:00,"249037",835,"PP0200","PPSNET LIMITED",31/5/2021 00:00:00,27/6/2021 00:00:00,"P03-2022"
,"LEE VALLEY RIDING CENTRE","SUPPLIES AND SERVICES","IT HARDWARE & SOFTWARE COSTS","4116","ZEN INTERNET LTD",15/6/2021 00:00:00,"248856",31.32,"ZE0007","ZEN INTERNET LTD",31/5/2021 00:00:00,27/6/2021 00:00:00,"P03-2022"
,"LEE VALLEY ICE CENTRE","SUPPLIES AND SERVICES","IT HARDWARE & SOFTWARE COSTS","4116","ZEN INTERNET LTD",15/6/2021 00:00:00,"248871",19.74,"ZE0007","ZEN INTERNET LTD",31/5/2021 00:00:00,27/6/2021 00:00:00,"P03-2022"
,"LEE VALLEY ICE CENTRE","SUPPLIES AND SERVICES","IT HARDWARE & SOFTWARE COSTS","4116","ZEN INTERNET LTD",15/6/2021 00:00:00,"248872",4.17,"ZE0007","ZEN INTERNET LTD",31/5/2021 00:00:00,27/6/2021 00:00:00,"P03-2022"
,"LEE VALLEY ICE CENTRE","SUPPLIES AND SERVICES","IT HARDWARE & SOFTWARE COSTS","4116","ZEN INTERNET LTD",15/6/2021 00:00:00,"248873",25.81,"ZE0007","ZEN INTERNET LTD",31/5/2021 00:00:00,27/6/2021 00:00:00,"P03-2022"
,"LEE VALLEY WHITE WATER CENTRE","SUPPLIES AND SERVICES","IT HARDWARE & SOFTWARE COSTS","4116","ZEN INTERNET LTD",27/6/2021 00:00:00,"249432",13.49,"ZE0007","ZEN INTERNET LTD",31/5/2021 00:00:00,27/6/2021 00:00:00,"P03-2022"
,"LEE VALLEY WHITE WATER CENTRE","SUPPLIES AND SERVICES","IT HARDWARE & SOFTWARE COSTS","4116","ZEN INTERNET LTD",27/6/2021 00:00:00,"249433",17.83,"ZE0007","ZEN INTERNET LTD",31/5/2021 00:00:00,27/6/2021 00:00:00,"P03-2022"
,"LEE VALLEY ATHLETICS CENTRE","SUPPLIES AND SERVICES","VENDING AGREEMENTS","4117","P112381-SERVICE-LVAC INVOICE 9296385972",9/6/2021 00:00:00,"248495",-27.48,"BR0019","BRAKE BROTHERS LIMITED",31/5/2021 00:00:00,27/6/2021 00:00:00,"P03-2022"
,"LEE VALLEY ATHLETICS CENTRE","SUPPLIES AND SERVICES","VENDING AGREEMENTS","4117","P112381-SERVICE-LVAC INVOICE 9296385972",8/6/2021 00:00:00,"248496",473.32,"BR0019","BRAKE BROTHERS LIMITED",31/5/2021 00:00:00,27/6/2021 00:00:00,"P03-2022"
,"LEE VALLEY ATHLETICS CENTRE","SUPPLIES AND SERVICES","VENDING AGREEMENTS","4117","BRAKE BROTHERS LIMITED",8/6/2021 00:00:00,"248496",-473.32,"BR0019","BRAKE BROTHERS LIMITED",31/5/2021 00:00:00,27/6/2021 00:00:00,"P03-2022"
,"LEE VALLEY ATHLETICS CENTRE","SUPPLIES AND SERVICES","VENDING AGREEMENTS","4117","BRAKE BROTHERS LIMITED",8/6/2021 00:00:00,"248496",27.78,"BR0019","BRAKE BROTHERS LIMITED",31/5/2021 00:00:00,27/6/2021 00:00:00,"P03-2022"
,"LEE VALLEY ATHLETICS CENTRE","SUPPLIES AND SERVICES","VENDING AGREEMENTS","4117","BRAKE BROTHERS LIMITED",8/6/2021 00:00:00,"248496",445.54,"BR0019","BRAKE BROTHERS LIMITED",31/5/2021 00:00:00,27/6/2021 00:00:00,"P03-2022"
,"LEE VALLEY ATHLETICS CENTRE","SUPPLIES AND SERVICES","VENDING AGREEMENTS","4117","P112017-SERVICE-lvac inv 9296361201 30.4.21 vending stock",27/6/2021 00:00:00,"249088",-27.18,"BR0019","BRAKE BROTHERS LIMITED",31/5/2021 00:00:00,27/6/2021 00:00:00,"P03-2022"
,"LEE VALLEY ATHLETICS CENTRE","SUPPLIES AND SERVICES","VENDING AGREEMENTS","4117","P112381-SERVICE-LVAC INVOICE 9296385972",27/6/2021 00:00:00,"249089",-33.98,"BR0019","BRAKE BROTHERS LIMITED",31/5/2021 00:00:00,27/6/2021 00:00:00,"P03-2022"
,"LEE VALLEY ATHLETICS CENTRE","SUPPLIES AND SERVICES","VENDING AGREEMENTS","4117","P112790-SERVICE-LVAC VENDING INV 9296403044 4.6.21",27/6/2021 00:00:00,"249231",1027.55,"BR0019","BRAKE BROTHERS LIMITED",31/5/2021 00:00:00,27/6/2021 00:00:00,"P03-2022"
,"LEE VALLEY ATHLETICS CENTRE","SUPPLIES AND SERVICES","VENDING AGREEMENTS","4117","RIJO 42 INGREDIENTS LIMITED",27/6/2021 00:00:00,"249371",-261.08,"RI0176","RIJO 42 INGREDIENTS LIMITED",31/5/2021 00:00:00,27/6/2021 00:00:00,"P03-2022"
,"LEE VALLEY ATHLETICS CENTRE","SUPPLIES AND SERVICES","VENDING AGREEMENTS","4117","P112791-SERVICE-LVAC INV P941702 9.6.21",27/6/2021 00:00:00,"249371",261.08,"RI0176","RIJO 42 INGREDIENTS LIMITED",31/5/2021 00:00:00,27/6/2021 00:00:00,"P03-2022"
,"LEE VALLEY ATHLETICS CENTRE","SUPPLIES AND SERVICES","VENDING AGREEMENTS","4117","RIJO 42 INGREDIENTS LIMITED",27/6/2021 00:00:00,"249371",60.2,"RI0176","RIJO 42 INGREDIENTS LIMITED",31/5/2021 00:00:00,27/6/2021 00:00:00,"P03-2022"
,"LEE VALLEY ATHLETICS CENTRE","SUPPLIES AND SERVICES","VENDING AGREEMENTS","4117","RIJO 42 INGREDIENTS LIMITED",27/6/2021 00:00:00,"249371",200.88,"RI0176","RIJO 42 INGREDIENTS LIMITED",31/5/2021 00:00:00,27/6/2021 00:00:00,"P03-2022"
,"LEE VALLEY ATHLETICS CENTRE","SUPPLIES AND SERVICES","VENDING AGREEMENTS","4117","BRAKE BROTHERS LIMITED",27/6/2021 00:00:00,"249493",4.5,"BR0019","BRAKE BROTHERS LIMITED",31/5/2021 00:00:00,27/6/2021 00:00:00,"P03-2022"
,"LEE VALLEY ATHLETICS CENTRE","SUPPLIES AND SERVICES","VENDING AGREEMENTS","4117","P112789-SERVICE-LVAC VENDING INF 9296421599 18.6.21",27/6/2021 00:00:00,"249493",792.7,"BR0019","BRAKE BROTHERS LIMITED",31/5/2021 00:00:00,27/6/2021 00:00:00,"P03-2022"
,"LEE VALLEY ATHLETICS CENTRE","SUPPLIES AND SERVICES","VENDING AGREEMENTS","4117","BRAKE BROTHERS LIMITED",27/6/2021 00:00:00,"249493",-792.7,"BR0019","BRAKE BROTHERS LIMITED",31/5/2021 00:00:00,27/6/2021 00:00:00,"P03-2022"
,"LEE VALLEY ATHLETICS CENTRE","SUPPLIES AND SERVICES","VENDING AGREEMENTS","4117","BRAKE BROTHERS LIMITED",27/6/2021 00:00:00,"249493",788.2,"BR0019","BRAKE BROTHERS LIMITED",31/5/2021 00:00:00,27/6/2021 00:00:00,"P03-2022"
,"LEE VALLEY MARINA SPRINGFIELD","SUPPLIES AND SERVICES","IT MAINTENANCE AGREEMENTS","4119","P112490-SERVICE-Support &  Data Jun 21",9/6/2021 00:00:00,"248798",72.44,"CY0653","CYBERTILL",31/5/2021 00:00:00,27/6/2021 00:00:00,"P03-2022"
,"LEE VALLEY MARINA STANSTEAD","SUPPLIES AND SERVICES","IT MAINTENANCE AGREEMENTS","4119","P112490-SERVICE-Support & Data Jun 21",9/6/2021 00:00:00,"248798",72.44,"CY0653","CYBERTILL",31/5/2021 00:00:00,27/6/2021 00:00:00,"P03-2022"
,"LEE VALLEY CAMPSITE","SUPPLIES AND SERVICES","IT MAINTENANCE AGREEMENTS","4119","P111852-SERVICE-Monthlt Subscription may 21 - Oct 21 Sewardst",22/6/2021 00:00:00,"249408",145.5,"NE0218","NETGUIDES LIMITED",31/5/2021 00:00:00,27/6/2021 00:00:00,"P03-2022"
,"LEE VALLEY CARAVAN PARK","SUPPLIES AND SERVICES","IT MAINTENANCE AGREEMENTS","4119","P111852-SERVICE-Monthly Subscription May 21 - Oct 21 DW",22/6/2021 00:00:00,"249408",145.5,"NE0218","NETGUIDES LIMITED",31/5/2021 00:00:00,27/6/2021 00:00:00,"P03-2022"
"P&V","ALMOST WILD CAMPSITE","SUPPLIES AND SERVICES","IT MAINTENANCE AGREEMENTS","4119","P111852-SERVICE-Monthly Subscription May 21 - Oct 21 AWC",22/6/2021 00:00:00,"249408",145.5,"NE0218","NETGUIDES LIMITED",31/5/2021 00:00:00,27/6/2021 00:00:00,"P03-2022"
,"LV LEISURE CENTRE CAMPSITE","SUPPLIES AND SERVICES","IT MAINTENANCE AGREEMENTS","4119","P111852-SERVICE-Monthly Subscription May 21 - Oct 21 Edmonton",22/6/2021 00:00:00,"249408",145.5,"NE0218","NETGUIDES LIMITED",31/5/2021 00:00:00,27/6/2021 00:00:00,"P03-2022"
,"LV LEISURE CENTRE GOLF COURSE","SUPPLIES AND SERVICES","IT MAINTENANCE AGREEMENTS","4119","P112700-SERVICE-Digitickets Services May 2021",22/6/2021 00:00:00,"248771",665.37,"DI0304","DIGITAL TICKETING SYSTEMS LTD (DIGITICKETS)",31/5/2021 00:00:00,27/6/2021 00:00:00,"P03-2022"
,"LEE VALLEY CARAVAN PARK","SUPPLIES AND SERVICES","MATERIALS (GROUNDS MAINT)","4125","P111945-SERVICE-Dead ash tree removel",14/6/2021 00:00:00,"247682",895,"MU0030","P J MUSK TREES",31/5/2021 00:00:00,27/6/2021 00:00:00,"P03-2022"
,"LEE VALLEY CARAVAN PARK","SUPPLIES AND SERVICES","MATERIALS (GROUNDS MAINT)","4125","P111750-SERVICE-southern green ltd",8/6/2021 00:00:00,"247816",890,"SO0400","SOUTHERN GREEN SERVICES LIMITED",31/5/2021 00:00:00,27/6/2021 00:00:00,"P03-2022"
,"LEE VALLEY CARAVAN PARK","SUPPLIES AND SERVICES","MATERIALS (GROUNDS MAINT)","4125","P112535-SERVICE-Brushes and paint",14/6/2021 00:00:00,"248092",44.52,"SC0057","SCREWFIX DIRECT LTD",31/5/2021 00:00:00,27/6/2021 00:00:00,"P03-2022"
"P&V","NORTH AREA RANGERS","SUPPLIES AND SERVICES","MATERIALS (GROUNDS MAINT)","4125","P111891-SERVICE-1x Roll Land Drain",9/6/2021 00:00:00,"248566",100,"JE0011","SAINT-GOBAIN BUILDING DISTRIBUTION",31/5/2021 00:00:00,27/6/2021 00:00:00,"P03-2022"
"P&V","NORTH AREA RANGERS","SUPPLIES AND SERVICES","MATERIALS (GROUNDS MAINT)","4125","P111891-SERVICE-1x Roll Terram",9/6/2021 00:00:00,"248566",20.8,"JE0011","SAINT-GOBAIN BUILDING DISTRIBUTION",31/5/2021 00:00:00,27/6/2021 00:00:00,"P03-2022"
"P&V","NORTH AREA RANGERS","SUPPLIES AND SERVICES","MATERIALS (GROUNDS MAINT)","4125","P111891-SERVICE-10x Bagsof Type 1",9/6/2021 00:00:00,"248566",500,"JE0011","SAINT-GOBAIN BUILDING DISTRIBUTION",31/5/2021 00:00:00,27/6/2021 00:00:00,"P03-2022"
"P&V","NORTH AREA RANGERS","SUPPLIES AND SERVICES","MATERIALS (GROUNDS MAINT)","4125","P111892-SERVICE-12x 4x4 Posts",21/6/2021 00:00:00,"249185",150,"JW0004","J & W FENCING LIMITED",31/5/2021 00:00:00,27/6/2021 00:00:00,"P03-2022"
"P&V","NORTH AREA RANGERS","SUPPLIES AND SERVICES","MATERIALS (GROUNDS MAINT)","4125","P111892-SERVICE-10x Trellis",21/6/2021 00:00:00,"249185",390,"JW0004","J & W FENCING LIMITED",31/5/2021 00:00:00,27/6/2021 00:00:00,"P03-2022"
"P&V","NORTH AREA RANGERS","SUPPLIES AND SERVICES","MATERIALS (GROUNDS MAINT)","4125","P111892-SERVICE-Postcrete and fixings",21/6/2021 00:00:00,"249185",59.2,"JW0004","J & W FENCING LIMITED",31/5/2021 00:00:00,27/6/2021 00:00:00,"P03-2022"
"P&V","NORTH AREA RANGERS","SUPPLIES AND SERVICES","MATERIALS (GROUNDS MAINT)","4125","P111892-SERVICE-10x Decking 3.2m Lenghts",21/6/2021 00:00:00,"249185",100,"JW0004","J & W FENCING LIMITED",31/5/2021 00:00:00,27/6/2021 00:00:00,"P03-2022"
,"LV LEISURE CENTRE CAMPSITE","SUPPLIES AND SERVICES","MATERIALS (GROUNDS MAINT)","4125","P112615-SERVICE-Maintaenanne supplies",27/6/2021 00:00:00,"249047",153.3,"BQ0164","TRADE UK ACCOUNT",31/5/2021 00:00:00,27/6/2021 00:00:00,"P03-2022"
,"LV LEISURE CENTRE CAMPSITE","SUPPLIES AND SERVICES","MATERIALS (GROUNDS MAINT)","4125","P112616-SERVICE-maintenance supplies",22/6/2021 00:00:00,"249048",157.02,"BQ0164","TRADE UK ACCOUNT",31/5/2021 00:00:00,27/6/2021 00:00:00,"P03-2022"
,"LV LEISURE CENTRE CAMPSITE","SUPPLIES AND SERVICES","MATERIALS (GROUNDS MAINT)","4125","P112696-SERVICE-Maintenance supplies",27/6/2021 00:00:00,"249102",28.34,"BQ0164","TRADE UK ACCOUNT",31/5/2021 00:00:00,27/6/2021 00:00:00,"P03-2022"
,"LV LEISURE CENTRE CAMPSITE","SUPPLIES AND SERVICES","MATERIALS (GROUNDS MAINT)","4125","P112615-SERVICE-Maintaenanne supplies",27/6/2021 00:00:00,"249103",-153.3,"BQ0164","TRADE UK ACCOUNT",31/5/2021 00:00:00,27/6/2021 00:00:00,"P03-2022"
"P&V","MYDDELTON HOUSE GARDENS","SUPPLIES AND SERVICES","MATERIALS (PLANTS & SHRUBS)","4126","P112339-SERVICE-Plant order May 2021",9/6/2021 00:00:00,"248606",497,"CH0718","CHAPEL COTTAGE PLANTS LIMITED",31/5/2021 00:00:00,27/6/2021 00:00:00,"P03-2022"
"P&V","MYDDELTON HOUSE GARDENS","SUPPLIES AND SERVICES","MATERIALS (PLANTS & SHRUBS)","4126","P112634-SERVICE-Shrubs & terracotta pot bedding",22/6/2021 00:00:00,"249406",128.27,"CL0093","CLOCKHOUSE NURSERY",31/5/2021 00:00:00,27/6/2021 00:00:00,"P03-2022"
"P&V","MYDDELTON HOUSE GARDENS","SUPPLIES AND SERVICES","MATERIALS (PLANTS & SHRUBS)","4126","P110139-SERVICE-Seed Order Dec 2020",23/6/2021 00:00:00,"249471",21.8,"PE0297","PENNARD PLANTS",31/5/2021 00:00:00,27/6/2021 00:00:00,"P03-2022"
"P&V","MYDDELTON HOUSE GARDENS","SUPPLIES AND SERVICES","MATERIALS (PLANTS & SHRUBS)","4126","P110139-SERVICE-Shipping",23/6/2021 00:00:00,"249471",3.95,"PE0297","PENNARD PLANTS",31/5/2021 00:00:00,27/6/2021 00:00:00,"P03-2022"
"P&V","MYDDELTON HOUSE GARDENS","SUPPLIES AND SERVICES","MATERIALS (PLANTS & SHRUBS)","4126","P110139-SERVICE-Handling",23/6/2021 00:00:00,"249471",1,"PE0297","PENNARD PLANTS",31/5/2021 00:00:00,27/6/2021 00:00:00,"P03-2022"
,"LEE VALLEY MARINA SPRINGFIELD","SUPPLIES AND SERVICES","MATERIALS (TOOLS & PLANT)","4127","P112198-SERVICE-to Supply items as requested",9/6/2021 00:00:00,"248745",331,"EL0281","ELTHAM WELDING SUPPLIES LIMITED",31/5/2021 00:00:00,27/6/2021 00:00:00,"P03-2022"
,"STANSTEAD RECHARGEABLE WORKS","SUPPLIES AND SERVICES","MATERIALS (TOOLS & PLANT)","4127","P112321-SERVICE-marina services",7/6/2021 00:00:00,"248559",360,"WA0251","M J MARINE SERVICES",31/5/2021 00:00:00,27/6/2021 00:00:00,"P03-2022"
,"STANSTEAD RECHARGEABLE WORKS","SUPPLIES AND SERVICES","MATERIALS (TOOLS & PLANT)","4127","P112543-SERVICE-yard services",14/6/2021 00:00:00,"249139",690,"WA0251","M J MARINE SERVICES",31/5/2021 00:00:00,27/6/2021 00:00:00,"P03-2022"
,"LEE VALLEY ICE CENTRE","SUPPLIES AND SERVICES","MATERIALS (ENG OTHER)","4130","P112323-SERVICE-Radio's Hire",8/6/2021 00:00:00,"247782",213.48,"LO0133","RADIOCOMS SYSTEMS LTD",31/5/2021 00:00:00,27/6/2021 00:00:00,"P03-2022"
,"LEE VALLEY WHITE WATER CENTRE","SUPPLIES AND SERVICES","MATERIALS (CHEMICALS)","4131","P111382-SERVICE-SO for Acid and Hydro for 10 weeks",7/6/2021 00:00:00,"248729",273.43,"AL0074","BRENNTAG UK GROUP LIMITED",31/5/2021 00:00:00,27/6/2021 00:00:00,"P03-2022"
,"LEE VALLEY WHITE WATER CENTRE","SUPPLIES AND SERVICES","MATERIALS (CHEMICALS)","4131","P111382-SERVICE-SO for Acid and Hydro for 10 weeks",7/6/2021 00:00:00,"248799",273.43,"AL0074","BRENNTAG UK GROUP LIMITED",31/5/2021 00:00:00,27/6/2021 00:00:00,"P03-2022"
,"LEE VALLEY WHITE WATER CENTRE","SUPPLIES AND SERVICES","MATERIALS (CHEMICALS)","4131","P111382-SERVICE-SO for Acid and Hydro for 10 weeks",23/6/2021 00:00:00,"249085",273.43,"AL0074","BRENNTAG UK GROUP LIMITED",31/5/2021 00:00:00,27/6/2021 00:00:00,"P03-2022"
,"LEE VALLEY WHITE WATER CENTRE","SUPPLIES AND SERVICES","MATERIALS (CHEMICALS)","4131","P111382-SERVICE-SO for Acid and Hydro for 10 weeks",27/6/2021 00:00:00,"249453",273.43,"AL0074","BRENNTAG UK GROUP LIMITED",31/5/2021 00:00:00,27/6/2021 00:00:00,"P03-2022"
,"LEE VALLEY WHITE WATER CENTRE","SUPPLIES AND SERVICES","MATERIALS (CHEMICALS)","4131","P111382-SERVICE-SO for Acid and Hydro for 10 weeks",27/6/2021 00:00:00,"249454",176.2,"AL0074","BRENNTAG UK GROUP LIMITED",31/5/2021 00:00:00,27/6/2021 00:00:00,"P03-2022"
,"LEE VALLEY WHITE WATER CENTRE","SUPPLIES AND SERVICES","MATERIALS (CHEMICALS)","4131","P111382-SERVICE-SO for Acid and Hydro for 10 weeks",27/6/2021 00:00:00,"249495",273.43,"AL0074","BRENNTAG UK GROUP LIMITED",31/5/2021 00:00:00,27/6/2021 00:00:00,"P03-2022"
"P&V","LEE VALLEY FARM HOLYFIELDHALL","SUPPLIES AND SERVICES","FEED","4133","P112431-SERVICE-Optima/Beef Grower",8/6/2021 00:00:00,"248743",4948.48,"BO0246","FOR FARMERS UK LTD",31/5/2021 00:00:00,27/6/2021 00:00:00,"P03-2022"
"P&V","LEE VALLEY FARM HOLYFIELDHALL","SUPPLIES AND SERVICES","FEED","4133","P112560-SERVICE-Selco Plus",21/6/2021 00:00:00,"249005",3320.46,"BO0246","FOR FARMERS UK LTD",31/5/2021 00:00:00,27/6/2021 00:00:00,"P03-2022"
"P&V","LEE VALLEY FARM HOLYFIELDHALL","SUPPLIES AND SERVICES","FEED","4133","P112663-SERVICE-Nutrimol",22/6/2021 00:00:00,"249375",2041.2,"BO0246","FOR FARMERS UK LTD",31/5/2021 00:00:00,27/6/2021 00:00:00,"P03-2022"
,"LEE VALLEY RIDING CENTRE","SUPPLIES AND SERVICES","FEED","4133","P112470-SERVICE-feed",9/6/2021 00:00:00,"248623",797.65,"DO0029","M C DOWLING & SONS",31/5/2021 00:00:00,27/6/2021 00:00:00,"P03-2022"
,"LEE VALLEY RIDING CENTRE","SUPPLIES AND SERVICES","FEED","4133","P112470-SERVICE-feed",9/6/2021 00:00:00,"248837",1464.15,"DO0029","M C DOWLING & SONS",31/5/2021 00:00:00,27/6/2021 00:00:00,"P03-2022"
,"LEE VALLEY RIDING CENTRE","SUPPLIES AND SERVICES","FEED","4133","P112470-SERVICE-feed",21/6/2021 00:00:00,"249006",1388.9,"DO0029","M C DOWLING & SONS",31/5/2021 00:00:00,27/6/2021 00:00:00,"P03-2022"
,"LEE VALLEY RIDING CENTRE","SUPPLIES AND SERVICES","FEED","4133","P112470-SERVICE-feed",21/6/2021 00:00:00,"249225",1349.3,"DO0029","M C DOWLING & SONS",31/5/2021 00:00:00,27/6/2021 00:00:00,"P03-2022"
,"LEE VALLEY RIDING CENTRE","SUPPLIES AND SERVICES","BEDDING","4134","P112470-SERVICE-bedding",9/6/2021 00:00:00,"248554",4608,"DO0029","M C DOWLING & SONS",31/5/2021 00:00:00,27/6/2021 00:00:00,"P03-2022"
,"LEE VALLEY RIDING CENTRE","SUPPLIES AND SERVICES","BEDDING","4134","P112470-SERVICE-bedding",21/6/2021 00:00:00,"249225",113.1,"DO0029","M C DOWLING & SONS",31/5/2021 00:00:00,27/6/2021 00:00:00,"P03-2022"
"P&V","LEE VALLEY FARM HOLYFIELDHALL","SUPPLIES AND SERVICES","SPRAYS","4136","P112430-SERVICE-Adama Anthena",7/6/2021 00:00:00,"248604",688,"HA0013","HARLOW AGRICULTURAL MERCHANTS",31/5/2021 00:00:00,27/6/2021 00:00:00,"P03-2022"
"P&V","LEE VALLEY FARM HOLYFIELDHALL","SUPPLIES AND SERVICES","DAIRY SUNDRIES","4138","P112345-SERVICE-Scraper Spares/Pinion Shaft/Bearing",7/6/2021 00:00:00,"248715",196.15,"PO0086","POLLOCK FARM EQUIPMENT",31/5/2021 00:00:00,27/6/2021 00:00:00,"P03-2022"
"P&V","LEE VALLEY FARM HOLYFIELDHALL","SUPPLIES AND SERVICES","DAIRY SUNDRIES","4138","P111472-SERVICE-Farm Sundries",7/6/2021 00:00:00,"248756",73.77,"FA0099","FARM & COUNTRY SUPPLIES LTD",31/5/2021 00:00:00,27/6/2021 00:00:00,"P03-2022"
"P&V","LEE VALLEY FARM HOLYFIELDHALL","SUPPLIES AND SERVICES","DAIRY SUNDRIES","4138","P112432-SERVICE-Eprinex",7/6/2021 00:00:00,"248757",432.2,"FA0099","FARM & COUNTRY SUPPLIES LTD",31/5/2021 00:00:00,27/6/2021 00:00:00,"P03-2022"
"P&V","LEE VALLEY FARM HOLYFIELDHALL","SUPPLIES AND SERVICES","DAIRY SUNDRIES","4138","P111472-SERVICE-Farm Sundries",7/6/2021 00:00:00,"248758",109.1,"FA0099","FARM & COUNTRY SUPPLIES LTD",31/5/2021 00:00:00,27/6/2021 00:00:00,"P03-2022"
"P&V","LEE VALLEY FARM HOLYFIELDHALL","SUPPLIES AND SERVICES","DAIRY SUNDRIES","4138","P112434-SERVICE-Oxygen",7/6/2021 00:00:00,"248775",138.05,"BO0015","BOC LTD",31/5/2021 00:00:00,27/6/2021 00:00:00,"P03-2022"
"P&V","LEE VALLEY FARM HOLYFIELDHALL","SUPPLIES AND SERVICES","DAIRY SUNDRIES","4138","P111464-SERVICE-Dairy Sundries",7/6/2021 00:00:00,"248808",127.95,"MI0023","MILL DAIRY SERVICES",31/5/2021 00:00:00,27/6/2021 00:00:00,"P03-2022"
"P&V","LEE VALLEY FARM HOLYFIELDHALL","SUPPLIES AND SERVICES","DAIRY SUNDRIES","4138","P111771-SERVICE-Bull Semen",7/6/2021 00:00:00,"248831",600,"CO0084","COGENT BREEDING LTD",31/5/2021 00:00:00,27/6/2021 00:00:00,"P03-2022"
"P&V","LEE VALLEY FARM HOLYFIELDHALL","SUPPLIES AND SERVICES","DAIRY SUNDRIES","4138","P111619-SERVICE-Dead Animal Removal",7/6/2021 00:00:00,"248840",125,"MA0074","W MARTIN & SON LIMITED",31/5/2021 00:00:00,27/6/2021 00:00:00,"P03-2022"
"P&V","LEE VALLEY FARM HOLYFIELDHALL","SUPPLIES AND SERVICES","DAIRY SUNDRIES","4138","P111619-SERVICE-Dead Animal Removal",7/6/2021 00:00:00,"248841",54,"MA0074","W MARTIN & SON LIMITED",31/5/2021 00:00:00,27/6/2021 00:00:00,"P03-2022"
"P&V","LEE VALLEY FARM HOLYFIELDHALL","SUPPLIES AND SERVICES","DAIRY SUNDRIES","4138","P111619-SERVICE-Dead Animal Removal",14/6/2021 00:00:00,"249143",140,"MA0074","W MARTIN & SON LIMITED",31/5/2021 00:00:00,27/6/2021 00:00:00,"P03-2022"
"P&V","LEE VALLEY FARM HOLYFIELDHALL","SUPPLIES AND SERVICES","DAIRY SUNDRIES","4138","P111619-SERVICE-Dead Animal Removal",21/6/2021 00:00:00,"249403",78,"MA0074","W MARTIN & SON LIMITED",31/5/2021 00:00:00,27/6/2021 00:00:00,"P03-2022"
,"LEE VALLEY VELOPARK CATERING","SUPPLIES AND SERVICES","FOOD AND DRINK PURCHASES","4140","P112330-SERVICE-F&B",9/6/2021 00:00:00,"248296",89.96,"SI0589","SIMPLY LUNCH LTD",31/5/2021 00:00:00,27/6/2021 00:00:00,"P03-2022"
,"LEE VALLEY VELOPARK CATERING","SUPPLIES AND SERVICES","FOOD AND DRINK PURCHASES","4140","P112709-SERVICE-Delivery 8 & 18 June",27/6/2021 00:00:00,"249044",621.67,"360001","BIDFOOD",31/5/2021 00:00:00,27/6/2021 00:00:00,"P03-2022"
,"LEE VALLEY VELOPARK CATERING","SUPPLIES AND SERVICES","FOOD AND DRINK PURCHASES","4140","P112711-SERVICE-Food Delivery 7 June",27/6/2021 00:00:00,"249177",30.71,"SI0589","SIMPLY LUNCH LTD",31/5/2021 00:00:00,27/6/2021 00:00:00,"P03-2022"
,"LEE VALLEY VELOPARK CATERING","SUPPLIES AND SERVICES","FOOD AND DRINK PURCHASES","4140","P112709-SERVICE-Delivery 8 & 18 June",27/6/2021 00:00:00,"249410",130.68,"360001","BIDFOOD",31/5/2021 00:00:00,27/6/2021 00:00:00,"P03-2022"
,"LV HOCKEY AND TENNIS CATERING","SUPPLIES AND SERVICES","FOOD AND DRINK PURCHASES","4140","P112329-SERVICE-F&B",7/6/2021 00:00:00,"248295",209.24,"SI0589","SIMPLY LUNCH LTD",31/5/2021 00:00:00,27/6/2021 00:00:00,"P03-2022"
,"LV HOCKEY AND TENNIS CATERING","SUPPLIES AND SERVICES","FOOD AND DRINK PURCHASES","4140","P112331-SERVICE-F&B",7/6/2021 00:00:00,"248308",503.31,"360001","BIDFOOD",31/5/2021 00:00:00,27/6/2021 00:00:00,"P03-2022"
,"LV WHITE WATER CATERING","SUPPLIES AND SERVICES","FOOD AND DRINK PURCHASES","4140","P111770-SERVICE-coffee",9/6/2021 00:00:00,"247175",277.34,"RO0216","ROMBOUTS COFFEE GB LIMITED",31/5/2021 00:00:00,27/6/2021 00:00:00,"P03-2022"
,"LV WHITE WATER CATERING","SUPPLIES AND SERVICES","FOOD AND DRINK PURCHASES","4140","P111844-SERVICE-sandwiches",7/6/2021 00:00:00,"248600",77.5,"AN0324","ANCHOR CATERING",31/5/2021 00:00:00,27/6/2021 00:00:00,"P03-2022"
,"LV WHITE WATER CATERING","SUPPLIES AND SERVICES","FOOD AND DRINK PURCHASES","4140","P112200-SERVICE-sandwiches & hot sandwiches fireman extra",7/6/2021 00:00:00,"248600",424.24,"AN0324","ANCHOR CATERING",31/5/2021 00:00:00,27/6/2021 00:00:00,"P03-2022"
,"LV WHITE WATER CATERING","SUPPLIES AND SERVICES","FOOD AND DRINK PURCHASES","4140","P112303-SERVICE-til rolls",7/6/2021 00:00:00,"248608",192.56,"TH0008","JKL SOLUTIONS LTD",31/5/2021 00:00:00,27/6/2021 00:00:00,"P03-2022"
,"LV WHITE WATER CATERING","SUPPLIES AND SERVICES","FOOD AND DRINK PURCHASES","4140","P112192-SERVICE-cakes",7/6/2021 00:00:00,"248612",191.85,"360001","BIDFOOD",31/5/2021 00:00:00,27/6/2021 00:00:00,"P03-2022"
,"LV WHITE WATER CATERING","SUPPLIES AND SERVICES","FOOD AND DRINK PURCHASES","4140","BIDFOOD",7/6/2021 00:00:00,"248612",-191.85,"360001","BIDFOOD",31/5/2021 00:00:00,27/6/2021 00:00:00,"P03-2022"
,"LV WHITE WATER CATERING","SUPPLIES AND SERVICES","FOOD AND DRINK PURCHASES","4140","BIDFOOD",7/6/2021 00:00:00,"248612",19.1,"360001","BIDFOOD",31/5/2021 00:00:00,27/6/2021 00:00:00,"P03-2022"
,"LV WHITE WATER CATERING","SUPPLIES AND SERVICES","FOOD AND DRINK PURCHASES","4140","BIDFOOD",7/6/2021 00:00:00,"248612",172.75,"360001","BIDFOOD",31/5/2021 00:00:00,27/6/2021 00:00:00,"P03-2022"
,"LV WHITE WATER CATERING","SUPPLIES AND SERVICES","FOOD AND DRINK PURCHASES","4140","P112292-SERVICE-kitchen food",7/6/2021 00:00:00,"248612",400,"360001","BIDFOOD",31/5/2021 00:00:00,27/6/2021 00:00:00,"P03-2022"
,"LV WHITE WATER CATERING","SUPPLIES AND SERVICES","FOOD AND DRINK PURCHASES","4140","P112439-SERVICE-cucps",9/6/2021 00:00:00,"248770",856.35,"CA0585","CAFE CONNECTIONS",31/5/2021 00:00:00,27/6/2021 00:00:00,"P03-2022"
,"LV WHITE WATER CATERING","SUPPLIES AND SERVICES","FOOD AND DRINK PURCHASES","4140","BIDFOOD",9/6/2021 00:00:00,"248780",1123.69,"360001","BIDFOOD",31/5/2021 00:00:00,27/6/2021 00:00:00,"P03-2022"
,"LV WHITE WATER CATERING","SUPPLIES AND SERVICES","FOOD AND DRINK PURCHASES","4140","BIDFOOD",9/6/2021 00:00:00,"248780",1203.04,"360001","BIDFOOD",31/5/2021 00:00:00,27/6/2021 00:00:00,"P03-2022"
,"LV WHITE WATER CATERING","SUPPLIES AND SERVICES","FOOD AND DRINK PURCHASES","4140","P112384-SERVICE-drinks ice creams",9/6/2021 00:00:00,"248780",2326.73,"360001","BIDFOOD",31/5/2021 00:00:00,27/6/2021 00:00:00,"P03-2022"
,"LV WHITE WATER CATERING","SUPPLIES AND SERVICES","FOOD AND DRINK PURCHASES","4140","BIDFOOD",9/6/2021 00:00:00,"248780",-2326.73,"360001","BIDFOOD",31/5/2021 00:00:00,27/6/2021 00:00:00,"P03-2022"
,"LV WHITE WATER CATERING","SUPPLIES AND SERVICES","FOOD AND DRINK PURCHASES","4140","P112341-SERVICE-kitchen food",7/6/2021 00:00:00,"248781",691.6,"360001","BIDFOOD",31/5/2021 00:00:00,27/6/2021 00:00:00,"P03-2022"
,"LV WHITE WATER CATERING","SUPPLIES AND SERVICES","FOOD AND DRINK PURCHASES","4140","BIDFOOD",7/6/2021 00:00:00,"248781",-691.6,"360001","BIDFOOD",31/5/2021 00:00:00,27/6/2021 00:00:00,"P03-2022"
,"LV WHITE WATER CATERING","SUPPLIES AND SERVICES","FOOD AND DRINK PURCHASES","4140","BIDFOOD",7/6/2021 00:00:00,"248781",599.17,"360001","BIDFOOD",31/5/2021 00:00:00,27/6/2021 00:00:00,"P03-2022"
,"LV WHITE WATER CATERING","SUPPLIES AND SERVICES","FOOD AND DRINK PURCHASES","4140","BIDFOOD",7/6/2021 00:00:00,"248781",92.43,"360001","BIDFOOD",31/5/2021 00:00:00,27/6/2021 00:00:00,"P03-2022"
,"LV WHITE WATER CATERING","SUPPLIES AND SERVICES","FOOD AND DRINK PURCHASES","4140","P112438-SERVICE-coffee",9/6/2021 00:00:00,"248789",473.5,"RO0216","ROMBOUTS COFFEE GB LIMITED",31/5/2021 00:00:00,27/6/2021 00:00:00,"P03-2022"
,"LV WHITE WATER CATERING","SUPPLIES AND SERVICES","FOOD AND DRINK PURCHASES","4140","ROMBOUTS COFFEE GB LIMITED",9/6/2021 00:00:00,"248789",34.92,"RO0216","ROMBOUTS COFFEE GB LIMITED",31/5/2021 00:00:00,27/6/2021 00:00:00,"P03-2022"
,"LV WHITE WATER CATERING","SUPPLIES AND SERVICES","FOOD AND DRINK PURCHASES","4140","ROMBOUTS COFFEE GB LIMITED",9/6/2021 00:00:00,"248789",-473.5,"RO0216","ROMBOUTS COFFEE GB LIMITED",31/5/2021 00:00:00,27/6/2021 00:00:00,"P03-2022"
,"LV WHITE WATER CATERING","SUPPLIES AND SERVICES","FOOD AND DRINK PURCHASES","4140","ROMBOUTS COFFEE GB LIMITED",9/6/2021 00:00:00,"248789",438.58,"RO0216","ROMBOUTS COFFEE GB LIMITED",31/5/2021 00:00:00,27/6/2021 00:00:00,"P03-2022"
,"LV WHITE WATER CATERING","SUPPLIES AND SERVICES","FOOD AND DRINK PURCHASES","4140","P112138-SERVICE-sandwiches",14/6/2021 00:00:00,"248861",105.55,"360001","BIDFOOD",31/5/2021 00:00:00,27/6/2021 00:00:00,"P03-2022"
,"LV WHITE WATER CATERING","SUPPLIES AND SERVICES","FOOD AND DRINK PURCHASES","4140","P112341-SERVICE-kitchen food",14/6/2021 00:00:00,"248861",308.4,"360001","BIDFOOD",31/5/2021 00:00:00,27/6/2021 00:00:00,"P03-2022"
,"LV WHITE WATER CATERING","SUPPLIES AND SERVICES","FOOD AND DRINK PURCHASES","4140","BIDFOOD",14/6/2021 00:00:00,"248861",-105.55,"360001","BIDFOOD",31/5/2021 00:00:00,27/6/2021 00:00:00,"P03-2022"
,"LV WHITE WATER CATERING","SUPPLIES AND SERVICES","FOOD AND DRINK PURCHASES","4140","BIDFOOD",14/6/2021 00:00:00,"248861",38.7,"360001","BIDFOOD",31/5/2021 00:00:00,27/6/2021 00:00:00,"P03-2022"
,"LV WHITE WATER CATERING","SUPPLIES AND SERVICES","FOOD AND DRINK PURCHASES","4140","BIDFOOD",14/6/2021 00:00:00,"248861",66.85,"360001","BIDFOOD",31/5/2021 00:00:00,27/6/2021 00:00:00,"P03-2022"
,"LV WHITE WATER CATERING","SUPPLIES AND SERVICES","FOOD AND DRINK PURCHASES","4140","P112292-SERVICE-kitchen food",14/6/2021 00:00:00,"248863",-19.1,"360001","BIDFOOD",31/5/2021 00:00:00,27/6/2021 00:00:00,"P03-2022"
,"LV WHITE WATER CATERING","SUPPLIES AND SERVICES","FOOD AND DRINK PURCHASES","4140","P112304-SERVICE-sandwiches",27/6/2021 00:00:00,"248870",1082.96,"AN0324","ANCHOR CATERING",31/5/2021 00:00:00,27/6/2021 00:00:00,"P03-2022"
,"LV WHITE WATER CATERING","SUPPLIES AND SERVICES","FOOD AND DRINK PURCHASES","4140","P112498-SERVICE-cups lids",14/6/2021 00:00:00,"249068",269.08,"CA0585","CAFE CONNECTIONS",31/5/2021 00:00:00,27/6/2021 00:00:00,"P03-2022"
,"LV WHITE WATER CATERING","SUPPLIES AND SERVICES","FOOD AND DRINK PURCHASES","4140","P112067-SERVICE-cooffee",27/6/2021 00:00:00,"249112",40.22,"RO0216","ROMBOUTS COFFEE GB LIMITED",31/5/2021 00:00:00,27/6/2021 00:00:00,"P03-2022"
,"LV WHITE WATER CATERING","SUPPLIES AND SERVICES","FOOD AND DRINK PURCHASES","4140","ROMBOUTS COFFEE GB LIMITED",27/6/2021 00:00:00,"249112",24.58,"RO0216","ROMBOUTS COFFEE GB LIMITED",31/5/2021 00:00:00,27/6/2021 00:00:00,"P03-2022"
,"LV WHITE WATER CATERING","SUPPLIES AND SERVICES","FOOD AND DRINK PURCHASES","4140","ROMBOUTS COFFEE GB LIMITED",27/6/2021 00:00:00,"249112",34.92,"RO0216","ROMBOUTS COFFEE GB LIMITED",31/5/2021 00:00:00,27/6/2021 00:00:00,"P03-2022"
,"LV WHITE WATER CATERING","SUPPLIES AND SERVICES","FOOD AND DRINK PURCHASES","4140","P112603-SERVICE-coffee syrups",27/6/2021 00:00:00,"249112",59.5,"RO0216","ROMBOUTS COFFEE GB LIMITED",31/5/2021 00:00:00,27/6/2021 00:00:00,"P03-2022"
,"LV WHITE WATER CATERING","SUPPLIES AND SERVICES","FOOD AND DRINK PURCHASES","4140","P112499-SERVICE-coffee syrups",27/6/2021 00:00:00,"249112",169.5,"RO0216","ROMBOUTS COFFEE GB LIMITED",31/5/2021 00:00:00,27/6/2021 00:00:00,"P03-2022"
,"LV WHITE WATER CATERING","SUPPLIES AND SERVICES","FOOD AND DRINK PURCHASES","4140","ROMBOUTS COFFEE GB LIMITED",27/6/2021 00:00:00,"249112",-59.5,"RO0216","ROMBOUTS COFFEE GB LIMITED",31/5/2021 00:00:00,27/6/2021 00:00:00,"P03-2022"
,"LV WHITE WATER CATERING","SUPPLIES AND SERVICES","FOOD AND DRINK PURCHASES","4140","P112341-SERVICE-kitchen food",27/6/2021 00:00:00,"249125",-24.79,"360001","BIDFOOD",31/5/2021 00:00:00,27/6/2021 00:00:00,"P03-2022"
,"LV WHITE WATER CATERING","SUPPLIES AND SERVICES","FOOD AND DRINK PURCHASES","4140","P112506-SERVICE-kitchen food corporate",27/6/2021 00:00:00,"249126",635.44,"360001","BIDFOOD",31/5/2021 00:00:00,27/6/2021 00:00:00,"P03-2022"
,"LV WHITE WATER CATERING","SUPPLIES AND SERVICES","FOOD AND DRINK PURCHASES","4140","P112731-SERVICE-drinks food",27/6/2021 00:00:00,"249128",1245.62,"360001","BIDFOOD",31/5/2021 00:00:00,27/6/2021 00:00:00,"P03-2022"
,"LV WHITE WATER CATERING","SUPPLIES AND SERVICES","FOOD AND DRINK PURCHASES","4140","BIDFOOD",27/6/2021 00:00:00,"249128",744.38,"360001","BIDFOOD",31/5/2021 00:00:00,27/6/2021 00:00:00,"P03-2022"
,"LV WHITE WATER CATERING","SUPPLIES AND SERVICES","FOOD AND DRINK PURCHASES","4140","BIDFOOD",27/6/2021 00:00:00,"249128",501.24,"360001","BIDFOOD",31/5/2021 00:00:00,27/6/2021 00:00:00,"P03-2022"
,"LV WHITE WATER CATERING","SUPPLIES AND SERVICES","FOOD AND DRINK PURCHASES","4140","BIDFOOD",27/6/2021 00:00:00,"249128",-1245.62,"360001","BIDFOOD",31/5/2021 00:00:00,27/6/2021 00:00:00,"P03-2022"
,"LV WHITE WATER CATERING","SUPPLIES AND SERVICES","FOOD AND DRINK PURCHASES","4140","P112435-SERVICE-sandwiches wc 0706",21/6/2021 00:00:00,"249181",732.11,"AN0324","ANCHOR CATERING",31/5/2021 00:00:00,27/6/2021 00:00:00,"P03-2022"
,"LV WHITE WATER CATERING","SUPPLIES AND SERVICES","FOOD AND DRINK PURCHASES","4140","P112506-SERVICE-kitchen food corporate",27/6/2021 00:00:00,"249208",-3.65,"360001","BIDFOOD",31/5/2021 00:00:00,27/6/2021 00:00:00,"P03-2022"
,"LV WHITE WATER CATERING","SUPPLIES AND SERVICES","FOOD AND DRINK PURCHASES","4140","P112341-SERVICE-kitchen food",21/6/2021 00:00:00,"249248",-18.11,"360001","BIDFOOD",31/5/2021 00:00:00,27/6/2021 00:00:00,"P03-2022"
,"LV WHITE WATER CATERING","SUPPLIES AND SERVICES","FOOD AND DRINK PURCHASES","4140","P112605-SERVICE-cake bags lids",21/6/2021 00:00:00,"249358",137.17,"CA0585","CAFE CONNECTIONS",31/5/2021 00:00:00,27/6/2021 00:00:00,"P03-2022"
,"LV WHITE WATER CATERING","SUPPLIES AND SERVICES","FOOD AND DRINK PURCHASES","4140","BIDFOOD",21/6/2021 00:00:00,"249385",25.58,"360001","BIDFOOD",31/5/2021 00:00:00,27/6/2021 00:00:00,"P03-2022"
,"LV WHITE WATER CATERING","SUPPLIES AND SERVICES","FOOD AND DRINK PURCHASES","4140","BIDFOOD",21/6/2021 00:00:00,"249385",533.97,"360001","BIDFOOD",31/5/2021 00:00:00,27/6/2021 00:00:00,"P03-2022"
,"LV WHITE WATER CATERING","SUPPLIES AND SERVICES","FOOD AND DRINK PURCHASES","4140","BIDFOOD",21/6/2021 00:00:00,"249385",-559.55,"360001","BIDFOOD",31/5/2021 00:00:00,27/6/2021 00:00:00,"P03-2022"
,"LV WHITE WATER CATERING","SUPPLIES AND SERVICES","FOOD AND DRINK PURCHASES","4140","P112610-SERVICE-kitychen food",21/6/2021 00:00:00,"249385",559.55,"360001","BIDFOOD",31/5/2021 00:00:00,27/6/2021 00:00:00,"P03-2022"
,"LV WHITE WATER CATERING","SUPPLIES AND SERVICES","FOOD AND DRINK PURCHASES","4140","P112606-SERVICE-food",27/6/2021 00:00:00,"249386",2043.22,"360001","BIDFOOD",31/5/2021 00:00:00,27/6/2021 00:00:00,"P03-2022"
,"LV WHITE WATER CATERING","SUPPLIES AND SERVICES","FOOD AND DRINK PURCHASES","4140","BIDFOOD",27/6/2021 00:00:00,"249386",1288.09,"360001","BIDFOOD",31/5/2021 00:00:00,27/6/2021 00:00:00,"P03-2022"
,"LV WHITE WATER CATERING","SUPPLIES AND SERVICES","FOOD AND DRINK PURCHASES","4140","BIDFOOD",27/6/2021 00:00:00,"249386",-2043.22,"360001","BIDFOOD",31/5/2021 00:00:00,27/6/2021 00:00:00,"P03-2022"
,"LV WHITE WATER CATERING","SUPPLIES AND SERVICES","FOOD AND DRINK PURCHASES","4140","BIDFOOD",27/6/2021 00:00:00,"249386",755.13,"360001","BIDFOOD",31/5/2021 00:00:00,27/6/2021 00:00:00,"P03-2022"
,"LV WHITE WATER CATERING","SUPPLIES AND SERVICES","FOOD AND DRINK PURCHASES","4140","ROMBOUTS COFFEE GB LIMITED",21/6/2021 00:00:00,"249387",-180.5,"RO0216","ROMBOUTS COFFEE GB LIMITED",31/5/2021 00:00:00,27/6/2021 00:00:00,"P03-2022"
,"LV WHITE WATER CATERING","SUPPLIES AND SERVICES","FOOD AND DRINK PURCHASES","4140","P112499-SERVICE-coffee syrups",21/6/2021 00:00:00,"249387",180.5,"RO0216","ROMBOUTS COFFEE GB LIMITED",31/5/2021 00:00:00,27/6/2021 00:00:00,"P03-2022"
,"LV WHITE WATER CATERING","SUPPLIES AND SERVICES","FOOD AND DRINK PURCHASES","4140","ROMBOUTS COFFEE GB LIMITED",21/6/2021 00:00:00,"249387",134.58,"RO0216","ROMBOUTS COFFEE GB LIMITED",31/5/2021 00:00:00,27/6/2021 00:00:00,"P03-2022"
,"LV WHITE WATER CATERING","SUPPLIES AND SERVICES","FOOD AND DRINK PURCHASES","4140","ROMBOUTS COFFEE GB LIMITED",21/6/2021 00:00:00,"249387",45.92,"RO0216","ROMBOUTS COFFEE GB LIMITED",31/5/2021 00:00:00,27/6/2021 00:00:00,"P03-2022"
,"LV WHITE WATER CATERING","SUPPLIES AND SERVICES","FOOD AND DRINK PURCHASES","4140","P112603-SERVICE-coffee syrups",27/6/2021 00:00:00,"249437",75,"RO0216","ROMBOUTS COFFEE GB LIMITED",31/5/2021 00:00:00,27/6/2021 00:00:00,"P03-2022"
,"LV WHITE WATER CATERING","SUPPLIES AND SERVICES","FOOD AND DRINK PURCHASES","4140","P112546-SERVICE-sandwiches",27/6/2021 00:00:00,"249461",605.45,"AN0324","ANCHOR CATERING",31/5/2021 00:00:00,27/6/2021 00:00:00,"P03-2022"
,"LV WHITE WATER CATERING","SUPPLIES AND SERVICES","FOOD AND DRINK PURCHASES","4140","P112603-SERVICE-coffee syrups",27/6/2021 00:00:00,"249611",663.74,"RO0216","ROMBOUTS COFFEE GB LIMITED",31/5/2021 00:00:00,27/6/2021 00:00:00,"P03-2022"
,"LV WHITE WATER CATERING","SUPPLIES AND SERVICES","FOOD AND DRINK PURCHASES","4140","P112725-SERVICE-cups lids",27/6/2021 00:00:00,"249619",233.05,"CA0585","CAFE CONNECTIONS",31/5/2021 00:00:00,27/6/2021 00:00:00,"P03-2022"
,"LV WHITE WATER CATERING","SUPPLIES AND SERVICES","FOOD AND DRINK PURCHASES","4140","P112657-SERVICE-kitchen foodc",27/6/2021 00:00:00,"249623",118.11,"360001","BIDFOOD",31/5/2021 00:00:00,27/6/2021 00:00:00,"P03-2022"
,"LV WHITE WATER CATERING","SUPPLIES AND SERVICES","FOOD AND DRINK PURCHASES","4140","BIDFOOD",27/6/2021 00:00:00,"249624",545.2,"360001","BIDFOOD",31/5/2021 00:00:00,27/6/2021 00:00:00,"P03-2022"
,"LV WHITE WATER CATERING","SUPPLIES AND SERVICES","FOOD AND DRINK PURCHASES","4140","BIDFOOD",27/6/2021 00:00:00,"249624",8.07,"360001","BIDFOOD",31/5/2021 00:00:00,27/6/2021 00:00:00,"P03-2022"
,"LV WHITE WATER CATERING","SUPPLIES AND SERVICES","FOOD AND DRINK PURCHASES","4140","P112657-SERVICE-kitchen foodc",27/6/2021 00:00:00,"249624",553.27,"360001","BIDFOOD",31/5/2021 00:00:00,27/6/2021 00:00:00,"P03-2022"
,"LV WHITE WATER CATERING","SUPPLIES AND SERVICES","FOOD AND DRINK PURCHASES","4140","BIDFOOD",27/6/2021 00:00:00,"249624",-553.27,"360001","BIDFOOD",31/5/2021 00:00:00,27/6/2021 00:00:00,"P03-2022"
,"LV WHITE WATER CATERING","SUPPLIES AND SERVICES","FOOD AND DRINK PURCHASES","4140","P112726-SERVICE-coffee",27/6/2021 00:00:00,"249655",282.08,"RO0216","ROMBOUTS COFFEE GB LIMITED",31/5/2021 00:00:00,27/6/2021 00:00:00,"P03-2022"
,"LV WHITE WATER CATERING","SUPPLIES AND SERVICES","FOOD AND DRINK PURCHASES","4140","ROMBOUTS COFFEE GB LIMITED",27/6/2021 00:00:00,"249655",264.62,"RO0216","ROMBOUTS COFFEE GB LIMITED",31/5/2021 00:00:00,27/6/2021 00:00:00,"P03-2022"
,"LV WHITE WATER CATERING","SUPPLIES AND SERVICES","FOOD AND DRINK PURCHASES","4140","ROMBOUTS COFFEE GB LIMITED",27/6/2021 00:00:00,"249655",-282.08,"RO0216","ROMBOUTS COFFEE GB LIMITED",31/5/2021 00:00:00,27/6/2021 00:00:00,"P03-2022"
,"LV WHITE WATER CATERING","SUPPLIES AND SERVICES","FOOD AND DRINK PURCHASES","4140","ROMBOUTS COFFEE GB LIMITED",27/6/2021 00:00:00,"249655",17.46,"RO0216","ROMBOUTS COFFEE GB LIMITED",31/5/2021 00:00:00,27/6/2021 00:00:00,"P03-2022"
,"LEE VALLEY CARAVAN PARK","SUPPLIES AND SERVICES","MISCELLANEOUS CARAVAN COSTS","4174","P111633-SERVICE-New boiler in Button",9/6/2021 00:00:00,"247815",2320,"SO0400","SOUTHERN GREEN SERVICES LIMITED",31/5/2021 00:00:00,27/6/2021 00:00:00,"P03-2022"
,"LEE VALLEY CARAVAN PARK","SUPPLIES AND SERVICES","MISCELLANEOUS CARAVAN COSTS","4174","P112409-SERVICE-Electrical works",8/6/2021 00:00:00,"247818",120,"BR0018","BRADSHAW ELECTRICAL LIMITED",31/5/2021 00:00:00,27/6/2021 00:00:00,"P03-2022"
,"LEE VALLEY CARAVAN PARK","SUPPLIES AND SERVICES","MISCELLANEOUS CARAVAN COSTS","4174","P111872-SERVICE-pipe work for new Button",9/6/2021 00:00:00,"248821",670,"SO0400","SOUTHERN GREEN SERVICES LIMITED",31/5/2021 00:00:00,27/6/2021 00:00:00,"P03-2022"
,"LEE VALLEY CARAVAN PARK","SUPPLIES AND SERVICES","MISCELLANEOUS CARAVAN COSTS","4174","P112568-SERVICE-Re siting new lodge",21/6/2021 00:00:00,"249235",760,"SO0400","SOUTHERN GREEN SERVICES LIMITED",31/5/2021 00:00:00,27/6/2021 00:00:00,"P03-2022"
"CEO","PR/COMMUNICATIONS","SUPPLIES AND SERVICES","CLOTHING & UNIFORMS","4225","P112151-SERVICE-Names badges x 26 + P&P",15/6/2021 00:00:00,"248469",184.75,"RE0055","RECOGNITION EXPRESS THAMES VALLEY",31/5/2021 00:00:00,27/6/2021 00:00:00,"P03-2022"
,"LEE VALLEY MARINA STANSTEAD","SUPPLIES AND SERVICES","CLOTHING & UNIFORMS","4225","P112387-SERVICE-work uniform - shorts",7/6/2021 00:00:00,"248796",84.63,"DI0017","DIRECT BOOT & SHOE SUPPLIES",31/5/2021 00:00:00,27/6/2021 00:00:00,"P03-2022"
,"LEE VALLEY CAMPSITE","SUPPLIES AND SERVICES","CLOTHING & UNIFORMS","4225","P112686-SERVICE-chainsaw gloves medium & large",27/6/2021 00:00:00,"249494",33.98,"SC0057","SCREWFIX DIRECT LTD",31/5/2021 00:00:00,27/6/2021 00:00:00,"P03-2022"
,"LEE VALLEY CAMPSITE","SUPPLIES AND SERVICES","CLOTHING & UNIFORMS","4225","P112686-SERVICE-chainsaw bib & brace",27/6/2021 00:00:00,"249494",77.66,"SC0057","SCREWFIX DIRECT LTD",31/5/2021 00:00:00,27/6/2021 00:00:00,"P03-2022"
,"LEE VALLEY CAMPSITE","SUPPLIES AND SERVICES","CLOTHING & UNIFORMS","4225","P112686-SERVICE-Forestry helmets with ear defender & visor",27/6/2021 00:00:00,"249494",49.98,"SC0057","SCREWFIX DIRECT LTD",31/5/2021 00:00:00,27/6/2021 00:00:00,"P03-2022"
"P&V","MYDDELTON HOUSE GARDENS","SUPPLIES AND SERVICES","CLOTHING & UNIFORMS","4225","P112166-SERVICE-2 x UN024 Navy Blue polo (size Medium)  Sewn",14/6/2021 00:00:00,"248494",19.8,"DI0017","DIRECT BOOT & SHOE SUPPLIES",31/5/2021 00:00:00,27/6/2021 00:00:00,"P03-2022"
"P&V","MYDDELTON HOUSE GARDENS","SUPPLIES AND SERVICES","CLOTHING & UNIFORMS","4225","P112166-SERVICE-UN014 Roundneck Navy Blue Sweatshirt",14/6/2021 00:00:00,"248494",12.9,"DI0017","DIRECT BOOT & SHOE SUPPLIES",31/5/2021 00:00:00,27/6/2021 00:00:00,"P03-2022"
"P&V","MYDDELTON HOUSE GARDENS","SUPPLIES AND SERVICES","CLOTHING & UNIFORMS","4225","P112166-SERVICE-UN014 Roundneck Navy Blue(size medium)",14/6/2021 00:00:00,"248494",9.99,"DI0017","DIRECT BOOT & SHOE SUPPLIES",31/5/2021 00:00:00,27/6/2021 00:00:00,"P03-2022"
"P&V","MYDDELTON HOUSE GARDENS","SUPPLIES AND SERVICES","CLOTHING & UNIFORMS","4225","P112166-SERVICE-Embroidery right vhest lee valley logo",14/6/2021 00:00:00,"248494",9.98,"DI0017","DIRECT BOOT & SHOE SUPPLIES",31/5/2021 00:00:00,27/6/2021 00:00:00,"P03-2022"
"P&V","MYDDELTON HOUSE GARDENS","SUPPLIES AND SERVICES","CLOTHING & UNIFORMS","4225","P112166-SERVICE-Delivery",14/6/2021 00:00:00,"248494",7.95,"DI0017","DIRECT BOOT & SHOE SUPPLIES",31/5/2021 00:00:00,27/6/2021 00:00:00,"P03-2022"
"P&V","MYDDELTON HOUSE GARDENS","SUPPLIES AND SERVICES","CLOTHING & UNIFORMS","4225","P112166-SERVICE-1 x medium (UN024) Navy polo",14/6/2021 00:00:00,"248494",8.33,"DI0017","DIRECT BOOT & SHOE SUPPLIES",31/5/2021 00:00:00,27/6/2021 00:00:00,"P03-2022"
"P&V","SOUTH AREA RANGERS","SUPPLIES AND SERVICES","CLOTHING & UNIFORMS","4225","P112593-SERVICE-Delivery to address below",27/6/2021 00:00:00,"249462",6.5,"IL0177","KEELA INTERNATION LTD",31/5/2021 00:00:00,27/6/2021 00:00:00,"P03-2022"
"P&V","SOUTH AREA RANGERS","SUPPLIES AND SERVICES","CLOTHING & UNIFORMS","4225","P112593-SERVICE-2x Ladies Peru Trousers Black Reg S12",27/6/2021 00:00:00,"249462",42.5,"IL0177","KEELA INTERNATION LTD",31/5/2021 00:00:00,27/6/2021 00:00:00,"P03-2022"
"P&V","SOUTH AREA RANGERS","SUPPLIES AND SERVICES","CLOTHING & UNIFORMS","4225","P112593-SERVICE-3x Peru Trousers Black Reg W32",27/6/2021 00:00:00,"249604",63.75,"IL0177","KEELA INTERNATION LTD",31/5/2021 00:00:00,27/6/2021 00:00:00,"P03-2022"
"P&V","POLICY & PERFORMANCE (L&E)","SUPPLIES AND SERVICES","CLOTHING & UNIFORMS","4225","P112716-SERVICE-3 x White Adidas polo shirts to have logo emb",27/6/2021 00:00:00,"249519",13.47,"DI0017","DIRECT BOOT & SHOE SUPPLIES",31/5/2021 00:00:00,27/6/2021 00:00:00,"P03-2022"
,"LEE VALLEY WHITE WATER CENTRE","SUPPLIES AND SERVICES","CLOTHING & UNIFORMS","4225","P112337-SERVICE-uniform as oper quote No.  62198",14/6/2021 00:00:00,"248609",164.66,"DI0017","DIRECT BOOT & SHOE SUPPLIES",31/5/2021 00:00:00,27/6/2021 00:00:00,"P03-2022"
,"LEE VALLEY WHITE WATER CENTRE","SUPPLIES AND SERVICES","CLOTHING & UNIFORMS","4225","P111804-SERVICE-Quote as per No.  00086782",15/6/2021 00:00:00,"249076",652.99,"PE0246","PEAK UK KAYAKING COMPANY LTD",31/5/2021 00:00:00,27/6/2021 00:00:00,"P03-2022"
,"LEE VALLEY WHITE WATER CENTRE","SUPPLIES AND SERVICES","CLOTHING & UNIFORMS","4225","P111441-SERVICE-Balance of P111337",15/6/2021 00:00:00,"249077",679.07,"PE0246","PEAK UK KAYAKING COMPANY LTD",31/5/2021 00:00:00,27/6/2021 00:00:00,"P03-2022"
,"LEE VALLEY WHITE WATER CENTRE","SUPPLIES AND SERVICES","CLOTHING & UNIFORMS","4225","P111441-SERVICE-Balance of P111337",27/6/2021 00:00:00,"249464",45.59,"PE0246","PEAK UK KAYAKING COMPANY LTD",31/5/2021 00:00:00,27/6/2021 00:00:00,"P03-2022"
,"LEE VALLEY MARINA STANSTEAD","SUPPLIES AND SERVICES","OFFICE EXPENSES","4311","P112072-SERVICE-stationery and cleaning mats",27/6/2021 00:00:00,"249620",238.91,"TH0008","JKL SOLUTIONS LTD",31/5/2021 00:00:00,27/6/2021 00:00:00,"P03-2022"
,"LEE VALLEY WATERWORKS CENTRE","SUPPLIES AND SERVICES","OFFICE EXPENSES","4311","P112612-SERVICE-Shredding at Water Works",21/6/2021 00:00:00,"248605",82,"CS0287","CURTIS SECURITY SHREDDING LTD",31/5/2021 00:00:00,27/6/2021 00:00:00,"P03-2022"
,"LEE VALLEY CAMPSITE","SUPPLIES AND SERVICES","OFFICE EXPENSES","4311","P112482-SERVICE-Annual Licence 2021",14/6/2021 00:00:00,"248889",159,"TV0065","TV LICENSING",31/5/2021 00:00:00,27/6/2021 00:00:00,"P03-2022"
,"LEE VALLEY CAMPSITE","SUPPLIES AND SERVICES","OFFICE EXPENSES","4311","P112483-SERVICE-post it notes",14/6/2021 00:00:00,"249056",52.75,"TH0008","JKL SOLUTIONS LTD",31/5/2021 00:00:00,27/6/2021 00:00:00,"P03-2022"
,"LEE VALLEY CAMPSITE","SUPPLIES AND SERVICES","OFFICE EXPENSES","4311","P112483-SERVICE-Ring Binders",14/6/2021 00:00:00,"249057",15.46,"TH0008","JKL SOLUTIONS LTD",31/5/2021 00:00:00,27/6/2021 00:00:00,"P03-2022"
,"LEE VALLEY CAMPSITE","SUPPLIES AND SERVICES","OFFICE EXPENSES","4311","P112056-SERVICE-Stationery",27/6/2021 00:00:00,"249666",-15.46,"TH0008","JKL SOLUTIONS LTD",31/5/2021 00:00:00,27/6/2021 00:00:00,"P03-2022"
,"LV HOCKEY AND TENNIS CENTRE","SUPPLIES AND SERVICES","OFFICE EXPENSES","4311","P112585-SERVICE-PDQ rolls x 3 boxes",21/6/2021 00:00:00,"249340",78.39,"TH0008","JKL SOLUTIONS LTD",31/5/2021 00:00:00,27/6/2021 00:00:00,"P03-2022"
,"LV HOCKEY AND TENNIS CENTRE","SUPPLIES AND SERVICES","OFFICE EXPENSES","4311","P112585-SERVICE-x 4 boxes A4 paper",21/6/2021 00:00:00,"249340",60.92,"TH0008","JKL SOLUTIONS LTD",31/5/2021 00:00:00,27/6/2021 00:00:00,"P03-2022"
,"LEE VALLEY RIDING CENTRE","SUPPLIES AND SERVICES","OFFICE EXPENSES","4311","P112174-SERVICE-first aid kits x 3",9/6/2021 00:00:00,"248303",78.54,"TH0008","JKL SOLUTIONS LTD",31/5/2021 00:00:00,27/6/2021 00:00:00,"P03-2022"
,"LEE VALLEY RIDING CENTRE","SUPPLIES AND SERVICES","OFFICE EXPENSES","4311","P112174-SERVICE-document folder 50 pack",9/6/2021 00:00:00,"248303",21.63,"TH0008","JKL SOLUTIONS LTD",31/5/2021 00:00:00,27/6/2021 00:00:00,"P03-2022"
,"LEE VALLEY RIDING CENTRE","SUPPLIES AND SERVICES","OFFICE EXPENSES","4311","P112174-SERVICE-wipe bucket 100 x2",9/6/2021 00:00:00,"248303",30.73,"TH0008","JKL SOLUTIONS LTD",31/5/2021 00:00:00,27/6/2021 00:00:00,"P03-2022"
,"LEE VALLEY RIDING CENTRE","SUPPLIES AND SERVICES","OFFICE EXPENSES","4311","P112174-SERVICE-cleaning disenfectant wipes",9/6/2021 00:00:00,"248303",23.39,"TH0008","JKL SOLUTIONS LTD",31/5/2021 00:00:00,27/6/2021 00:00:00,"P03-2022"
,"LV LEISURE CENTRE CAMPSITE","SUPPLIES AND SERVICES","OFFICE EXPENSES","4311","P112219-SERVICE-Stationery",9/6/2021 00:00:00,"248479",41.21,"TH0008","JKL SOLUTIONS LTD",31/5/2021 00:00:00,27/6/2021 00:00:00,"P03-2022"
,"LV LEISURE CENTRE CAMPSITE","SUPPLIES AND SERVICES","OFFICE EXPENSES","4311","P112383-SERVICE-Firewood",14/6/2021 00:00:00,"248777",135,"HA0371","HARTS OF OAK",31/5/2021 00:00:00,27/6/2021 00:00:00,"P03-2022"
,"LV LEISURE CENTRE CAMPSITE","SUPPLIES AND SERVICES","OFFICE EXPENSES","4311","P112653-SERVICE-charcoal and firewood",27/6/2021 00:00:00,"249431",250,"HA0371","HARTS OF OAK",31/5/2021 00:00:00,27/6/2021 00:00:00,"P03-2022"
,"LEE VALLEY ATHLETICS CENTRE","SUPPLIES AND SERVICES","OFFICE EXPENSES","4311","P112263-SERVICE-LVAC INV 59537 19/5/21 NUMBER CARDS",8/6/2021 00:00:00,"248250",223.29,"ST0184","STACY & SON",31/5/2021 00:00:00,27/6/2021 00:00:00,"P03-2022"
,"LEE VALLEY WHITE WATER CENTRE","SUPPLIES AND SERVICES","OFFICE EXPENSES","4311","P112413-SERVICE-laminating pouches",15/6/2021 00:00:00,"249040",7.07,"AM0406","AMAZON PAYMENTS UK LIMITED",31/5/2021 00:00:00,27/6/2021 00:00:00,"P03-2022"
,"LEE VALLEY WHITE WATER CENTRE","SUPPLIES AND SERVICES","OFFICE EXPENSES","4311","P112413-SERVICE-laminating pouches",15/6/2021 00:00:00,"249041",17.49,"AM0406","AMAZON PAYMENTS UK LIMITED",31/5/2021 00:00:00,27/6/2021 00:00:00,"P03-2022"
,"LEE VALLEY WHITE WATER CENTRE","SUPPLIES AND SERVICES","OFFICE EXPENSES","4311","P112601-SERVICE-a4 paper",21/6/2021 00:00:00,"249384",34.16,"TH0008","JKL SOLUTIONS LTD",31/5/2021 00:00:00,27/6/2021 00:00:00,"P03-2022"
"R&B","INFORMATION TECHNOLOGY","SUPPLIES AND SERVICES","PHOTOCOPYING","4314","KONICA MINOLTA BUSINESS SOLUTI",21/6/2021 00:00:00,"249017",277.21,"KO0071","KONICA MINOLTA BUSINESS SOLUTIONS ( UK) LTD",31/5/2021 00:00:00,27/6/2021 00:00:00,"P03-2022"
"R&B","INFORMATION TECHNOLOGY","SUPPLIES AND SERVICES","PHOTOCOPYING","4314","KONICA MINOLTA BUSINESS SOLUTI",27/6/2021 00:00:00,"249111",1566.78,"KO0071","KONICA MINOLTA BUSINESS SOLUTIONS ( UK) LTD",31/5/2021 00:00:00,27/6/2021 00:00:00,"P03-2022"
,"LSC INFORMATION TECHNOLOGY","SUPPLIES AND SERVICES","PHOTOCOPYING","4314","ANNODATA LTD",14/6/2021 00:00:00,"248586",1151.6,"AN0466","ANNODATA LTD",31/5/2021 00:00:00,27/6/2021 00:00:00,"P03-2022"
"CEO","CHIEF EXECUTIVE","SUPPLIES AND SERVICES","SUBSCRIPTIONS","4334","P112343-SERVICE-CLOA Membership",14/6/2021 00:00:00,"248874",450,"CH0455","CHIEF CULTURAL & LEISURE OFFICERS ASSOCIATION",31/5/2021 00:00:00,27/6/2021 00:00:00,"P03-2022"
"P&V","LEE VALLEY FARM HOLYFIELDHALL","SUPPLIES AND SERVICES","SUBSCRIPTIONS","4334","P112561-SERVICE-Subs",21/6/2021 00:00:00,"249141",366.85,"NA0005","NATIONAL MILK RECORDS PLC",31/5/2021 00:00:00,27/6/2021 00:00:00,"P03-2022"
"P&V","VOLUNTEERS (L&E)","SUPPLIES AND SERVICES","POSTAGE & MAILING","4445","ROYAL MAIL GROUP PLC",21/6/2021 00:00:00,"249402",111.73,"RO0022","ROYAL MAIL GROUP PLC",31/5/2021 00:00:00,27/6/2021 00:00:00,"P03-2022"
,"LEE VALLEY WHITE WATER CENTRE","SUPPLIES AND SERVICES","POSTAGE & MAILING","4445","P112671-SERVICE-100 x firstclass stamps",27/6/2021 00:00:00,"249489",85,"TH0008","JKL SOLUTIONS LTD",31/5/2021 00:00:00,27/6/2021 00:00:00,"P03-2022"
"R&B","REVENUE SUSPENSE (AUTHORITY)","SUPPLIES AND SERVICES","TELEPHONES (MOBILE)","4484","VODAFONE  LIMITED (CORPORATE)",27/6/2021 00:00:00,"249616",559.44,"VO0010","VODAFONE  LIMITED (CORPORATE)",31/5/2021 00:00:00,27/6/2021 00:00:00,"P03-2022"
"CEO","PR/COMMUNICATIONS","SUPPLIES AND SERVICES","MARKETING","4603","HONCHOM INTERNATIONAL LIMITED",7/6/2021 00:00:00,"248515",1000,"ME0325","HONCHOM INTERNATIONAL LIMITED",31/5/2021 00:00:00,27/6/2021 00:00:00,"P03-2022"
"CEO","PR/COMMUNICATIONS","SUPPLIES AND SERVICES","MARKETING","4603","HONCHOM INTERNATIONAL LIMITED",7/6/2021 00:00:00,"248516",-1000,"ME0325","HONCHOM INTERNATIONAL LIMITED",31/5/2021 00:00:00,27/6/2021 00:00:00,"P03-2022"
,"LEE VALLEY CARAVAN PARK","SUPPLIES AND SERVICES","MARKETING","4603","P112596-SERVICE-Camping & Caravan membership renewal",15/6/2021 00:00:00,"248159",198.9,"AA0090","AA MEDIA LIMITED",31/5/2021 00:00:00,27/6/2021 00:00:00,"P03-2022"
,"LEE VALLEY CARAVAN PARK","SUPPLIES AND SERVICES","MARKETING","4603","P112278-SERVICE-4x Refuse signs",7/6/2021 00:00:00,"248468",45,"SL0528","SLAM SIGNS LTD",31/5/2021 00:00:00,27/6/2021 00:00:00,"P03-2022"
,"LEE VALLEY CARAVAN PARK","SUPPLIES AND SERVICES","MARKETING","4603","P112375-SERVICE-flyers and barrier cards",14/6/2021 00:00:00,"248772",39.6,"SO0582","SOLOPRESS",31/5/2021 00:00:00,27/6/2021 00:00:00,"P03-2022"
,"LEE VALLEY CARAVAN PARK","SUPPLIES AND SERVICES","MARKETING","4603","P112375-SERVICE-flyers and barrier cards",21/6/2021 00:00:00,"248805",28.27,"SO0582","SOLOPRESS",31/5/2021 00:00:00,27/6/2021 00:00:00,"P03-2022"
,"LEE VALLEY VELOPARK","SUPPLIES AND SERVICES","MARKETING","4603","P112441-SERVICE-Ad - Marketing",8/6/2021 00:00:00,"248517",916.44,"ME0325","HONCHOM INTERNATIONAL LIMITED",31/5/2021 00:00:00,27/6/2021 00:00:00,"P03-2022"
,"LEE VALLEY VELOPARK","SUPPLIES AND SERVICES","MARKETING","4603","P112170-SERVICE-To revise existing artwork to 6pp A5 leaflet",22/6/2021 00:00:00,"249383",57,"BL0393","BLUE SEA DESIGN",31/5/2021 00:00:00,27/6/2021 00:00:00,"P03-2022"
,"LEE VALLEY VELOPARK","SUPPLIES AND SERVICES","MARKETING","4603","P112595-SERVICE-Printing of Amended Leaflet",27/6/2021 00:00:00,"249472",134.65,"SO0582","SOLOPRESS",31/5/2021 00:00:00,27/6/2021 00:00:00,"P03-2022"
,"LV LEISURE CENTRE CAMPSITE","SUPPLIES AND SERVICES","MARKETING","4603","P112396-SERVICE-Maps",15/6/2021 00:00:00,"249074",38.94,"SO0582","SOLOPRESS",31/5/2021 00:00:00,27/6/2021 00:00:00,"P03-2022"
,"LEE VALLEY WHITE WATER CENTRE","SUPPLIES AND SERVICES","MARKETING","4603","P111798-SERVICE-To run option 2 campaign from proposal sent t",14/6/2021 00:00:00,"248804",2511,"GL0444","GLOBAL MEDIA GROUP SERVICES LTD",31/5/2021 00:00:00,27/6/2021 00:00:00,"P03-2022"
,"LEE VALLEY WHITE WATER CENTRE","SUPPLIES AND SERVICES","MARKETING","4603","P112145-SERVICE-2 day photo & video shoot at",27/6/2021 00:00:00,"249455",4250,"ID0174","IDEAS LIBRARY LTD",31/5/2021 00:00:00,27/6/2021 00:00:00,"P03-2022"
,"LEE VALLEY WATERWORKS CENTRE","SUPPLIES AND SERVICES","PEST CONTROL","4625","P112193-SERVICE-Pest Control - WaterWorks",27/6/2021 00:00:00,"249059",165,"VE0006","VERMINATE CITY & RURAL PEST CONTROL LTD",31/5/2021 00:00:00,27/6/2021 00:00:00,"P03-2022"
,"LEE VALLEY FARM HAYES HILL","SUPPLIES AND SERVICES","PEST CONTROL","4625","ECOGUARD PEST SOLUTIONS LTD",15/6/2021 00:00:00,"246919",78,"EC0330","ECOGUARD PEST SOLUTIONS LTD",31/5/2021 00:00:00,27/6/2021 00:00:00,"P03-2022"
"P&V","NORTH AREA RANGERS","SUPPLIES AND SERVICES","PEST CONTROL","4625","P111749-SERVICE-Pest Control - Ware Town Centre",21/6/2021 00:00:00,"249065",53.34,"VE0006","VERMINATE CITY & RURAL PEST CONTROL LTD",31/5/2021 00:00:00,27/6/2021 00:00:00,"P03-2022"
"P&V","SOUTH AREA RANGERS","SUPPLIES AND SERVICES","PEST CONTROL","4625","P111747-SERVICE-Pest Control - Tottenham Marshes",21/6/2021 00:00:00,"249066",46.67,"VE0006","VERMINATE CITY & RURAL PEST CONTROL LTD",31/5/2021 00:00:00,27/6/2021 00:00:00,"P03-2022"
,"LEE VALLEY VELOPARK","SUPPLIES AND SERVICES","PEST CONTROL","4625","P112361-SERVICE-Qrt 1 pest control Velo",7/6/2021 00:00:00,"248011",250,"VE0006","VERMINATE CITY & RURAL PEST CONTROL LTD",31/5/2021 00:00:00,27/6/2021 00:00:00,"P03-2022"
"P&V","FORMER LV LIDO SITE","SUPPLIES AND SERVICES","PEST CONTROL","4625","P111748-SERVICE-Pest Control - North Sites",21/6/2021 00:00:00,"249064",200,"VE0006","VERMINATE CITY & RURAL PEST CONTROL LTD",31/5/2021 00:00:00,27/6/2021 00:00:00,"P03-2022"
,"LEE VALLEY MARINA SPRINGFIELD","SUPPLIES AND SERVICES","MERCHANT PROCESSING CHARGES","4641","WORLDPAY",21/6/2021 00:00:00,"248746",15,"WO0338","WORLDPAY",31/5/2021 00:00:00,27/6/2021 00:00:00,"P03-2022"
,"LEE VALLEY MARINA STANSTEAD","SUPPLIES AND SERVICES","MERCHANT PROCESSING CHARGES","4641","WORLDPAY",21/6/2021 00:00:00,"248746",15,"WO0338","WORLDPAY",31/5/2021 00:00:00,27/6/2021 00:00:00,"P03-2022"
,"LEE VALLEY MARINA STANSTEAD","SUPPLIES AND SERVICES","SECURITY","4650","P112071-SERVICE-barrier gate gearbox sealed unit",14/6/2021 00:00:00,"248851",2554.2,"AI0262","AIS ( ADVANCED INTEGRATED SECURITY)",31/5/2021 00:00:00,27/6/2021 00:00:00,"P03-2022"
,"LEE VALLEY CARAVAN PARK","SUPPLIES AND SERVICES","SECURITY","4650","P112282-SERVICE-50 Second Barrier Cards",7/6/2021 00:00:00,"248594",260,"AU0245","AUTO-MATE SYSTEMS LIMITED",31/5/2021 00:00:00,27/6/2021 00:00:00,"P03-2022"
"P&V","SOUTH AREA RANGERS","SUPPLIES AND SERVICES","SECURITY","4650","P112298-SERVICE-Additional Security Cover - Coppermill",7/6/2021 00:00:00,"248718",756,"PA0059","PARKGUARD LTD",31/5/2021 00:00:00,27/6/2021 00:00:00,"P03-2022"
"P&V","SOUTH AREA RANGERS","SUPPLIES AND SERVICES","SECURITY","4650","P112298-SERVICE-Additional Security Cover - WaterWorks Field",7/6/2021 00:00:00,"248718",432,"PA0059","PARKGUARD LTD",31/5/2021 00:00:00,27/6/2021 00:00:00,"P03-2022"
"P&V","SOUTH AREA RANGERS","SUPPLIES AND SERVICES","SECURITY","4650","P112394-SERVICE-Security Cover Coppermill",27/6/2021 00:00:00,"249026",432,"PA0059","PARKGUARD LTD",31/5/2021 00:00:00,27/6/2021 00:00:00,"P03-2022"
"P&V","ABBEY GARDENS","SUPPLIES AND SERVICES","SECURITY","4650","P112285-SERVICE-Security - North of the Park",27/6/2021 00:00:00,"249657",6100,"PA0059","PARKGUARD LTD",31/5/2021 00:00:00,27/6/2021 00:00:00,"P03-2022"
"P&V","FORMER LV LIDO SITE","SUPPLIES AND SERVICES","SECURITY","4650","P112285-SERVICE-Security - North of the Park",27/6/2021 00:00:00,"249657",34.22,"PA0059","PARKGUARD LTD",31/5/2021 00:00:00,27/6/2021 00:00:00,"P03-2022"
,"LEE VALLEY CAMPSITE","SUPPLIES AND SERVICES","ONLINE ADVERTISING","4657","P111926-SERVICE-15x47kg   1 x19kg",27/6/2021 00:00:00,"249409",674.4,"FL0147","FLOGAS BRITAIN LIMITED",31/5/2021 00:00:00,27/6/2021 00:00:00,"P03-2022"
"R&B","INFORMATION TECHNOLOGY","SUPPLIES AND SERVICES","WEBSITE MANAGEMENT","4659","P112693-SERVICE-SSL Certificate monitoring - 2 year term",22/6/2021 00:00:00,"246925",90,"IQ0022","IQUAL",31/5/2021 00:00:00,27/6/2021 00:00:00,"P03-2022"
"R&B","PERFORMANCE MANAGEMENT","SUPPLIES AND SERVICES","OFFSITE ARCHIVED STORAGE","4667","P112784-SERVICE-Off site archive May 2021",27/6/2021 00:00:00,"248869",355.39,"DA0154","RESTORE PLC",31/5/2021 00:00:00,27/6/2021 00:00:00,"P03-2022"
"P&V","MYDDELTON HOUSE","SUPPLIES AND SERVICES","ENTERTAINMENT & OTHER LICENCES","4711","LONDON BOROUGH OF ENFIELD",7/6/2021 00:00:00,"248622",350,"EN0120","LONDON BOROUGH OF ENFIELD",31/5/2021 00:00:00,27/6/2021 00:00:00,"P03-2022"
,"LEE VALLEY ATHLETICS CENTRE","SUPPLIES AND SERVICES","ENTERTAINMENT & OTHER LICENCES","4711","P112424-SERVICE-LVAC INV SIN1573491",8/6/2021 00:00:00,"248602",406.59,"PP0425","PPL PRS LTD",31/5/2021 00:00:00,27/6/2021 00:00:00,"P03-2022"
,"LEE VALLEY ATHLETICS CENTRE","SUPPLIES AND SERVICES","ENTERTAINMENT & OTHER LICENCES","4711","P112591-SERVICE-LVAC INVOICE SIN1665515 -  PPL LICENCE",16/6/2021 00:00:00,"249080",1593.37,"PP0425","PPL PRS LTD",31/5/2021 00:00:00,27/6/2021 00:00:00,"P03-2022"
,"LEE VALLEY ATHLETICS CENTRE","SUPPLIES AND SERVICES","ENTERTAINMENT & OTHER LICENCES","4711","P112591-SERVICE-PPR LICENCE",16/6/2021 00:00:00,"249080",3039.61,"PP0425","PPL PRS LTD",31/5/2021 00:00:00,27/6/2021 00:00:00,"P03-2022"
"P&V","LEE VALLEY FARM HOLYFIELDHALL","THIRD PARTY PAYMENTS","VETERINARY SERVICES","4718","P112562-SERVICE-Vets",21/6/2021 00:00:00,"249142",250,"NO0108","WESTPOINT GROUP TRADING LTD",31/5/2021 00:00:00,27/6/2021 00:00:00,"P03-2022"
,"LEE VALLEY RIDING CENTRE","THIRD PARTY PAYMENTS","VETERINARY SERVICES","4718","P112168-SERVICE-vet services April 2021 onwards",7/6/2021 00:00:00,"248731",468.44,"BA0566","BALLINGER EQUINE LTD",31/5/2021 00:00:00,27/6/2021 00:00:00,"P03-2022"
,"LEE VALLEY RIDING CENTRE","THIRD PARTY PAYMENTS","VETERINARY SERVICES","4718","P112168-SERVICE-vet services April 2021 onwards",7/6/2021 00:00:00,"248732",573.91,"BA0566","BALLINGER EQUINE LTD",31/5/2021 00:00:00,27/6/2021 00:00:00,"P03-2022"
,"LEE VALLEY RIDING CENTRE","THIRD PARTY PAYMENTS","VETERINARY SERVICES","4718","P112168-SERVICE-vet services April 2021 onwards",7/6/2021 00:00:00,"248733",553.22,"BA0566","BALLINGER EQUINE LTD",31/5/2021 00:00:00,27/6/2021 00:00:00,"P03-2022"
,"LEE VALLEY RIDING CENTRE","THIRD PARTY PAYMENTS","VETERINARY SERVICES","4718","P112168-SERVICE-vet services April 2021 onwards",7/6/2021 00:00:00,"248734",467.5,"BA0566","BALLINGER EQUINE LTD",31/5/2021 00:00:00,27/6/2021 00:00:00,"P03-2022"
,"LEE VALLEY RIDING CENTRE","THIRD PARTY PAYMENTS","VETERINARY SERVICES","4718","P112168-SERVICE-vet services April 2021 onwards",7/6/2021 00:00:00,"248735",610.64,"BA0566","BALLINGER EQUINE LTD",31/5/2021 00:00:00,27/6/2021 00:00:00,"P03-2022"
,"LEE VALLEY RIDING CENTRE","THIRD PARTY PAYMENTS","VETERINARY SERVICES","4718","BALLINGER EQUINE LTD",7/6/2021 00:00:00,"248735",578.14,"BA0566","BALLINGER EQUINE LTD",31/5/2021 00:00:00,27/6/2021 00:00:00,"P03-2022"
,"LEE VALLEY RIDING CENTRE","THIRD PARTY PAYMENTS","VETERINARY SERVICES","4718","BALLINGER EQUINE LTD",7/6/2021 00:00:00,"248735",32.5,"BA0566","BALLINGER EQUINE LTD",31/5/2021 00:00:00,27/6/2021 00:00:00,"P03-2022"
,"LEE VALLEY RIDING CENTRE","THIRD PARTY PAYMENTS","VETERINARY SERVICES","4718","BALLINGER EQUINE LTD",7/6/2021 00:00:00,"248735",-610.64,"BA0566","BALLINGER EQUINE LTD",31/5/2021 00:00:00,27/6/2021 00:00:00,"P03-2022"
,"LEE VALLEY RIDING CENTRE","THIRD PARTY PAYMENTS","FARRIER","4719","P112202-SERVICE-farrier services",14/6/2021 00:00:00,"249028",380,"CO0061","L COLLINS",31/5/2021 00:00:00,27/6/2021 00:00:00,"P03-2022"
,"LEE VALLEY RIDING CENTRE","THIRD PARTY PAYMENTS","FARRIER","4719","P112202-SERVICE-farrier services",14/6/2021 00:00:00,"249029",375,"CO0061","L COLLINS",31/5/2021 00:00:00,27/6/2021 00:00:00,"P03-2022"
,"LEE VALLEY RIDING CENTRE","THIRD PARTY PAYMENTS","FARRIER","4719","P112202-SERVICE-farrier services",14/6/2021 00:00:00,"249030",450,"CO0061","L COLLINS",31/5/2021 00:00:00,27/6/2021 00:00:00,"P03-2022"
,"LEE VALLEY RIDING CENTRE","THIRD PARTY PAYMENTS","FARRIER","4719","P112202-SERVICE-farrier services",14/6/2021 00:00:00,"249031",475,"CO0061","L COLLINS",31/5/2021 00:00:00,27/6/2021 00:00:00,"P03-2022"
,"LEE VALLEY RIDING CENTRE","THIRD PARTY PAYMENTS","FARRIER","4719","P112202-SERVICE-farrier services",14/6/2021 00:00:00,"249032",370,"CO0061","L COLLINS",31/5/2021 00:00:00,27/6/2021 00:00:00,"P03-2022"
,"LEE VALLEY RIDING CENTRE","THIRD PARTY PAYMENTS","FARRIER","4719","P112202-SERVICE-farrier services",14/6/2021 00:00:00,"249033",160,"CO0061","L COLLINS",31/5/2021 00:00:00,27/6/2021 00:00:00,"P03-2022"
"P&V","MYDDLETON HSE HERITAGE CENTRE","SUPPLIES AND SERVICES","NET CATERING PURCHASES","4777","BIDFOOD",9/6/2021 00:00:00,"248611",119.88,"360001","BIDFOOD",31/5/2021 00:00:00,27/6/2021 00:00:00,"P03-2022"
"P&V","MYDDLETON HSE HERITAGE CENTRE","SUPPLIES AND SERVICES","NET CATERING PURCHASES","4777","P112296-SERVICE-Food/drink order w.e 30.05.2021",9/6/2021 00:00:00,"248611",283.7,"360001","BIDFOOD",31/5/2021 00:00:00,27/6/2021 00:00:00,"P03-2022"
"P&V","MYDDLETON HSE HERITAGE CENTRE","SUPPLIES AND SERVICES","NET CATERING PURCHASES","4777","BIDFOOD",9/6/2021 00:00:00,"248611",-283.7,"360001","BIDFOOD",31/5/2021 00:00:00,27/6/2021 00:00:00,"P03-2022"
"P&V","MYDDLETON HSE HERITAGE CENTRE","SUPPLIES AND SERVICES","NET CATERING PURCHASES","4777","BIDFOOD",9/6/2021 00:00:00,"248611",163.82,"360001","BIDFOOD",31/5/2021 00:00:00,27/6/2021 00:00:00,"P03-2022"
"P&V","MYDDLETON HSE HERITAGE CENTRE","SUPPLIES AND SERVICES","NET CATERING PURCHASES","4777","BIDFOOD",21/6/2021 00:00:00,"248862",-377.47,"360001","BIDFOOD",31/5/2021 00:00:00,27/6/2021 00:00:00,"P03-2022"
"P&V","MYDDLETON HSE HERITAGE CENTRE","SUPPLIES AND SERVICES","NET CATERING PURCHASES","4777","BIDFOOD",21/6/2021 00:00:00,"248862",276.55,"360001","BIDFOOD",31/5/2021 00:00:00,27/6/2021 00:00:00,"P03-2022"
"P&V","MYDDLETON HSE HERITAGE CENTRE","SUPPLIES AND SERVICES","NET CATERING PURCHASES","4777","BIDFOOD",21/6/2021 00:00:00,"248862",100.92,"360001","BIDFOOD",31/5/2021 00:00:00,27/6/2021 00:00:00,"P03-2022"
"P&V","MYDDLETON HSE HERITAGE CENTRE","SUPPLIES AND SERVICES","NET CATERING PURCHASES","4777","P112378-SERVICE-Food/drink order w.e 06.06.21",21/6/2021 00:00:00,"248862",377.47,"360001","BIDFOOD",31/5/2021 00:00:00,27/6/2021 00:00:00,"P03-2022"
"P&V","MYDDLETON HSE HERITAGE CENTRE","SUPPLIES AND SERVICES","NET CATERING PURCHASES","4777","BIDFOOD",22/6/2021 00:00:00,"249209",274.69,"360001","BIDFOOD",31/5/2021 00:00:00,27/6/2021 00:00:00,"P03-2022"
"P&V","MYDDLETON HSE HERITAGE CENTRE","SUPPLIES AND SERVICES","NET CATERING PURCHASES","4777","BIDFOOD",22/6/2021 00:00:00,"249209",199.02,"360001","BIDFOOD",31/5/2021 00:00:00,27/6/2021 00:00:00,"P03-2022"
"P&V","MYDDLETON HSE HERITAGE CENTRE","SUPPLIES AND SERVICES","NET CATERING PURCHASES","4777","P112511-SERVICE-Food/drink order w.e 13/06/2021",22/6/2021 00:00:00,"249209",473.71,"360001","BIDFOOD",31/5/2021 00:00:00,27/6/2021 00:00:00,"P03-2022"
"P&V","MYDDLETON HSE HERITAGE CENTRE","SUPPLIES AND SERVICES","NET CATERING PURCHASES","4777","BIDFOOD",22/6/2021 00:00:00,"249209",-473.71,"360001","BIDFOOD",31/5/2021 00:00:00,27/6/2021 00:00:00,"P03-2022"
"P&V","MYDDLETON HSE HERITAGE CENTRE","SUPPLIES AND SERVICES","NET CATERING PURCHASES","4777","P112511-SERVICE-Food/drink order w.e 13/06/2021",22/6/2021 00:00:00,"249210",-60.16,"360001","BIDFOOD",31/5/2021 00:00:00,27/6/2021 00:00:00,"P03-2022"
"P&V","MYDDLETON HSE HERITAGE CENTRE","SUPPLIES AND SERVICES","NET CATERING PURCHASES","4777","BIDFOOD",22/6/2021 00:00:00,"249390",211.7,"360001","BIDFOOD",31/5/2021 00:00:00,27/6/2021 00:00:00,"P03-2022"
"P&V","MYDDLETON HSE HERITAGE CENTRE","SUPPLIES AND SERVICES","NET CATERING PURCHASES","4777","BIDFOOD",22/6/2021 00:00:00,"249390",-424,"360001","BIDFOOD",31/5/2021 00:00:00,27/6/2021 00:00:00,"P03-2022"
"P&V","MYDDLETON HSE HERITAGE CENTRE","SUPPLIES AND SERVICES","NET CATERING PURCHASES","4777","P112623-SERVICE-Food/Drink order w.e 20.06.2021",22/6/2021 00:00:00,"249390",424,"360001","BIDFOOD",31/5/2021 00:00:00,27/6/2021 00:00:00,"P03-2022"
"P&V","MYDDLETON HSE HERITAGE CENTRE","SUPPLIES AND SERVICES","NET CATERING PURCHASES","4777","BIDFOOD",22/6/2021 00:00:00,"249390",212.3,"360001","BIDFOOD",31/5/2021 00:00:00,27/6/2021 00:00:00,"P03-2022"
"P&V","MYDDLETON HSE HERITAGE CENTRE","SUPPLIES AND SERVICES","NET CATERING PURCHASES","4777","P112623-SERVICE-Food/Drink order w.e 20.06.2021",27/6/2021 00:00:00,"249502",-7.99,"360001","BIDFOOD",31/5/2021 00:00:00,27/6/2021 00:00:00,"P03-2022"
,"LEE VALLEY MARINA SPRINGFIELD","SUPPLIES AND SERVICES","TRADING AC - EXTERNAL PURCHASE","4875","P110773-SERVICE-Chandlery Stock 38132",7/6/2021 00:00:00,"248546",18.58,"AQ0033","AQUAFAX LIMITED",31/5/2021 00:00:00,27/6/2021 00:00:00,"P03-2022"
,"LEE VALLEY MARINA SPRINGFIELD","SUPPLIES AND SERVICES","TRADING AC - EXTERNAL PURCHASE","4875","P112315-SERVICE-Chandlery Stock 703903",9/6/2021 00:00:00,"248610",180.96,"MI0200","MIDLAND CHANDLERS LIMITED",31/5/2021 00:00:00,27/6/2021 00:00:00,"P03-2022"
,"LEE VALLEY MARINA SPRINGFIELD","SUPPLIES AND SERVICES","TRADING AC - EXTERNAL PURCHASE","4875","P112351-SERVICE-Chandlery Stock",9/6/2021 00:00:00,"248721",41.55,"CR0651","CRAFTMASTER PAINTS",31/5/2021 00:00:00,27/6/2021 00:00:00,"P03-2022"
,"LEE VALLEY MARINA SPRINGFIELD","SUPPLIES AND SERVICES","TRADING AC - EXTERNAL PURCHASE","4875","P112225-SERVICE-Chandlery Stock",9/6/2021 00:00:00,"248722",413.28,"CR0651","CRAFTMASTER PAINTS",31/5/2021 00:00:00,27/6/2021 00:00:00,"P03-2022"
,"LEE VALLEY MARINA SPRINGFIELD","SUPPLIES AND SERVICES","TRADING AC - EXTERNAL PURCHASE","4875","P112364-SERVICE-Chandlery Stock  54888",9/6/2021 00:00:00,"248742",237.17,"AQ0033","AQUAFAX LIMITED",31/5/2021 00:00:00,27/6/2021 00:00:00,"P03-2022"
,"LEE VALLEY MARINA SPRINGFIELD","SUPPLIES AND SERVICES","TRADING AC - EXTERNAL PURCHASE","4875","P112158-SERVICE-Buffalo Board & Timber",8/6/2021 00:00:00,"248823",354,"RO0323","E ROBERT TIMBER LTD",31/5/2021 00:00:00,27/6/2021 00:00:00,"P03-2022"
,"LEE VALLEY MARINA SPRINGFIELD","SUPPLIES AND SERVICES","TRADING AC - EXTERNAL PURCHASE","4875","P112167-SERVICE-Chandlery Stock",9/6/2021 00:00:00,"248830",463.05,"CA0006","CALOR GAS LIMITED",31/5/2021 00:00:00,27/6/2021 00:00:00,"P03-2022"
,"LEE VALLEY MARINA SPRINGFIELD","SUPPLIES AND SERVICES","TRADING AC - EXTERNAL PURCHASE","4875","P112406-SERVICE-Chandlery Stock 707225",15/6/2021 00:00:00,"248860",119.67,"MI0200","MIDLAND CHANDLERS LIMITED",31/5/2021 00:00:00,27/6/2021 00:00:00,"P03-2022"
,"LEE VALLEY MARINA SPRINGFIELD","SUPPLIES AND SERVICES","TRADING AC - EXTERNAL PURCHASE","4875","P112463-SERVICE-Chandlery Stock  708922",15/6/2021 00:00:00,"249008",232.03,"MI0200","MIDLAND CHANDLERS LIMITED",31/5/2021 00:00:00,27/6/2021 00:00:00,"P03-2022"
,"LEE VALLEY MARINA SPRINGFIELD","SUPPLIES AND SERVICES","TRADING AC - EXTERNAL PURCHASE","4875","P112463-SERVICE-Chandlery Stock  708922",15/6/2021 00:00:00,"249009",16.05,"MI0200","MIDLAND CHANDLERS LIMITED",31/5/2021 00:00:00,27/6/2021 00:00:00,"P03-2022"
,"LEE VALLEY MARINA SPRINGFIELD","SUPPLIES AND SERVICES","TRADING AC - EXTERNAL PURCHASE","4875","P112386-SERVICE-Chandlery Stock  106257",15/6/2021 00:00:00,"249035",58.98,"AS0036","ASAP SUPPLIES",31/5/2021 00:00:00,27/6/2021 00:00:00,"P03-2022"
,"LEE VALLEY MARINA SPRINGFIELD","SUPPLIES AND SERVICES","TRADING AC - EXTERNAL PURCHASE","4875","P112471-SERVICE-Chandlery Stock",15/6/2021 00:00:00,"249052",238.88,"CR0651","CRAFTMASTER PAINTS",31/5/2021 00:00:00,27/6/2021 00:00:00,"P03-2022"
,"LEE VALLEY MARINA SPRINGFIELD","SUPPLIES AND SERVICES","TRADING AC - EXTERNAL PURCHASE","4875","P112494-SERVICE-Chandlery Stock  107853",27/6/2021 00:00:00,"249083",182.23,"AS0036","ASAP SUPPLIES",31/5/2021 00:00:00,27/6/2021 00:00:00,"P03-2022"
,"LEE VALLEY MARINA SPRINGFIELD","SUPPLIES AND SERVICES","TRADING AC - EXTERNAL PURCHASE","4875","P112484-SERVICE-Chandlery Stock  107710",27/6/2021 00:00:00,"249084",204.28,"AS0036","ASAP SUPPLIES",31/5/2021 00:00:00,27/6/2021 00:00:00,"P03-2022"
,"LEE VALLEY MARINA SPRINGFIELD","SUPPLIES AND SERVICES","TRADING AC - EXTERNAL PURCHASE","4875","P112517-SERVICE-Chandlery Stock  710985",15/6/2021 00:00:00,"249144",327.49,"MI0200","MIDLAND CHANDLERS LIMITED",31/5/2021 00:00:00,27/6/2021 00:00:00,"P03-2022"
,"LEE VALLEY MARINA SPRINGFIELD","SUPPLIES AND SERVICES","TRADING AC - EXTERNAL PURCHASE","4875","P112305-SERVICE-Chandlery Stock",15/6/2021 00:00:00,"249152",706,"CA0006","CALOR GAS LIMITED",31/5/2021 00:00:00,27/6/2021 00:00:00,"P03-2022"
,"LEE VALLEY MARINA SPRINGFIELD","SUPPLIES AND SERVICES","TRADING AC - EXTERNAL PURCHASE","4875","P112517-SERVICE-Chandlery Stock  710985",21/6/2021 00:00:00,"249202",21.5,"MI0200","MIDLAND CHANDLERS LIMITED",31/5/2021 00:00:00,27/6/2021 00:00:00,"P03-2022"
,"LEE VALLEY MARINA SPRINGFIELD","SUPPLIES AND SERVICES","TRADING AC - EXTERNAL PURCHASE","4875","P112247-SERVICE-Chandlery Stock",21/6/2021 00:00:00,"249240",150,"HA0371","HARTS OF OAK",31/5/2021 00:00:00,27/6/2021 00:00:00,"P03-2022"
,"LEE VALLEY MARINA SPRINGFIELD","SUPPLIES AND SERVICES","TRADING AC - EXTERNAL PURCHASE","4875","P112598-SERVICE-Chandlery Stock 713947",21/6/2021 00:00:00,"249374",453.84,"MI0200","MIDLAND CHANDLERS LIMITED",31/5/2021 00:00:00,27/6/2021 00:00:00,"P03-2022"
,"LEE VALLEY MARINA SPRINGFIELD","SUPPLIES AND SERVICES","TRADING AC - EXTERNAL PURCHASE","4875","P112597-SERVICE-Chandlery Stock  WSO0224891",21/6/2021 00:00:00,"249376",182.19,"CE0510","CENTURION EUROPE LIMITED",31/5/2021 00:00:00,27/6/2021 00:00:00,"P03-2022"
,"LEE VALLEY MARINA SPRINGFIELD","SUPPLIES AND SERVICES","TRADING AC - EXTERNAL PURCHASE","4875","P112377-SERVICE-Chandlery Stock",27/6/2021 00:00:00,"249399",857.82,"EC0394","MANBAT LTD T/AS",31/5/2021 00:00:00,27/6/2021 00:00:00,"P03-2022"
,"LEE VALLEY MARINA SPRINGFIELD","SUPPLIES AND SERVICES","TRADING AC - EXTERNAL PURCHASE","4875","P112630-SERVICE-Chandlery Stock  715101",27/6/2021 00:00:00,"249658",273.11,"MI0200","MIDLAND CHANDLERS LIMITED",31/5/2021 00:00:00,27/6/2021 00:00:00,"P03-2022"
,"STANSTEAD RECHARGEABLE WORKS","SUPPLIES AND SERVICES","TRADING AC - EXTERNAL PURCHASE","4875","P112041-SERVICE-chandlery stock",8/6/2021 00:00:00,"248285",674.7,"EC0394","MANBAT LTD T/AS",31/5/2021 00:00:00,27/6/2021 00:00:00,"P03-2022"
,"STANSTEAD RECHARGEABLE WORKS","SUPPLIES AND SERVICES","TRADING AC - EXTERNAL PURCHASE","4875","P112041-SERVICE-increase to match invoice",8/6/2021 00:00:00,"248285",4.57,"EC0394","MANBAT LTD T/AS",31/5/2021 00:00:00,27/6/2021 00:00:00,"P03-2022"
,"STANSTEAD RECHARGEABLE WORKS","SUPPLIES AND SERVICES","TRADING AC - EXTERNAL PURCHASE","4875","P112204-SERVICE-coal",7/6/2021 00:00:00,"248471",270,"HI0076","WG HILL & SON",31/5/2021 00:00:00,27/6/2021 00:00:00,"P03-2022"
,"STANSTEAD RECHARGEABLE WORKS","SUPPLIES AND SERVICES","TRADING AC - EXTERNAL PURCHASE","4875","P111442-SERVICE-chandlery stock",7/6/2021 00:00:00,"248509",30.53,"AQ0033","AQUAFAX LIMITED",31/5/2021 00:00:00,27/6/2021 00:00:00,"P03-2022"
,"STANSTEAD RECHARGEABLE WORKS","SUPPLIES AND SERVICES","TRADING AC - EXTERNAL PURCHASE","4875","P112179-SERVICE-2200l red diesel @55.95ppl",7/6/2021 00:00:00,"248511",1230.9,"HA0400","WATSON FUELS",31/5/2021 00:00:00,27/6/2021 00:00:00,"P03-2022"
,"STANSTEAD RECHARGEABLE WORKS","SUPPLIES AND SERVICES","TRADING AC - EXTERNAL PURCHASE","4875","P112245-SERVICE-chandlery stock",7/6/2021 00:00:00,"248529",639.53,"MI0200","MIDLAND CHANDLERS LIMITED",31/5/2021 00:00:00,27/6/2021 00:00:00,"P03-2022"
,"STANSTEAD RECHARGEABLE WORKS","SUPPLIES AND SERVICES","TRADING AC - EXTERNAL PURCHASE","4875","P111444-SERVICE-chnadlery stock",7/6/2021 00:00:00,"248530",10.5,"MI0200","MIDLAND CHANDLERS LIMITED",31/5/2021 00:00:00,27/6/2021 00:00:00,"P03-2022"
,"STANSTEAD RECHARGEABLE WORKS","SUPPLIES AND SERVICES","TRADING AC - EXTERNAL PURCHASE","4875","P111444-SERVICE-chnadlery stock",7/6/2021 00:00:00,"248533",15.66,"MI0200","MIDLAND CHANDLERS LIMITED",31/5/2021 00:00:00,27/6/2021 00:00:00,"P03-2022"
,"STANSTEAD RECHARGEABLE WORKS","SUPPLIES AND SERVICES","TRADING AC - EXTERNAL PURCHASE","4875","P111996-SERVICE-chandlery stock",7/6/2021 00:00:00,"248547",12.44,"AQ0033","AQUAFAX LIMITED",31/5/2021 00:00:00,27/6/2021 00:00:00,"P03-2022"
,"STANSTEAD RECHARGEABLE WORKS","SUPPLIES AND SERVICES","TRADING AC - EXTERNAL PURCHASE","4875","P111887-SERVICE-increase to mtatch invoice",14/6/2021 00:00:00,"248562",81.25,"CA0006","CALOR GAS LIMITED",31/5/2021 00:00:00,27/6/2021 00:00:00,"P03-2022"
,"STANSTEAD RECHARGEABLE WORKS","SUPPLIES AND SERVICES","TRADING AC - EXTERNAL PURCHASE","4875","P111887-SERVICE-calor gas",14/6/2021 00:00:00,"248562",817.54,"CA0006","CALOR GAS LIMITED",31/5/2021 00:00:00,27/6/2021 00:00:00,"P03-2022"
,"STANSTEAD RECHARGEABLE WORKS","SUPPLIES AND SERVICES","TRADING AC - EXTERNAL PURCHASE","4875","P112090-SERVICE-chandlery stock",9/6/2021 00:00:00,"248619",15.1,"AQ0033","AQUAFAX LIMITED",31/5/2021 00:00:00,27/6/2021 00:00:00,"P03-2022"
,"STANSTEAD RECHARGEABLE WORKS","SUPPLIES AND SERVICES","TRADING AC - EXTERNAL PURCHASE","4875","P112300-SERVICE-chandlery stock",8/6/2021 00:00:00,"248620",81.89,"AS0036","ASAP SUPPLIES",31/5/2021 00:00:00,27/6/2021 00:00:00,"P03-2022"
,"STANSTEAD RECHARGEABLE WORKS","SUPPLIES AND SERVICES","TRADING AC - EXTERNAL PURCHASE","4875","P112313-SERVICE-paint",7/6/2021 00:00:00,"248738",324.47,"SM0658","SML PAINTS AND COATINGS",31/5/2021 00:00:00,27/6/2021 00:00:00,"P03-2022"
,"STANSTEAD RECHARGEABLE WORKS","SUPPLIES AND SERVICES","TRADING AC - EXTERNAL PURCHASE","4875","P112090-SERVICE-chandlery stock",8/6/2021 00:00:00,"248741",3.64,"AQ0033","AQUAFAX LIMITED",31/5/2021 00:00:00,27/6/2021 00:00:00,"P03-2022"
,"STANSTEAD RECHARGEABLE WORKS","SUPPLIES AND SERVICES","TRADING AC - EXTERNAL PURCHASE","4875","P112360-SERVICE-chandlery stock",14/6/2021 00:00:00,"248783",43.83,"EP0353","E P BARRUS LTD",31/5/2021 00:00:00,27/6/2021 00:00:00,"P03-2022"
,"STANSTEAD RECHARGEABLE WORKS","SUPPLIES AND SERVICES","TRADING AC - EXTERNAL PURCHASE","4875","P112369-SERVICE-chandlery stock",8/6/2021 00:00:00,"248788",504.03,"AQ0033","AQUAFAX LIMITED",31/5/2021 00:00:00,27/6/2021 00:00:00,"P03-2022"
,"STANSTEAD RECHARGEABLE WORKS","SUPPLIES AND SERVICES","TRADING AC - EXTERNAL PURCHASE","4875","P112251-SERVICE-batteries",8/6/2021 00:00:00,"248839",967.1,"EC0394","MANBAT LTD T/AS",31/5/2021 00:00:00,27/6/2021 00:00:00,"P03-2022"
,"STANSTEAD RECHARGEABLE WORKS","SUPPLIES AND SERVICES","TRADING AC - EXTERNAL PURCHASE","4875","P112379-SERVICE-2200l red diesel @ 56.77ppl",14/6/2021 00:00:00,"248847",1248.94,"SP0543","SPEEDY FUELS LIMITED",31/5/2021 00:00:00,27/6/2021 00:00:00,"P03-2022"
,"STANSTEAD RECHARGEABLE WORKS","SUPPLIES AND SERVICES","TRADING AC - EXTERNAL PURCHASE","4875","P112405-SERVICE-chandlery stock",14/6/2021 00:00:00,"248859",391.25,"MI0200","MIDLAND CHANDLERS LIMITED",31/5/2021 00:00:00,27/6/2021 00:00:00,"P03-2022"
,"STANSTEAD RECHARGEABLE WORKS","SUPPLIES AND SERVICES","TRADING AC - EXTERNAL PURCHASE","4875","P111793-SERVICE-chandlery stock",8/6/2021 00:00:00,"248864",215.4,"360001","BIDFOOD",31/5/2021 00:00:00,27/6/2021 00:00:00,"P03-2022"
,"STANSTEAD RECHARGEABLE WORKS","SUPPLIES AND SERVICES","TRADING AC - EXTERNAL PURCHASE","4875","P111744-SERVICE-chandlery stock",8/6/2021 00:00:00,"248865",186.43,"360001","BIDFOOD",31/5/2021 00:00:00,27/6/2021 00:00:00,"P03-2022"
